Body Name,Body,Date,Department,Beneficiary,Summary of Purpose (SeRCOP),Amount SUM,Merchant Code,Transaction Number,Supplier ID
Sandwell Metropolitan Borough Council,http://www.sandwell.gov.uk/info/200202/performance_and_spending/1079/payments_over_500,01-Jan-2024,Adults Social Care Capital,PR PROPERTY MAINTENANCE,Adults Social Care Capital,4924.82,Deferred Charges/Grant Payments,2324P10_CR00001,33836
Sandwell Metropolitan Borough Council,http://www.sandwell.gov.uk/info/200202/performance_and_spending/1079/payments_over_500,01-Jan-2024,Adults Social Care Capital,PREMIER MOBILITY UK LTD,Adults Social Care Capital,2152.69,Deferred Charges/Grant Payments,2324P10_CR00002,167259
Sandwell Metropolitan Borough Council,http://www.sandwell.gov.uk/info/200202/performance_and_spending/1079/payments_over_500,01-Jan-2024,Adults Social Care Capital,PREMIER MOBILITY UK LTD,Adults Social Care Capital,2152.69,Deferred Charges/Grant Payments,2324P10_CR00003,167259
Sandwell Metropolitan Borough Council,http://www.sandwell.gov.uk/info/200202/performance_and_spending/1079/payments_over_500,01-Jan-2024,Adults Social Care Capital,PREMIER MOBILITY UK LTD,Adults Social Care Capital,2152.69,Deferred Charges/Grant Payments,2324P10_CR00004,167259
Sandwell Metropolitan Borough Council,http://www.sandwell.gov.uk/info/200202/performance_and_spending/1079/payments_over_500,01-Jan-2024,Adults Social Care Capital,PREMIER MOBILITY UK LTD,Adults Social Care Capital,2552.69,Deferred Charges/Grant Payments,2324P10_CR00005,167259
Sandwell Metropolitan Borough Council,http://www.sandwell.gov.uk/info/200202/performance_and_spending/1079/payments_over_500,01-Jan-2024,Adults Social Care Capital,VINCI CONSTRUCTION LTD,Adults Social Care Capital,14250.07,Deferred Charges/Grant Payments,2324P10_CR00006,36361
Sandwell Metropolitan Borough Council,http://www.sandwell.gov.uk/info/200202/performance_and_spending/1079/payments_over_500,01-Jan-2024,Adults Social Care Capital,VINCI CONSTRUCTION LTD,Adults Social Care Capital,29051.57,Deferred Charges/Grant Payments,2324P10_CR00007,36361
Sandwell Metropolitan Borough Council,http://www.sandwell.gov.uk/info/200202/performance_and_spending/1079/payments_over_500,01-Jan-2024,Adults Social Care Capital,VINCI CONSTRUCTION LTD,Adults Social Care Capital,68005.03,Deferred Charges/Grant Payments,2324P10_CR00008,36361
Sandwell Metropolitan Borough Council,http://www.sandwell.gov.uk/info/200202/performance_and_spending/1079/payments_over_500,01-Jan-2024,Adults Social Care Capital,VINCI CONSTRUCTION LTD,Adults Social Care Capital,69694.23,Deferred Charges/Grant Payments,2324P10_CR00009,36361
Sandwell Metropolitan Borough Council,http://www.sandwell.gov.uk/info/200202/performance_and_spending/1079/payments_over_500,24-Jan-2024,Adults Social Care Capital,HOME DESIGN,Adults Social Care Capital,5000.00,Deferred Charges/Grant Payments,2324P10_CR00010,141847
Sandwell Metropolitan Borough Council,http://www.sandwell.gov.uk/info/200202/performance_and_spending/1079/payments_over_500,25-Jan-2024,Adults Social Care Capital,HOME DESIGN,Adults Social Care Capital,7000.00,Deferred Charges/Grant Payments,2324P10_CR00011,141847
Sandwell Metropolitan Borough Council,http://www.sandwell.gov.uk/info/200202/performance_and_spending/1079/payments_over_500,12-Jan-2024,Adults Social Care Capital,PR BUILDING SERVICES,Adults Social Care Capital,2182.00,Deferred Charges/Grant Payments,2324P10_CR00012,167483
Sandwell Metropolitan Borough Council,http://www.sandwell.gov.uk/info/200202/performance_and_spending/1079/payments_over_500,08-Jan-2024,Adults Social Care Capital,PR BUILDING SERVICES,Adults Social Care Capital,8233.33,Deferred Charges/Grant Payments,2324P10_CR00013,167483
Sandwell Metropolitan Borough Council,http://www.sandwell.gov.uk/info/200202/performance_and_spending/1079/payments_over_500,29-Jan-2024,Adults Social Care Capital,PR BUILDING SERVICES,Adults Social Care Capital,8233.33,Deferred Charges/Grant Payments,2324P10_CR00014,167483
Sandwell Metropolitan Borough Council,http://www.sandwell.gov.uk/info/200202/performance_and_spending/1079/payments_over_500,09-Jan-2024,Adults Social Care Capital,PR PROPERTY MAINTENANCE,Adults Social Care Capital,670.45,Deferred Charges/Grant Payments,2324P10_CR00015,33836
Sandwell Metropolitan Borough Council,http://www.sandwell.gov.uk/info/200202/performance_and_spending/1079/payments_over_500,09-Jan-2024,Adults Social Care Capital,PR PROPERTY MAINTENANCE,Adults Social Care Capital,670.45,Deferred Charges/Grant Payments,2324P10_CR00016,33836
Sandwell Metropolitan Borough Council,http://www.sandwell.gov.uk/info/200202/performance_and_spending/1079/payments_over_500,09-Jan-2024,Adults Social Care Capital,PR PROPERTY MAINTENANCE,Adults Social Care Capital,810.38,Deferred Charges/Grant Payments,2324P10_CR00017,33836
Sandwell Metropolitan Borough Council,http://www.sandwell.gov.uk/info/200202/performance_and_spending/1079/payments_over_500,09-Jan-2024,Adults Social Care Capital,PR PROPERTY MAINTENANCE,Adults Social Care Capital,810.38,Deferred Charges/Grant Payments,2324P10_CR00018,33836
Sandwell Metropolitan Borough Council,http://www.sandwell.gov.uk/info/200202/performance_and_spending/1079/payments_over_500,09-Jan-2024,Adults Social Care Capital,PR PROPERTY MAINTENANCE,Adults Social Care Capital,2080.91,Deferred Charges/Grant Payments,2324P10_CR00019,33836
Sandwell Metropolitan Borough Council,http://www.sandwell.gov.uk/info/200202/performance_and_spending/1079/payments_over_500,23-Jan-2024,Adults Social Care Capital,TDF DESIGN LIMITED,Adults Social Care Capital,1650.00,Deferred Charges/Grant Payments,2324P10_CR00020,10320
Sandwell Metropolitan Borough Council,http://www.sandwell.gov.uk/info/200202/performance_and_spending/1079/payments_over_500,01-Jan-2024,Adults Social Care Capital,TDF DESIGN LIMITED,Adults Social Care Capital,6210.00,Deferred Charges/Grant Payments,2324P10_CR00021,10320
Sandwell Metropolitan Borough Council,http://www.sandwell.gov.uk/info/200202/performance_and_spending/1079/payments_over_500,01-Jan-2024,Adults Social Care Capital,TDF DESIGN LIMITED,Adults Social Care Capital,7500.00,Deferred Charges/Grant Payments,2324P10_CR00022,10320
Sandwell Metropolitan Borough Council,http://www.sandwell.gov.uk/info/200202/performance_and_spending/1079/payments_over_500,01-Jan-2024,Adults Social Care Capital,TDF DESIGN LIMITED,Adults Social Care Capital,9048.67,Deferred Charges/Grant Payments,2324P10_CR00023,10320
Sandwell Metropolitan Borough Council,http://www.sandwell.gov.uk/info/200202/performance_and_spending/1079/payments_over_500,01-Jan-2024,Adults Social Care Capital,TDF DESIGN LIMITED,Adults Social Care Capital,10000.00,Deferred Charges/Grant Payments,2324P10_CR00024,10320
Sandwell Metropolitan Borough Council,http://www.sandwell.gov.uk/info/200202/performance_and_spending/1079/payments_over_500,01-Jan-2024,Adults Social Care Capital,TDF DESIGN LIMITED,Adults Social Care Capital,15976.33,Deferred Charges/Grant Payments,2324P10_CR00025,10320
Sandwell Metropolitan Borough Council,http://www.sandwell.gov.uk/info/200202/performance_and_spending/1079/payments_over_500,01-Jan-2024,Adults Social Care Capital,TDF DESIGN LIMITED,Adults Social Care Capital,23000.00,Deferred Charges/Grant Payments,2324P10_CR00026,10320
Sandwell Metropolitan Borough Council,http://www.sandwell.gov.uk/info/200202/performance_and_spending/1079/payments_over_500,01-Jan-2024,Adults Social Care Capital,TDF DESIGN LIMITED,Adults Social Care Capital,38941.33,Deferred Charges/Grant Payments,2324P10_CR00027,10320
Sandwell Metropolitan Borough Council,http://www.sandwell.gov.uk/info/200202/performance_and_spending/1079/payments_over_500,24-Jan-2024,Adults Social Care Capital,UDDIN DESIGN,Adults Social Care Capital,1920.00,Deferred Charges/Grant Payments,2324P10_CR00028,167576
Sandwell Metropolitan Borough Council,http://www.sandwell.gov.uk/info/200202/performance_and_spending/1079/payments_over_500,01-Jan-2024,Adults Social Care Capital,R J WISHART,Adults Social Care Capital,4306.45,Deferred Charges/Grant Payments,2324P10_CR00029,08555927
Sandwell Metropolitan Borough Council,http://www.sandwell.gov.uk/info/200202/performance_and_spending/1079/payments_over_500,23-Jan-2024,Adults Social Care Capital,LIFT & ENGINEERING SERVICES LTD,Adults Social Care Capital,1307.45,"CIP - New Construction,Conversion, Enhancement & Reno",2324P10_CR00030,77003962
Sandwell Metropolitan Borough Council,http://www.sandwell.gov.uk/info/200202/performance_and_spending/1079/payments_over_500,05-Jan-2024,Adults Social Care Capital,LIFT & ENGINEERING SERVICES LTD,Adults Social Care Capital,11837.41,"CIP - New Construction,Conversion, Enhancement & Reno",2324P10_CR00031,77003962
Sandwell Metropolitan Borough Council,http://www.sandwell.gov.uk/info/200202/performance_and_spending/1079/payments_over_500,01-Jan-2024,Childrens Services,AFJ LIMITED,Childrens Services,50747.00,Public Transport,2324P10_CR00032,164912
Sandwell Metropolitan Borough Council,http://www.sandwell.gov.uk/info/200202/performance_and_spending/1079/payments_over_500,01-Jan-2024,Childrens Services,AFJ LIMITED,Childrens Services,57949.80,Public Transport,2324P10_CR00033,164912
Sandwell Metropolitan Borough Council,http://www.sandwell.gov.uk/info/200202/performance_and_spending/1079/payments_over_500,01-Jan-2024,Childrens Services,ALEX STYLES PHOTOGRAPHY LTD,Childrens Services,3500.00,Advertising & Publicity,2324P10_CR00034,166978
Sandwell Metropolitan Borough Council,http://www.sandwell.gov.uk/info/200202/performance_and_spending/1079/payments_over_500,01-Jan-2024,Childrens Services,AMP BIOMASS FUEL LTD T/A AMP CLEAN ENERGY,Childrens Services,3278.36,Energy Costs-Bio Energy Costs.Bio Mass Fuel,2324P10_CR00035,128761
Sandwell Metropolitan Borough Council,http://www.sandwell.gov.uk/info/200202/performance_and_spending/1079/payments_over_500,01-Jan-2024,Childrens Services,APD PRINT & DESIGN,Childrens Services,708.00,"Printing, Stationery & General Office Expenses",2324P10_CR00036,49454
Sandwell Metropolitan Borough Council,http://www.sandwell.gov.uk/info/200202/performance_and_spending/1079/payments_over_500,01-Jan-2024,Childrens Services,APD PRINT & DESIGN,Childrens Services,1278.00,"Printing, Stationery & General Office Expenses",2324P10_CR00037,49454
Sandwell Metropolitan Borough Council,http://www.sandwell.gov.uk/info/200202/performance_and_spending/1079/payments_over_500,01-Jan-2024,Childrens Services,BARNARDO SERVICES LIMITED,Childrens Services,34891.00,Externally Purchased Professional Services ,2324P10_CR00038,9330
Sandwell Metropolitan Borough Council,http://www.sandwell.gov.uk/info/200202/performance_and_spending/1079/payments_over_500,01-Jan-2024,Childrens Services,BIDFOOD,Childrens Services,777.05,Catering Provisions,2324P10_CR00039,164984
Sandwell Metropolitan Borough Council,http://www.sandwell.gov.uk/info/200202/performance_and_spending/1079/payments_over_500,01-Jan-2024,Childrens Services,CASTELL HOWELL FOODS LTD,Childrens Services,517.65,Catering Provisions,2324P10_CR00040,163660
Sandwell Metropolitan Borough Council,http://www.sandwell.gov.uk/info/200202/performance_and_spending/1079/payments_over_500,01-Jan-2024,Childrens Services,CERTAS ENERGY LIMITED,Childrens Services,995.31,Oil,2324P10_CR00041,80421
Sandwell Metropolitan Borough Council,http://www.sandwell.gov.uk/info/200202/performance_and_spending/1079/payments_over_500,01-Jan-2024,Childrens Services,CERTAS ENERGY LIMITED,Childrens Services,1330.84,Oil,2324P10_CR00042,80421
Sandwell Metropolitan Borough Council,http://www.sandwell.gov.uk/info/200202/performance_and_spending/1079/payments_over_500,01-Jan-2024,Childrens Services,CHUBB FIRE & SECURITY LIMITED t/a CHUBB ELECTRONIC SECURITY,Childrens Services,713.98,Security,2324P10_CR00043,81343
Sandwell Metropolitan Borough Council,http://www.sandwell.gov.uk/info/200202/performance_and_spending/1079/payments_over_500,01-Jan-2024,Childrens Services,CHUBB FIRE & SECURITY LIMITED t/a CHUBB ELECTRONIC SECURITY,Childrens Services,1057.52,Security,2324P10_CR00044,81343
Sandwell Metropolitan Borough Council,http://www.sandwell.gov.uk/info/200202/performance_and_spending/1079/payments_over_500,01-Jan-2024,Childrens Services,CITIZENS ADVICE SANDWELL & WALSALL,Childrens Services,3321.00,Grants,2324P10_CR00045,01760899
Sandwell Metropolitan Borough Council,http://www.sandwell.gov.uk/info/200202/performance_and_spending/1079/payments_over_500,01-Jan-2024,Childrens Services,CITIZENS ADVICE SANDWELL & WALSALL,Childrens Services,4512.03,Grants,2324P10_CR00046,01760899
Sandwell Metropolitan Borough Council,http://www.sandwell.gov.uk/info/200202/performance_and_spending/1079/payments_over_500,01-Jan-2024,Childrens Services,CITIZENS ADVICE SANDWELL & WALSALL,Childrens Services,4932.96,Grants,2324P10_CR00047,01760899
Sandwell Metropolitan Borough Council,http://www.sandwell.gov.uk/info/200202/performance_and_spending/1079/payments_over_500,01-Jan-2024,Childrens Services,CLB MUSIC SERVICES LTD,Childrens Services,900.00,Externally Purchased Professional Services ,2324P10_CR00048,163924
Sandwell Metropolitan Borough Council,http://www.sandwell.gov.uk/info/200202/performance_and_spending/1079/payments_over_500,01-Jan-2024,Childrens Services,CLB MUSIC SERVICES LTD,Childrens Services,900.00,Externally Purchased Professional Services ,2324P10_CR00049,163924
Sandwell Metropolitan Borough Council,http://www.sandwell.gov.uk/info/200202/performance_and_spending/1079/payments_over_500,30-Jan-2024,Childrens Services,CPC TRAINING CONSULTANTS LTD,Childrens Services,549.99,Discretionary Awards,2324P10_CR00050,91345
Sandwell Metropolitan Borough Council,http://www.sandwell.gov.uk/info/200202/performance_and_spending/1079/payments_over_500,08-Jan-2024,Childrens Services,CUSTODIAN GROUP LTD,Childrens Services,540.00,Rents,2324P10_CR00051,151637
Sandwell Metropolitan Borough Council,http://www.sandwell.gov.uk/info/200202/performance_and_spending/1079/payments_over_500,01-Jan-2024,Childrens Services,CUSTODIAN GROUP LTD,Childrens Services,630.00,Rents,2324P10_CR00052,151637
Sandwell Metropolitan Borough Council,http://www.sandwell.gov.uk/info/200202/performance_and_spending/1079/payments_over_500,01-Jan-2024,Childrens Services,CUSTODIAN GROUP LTD,Childrens Services,630.00,Rents,2324P10_CR00053,151637
Sandwell Metropolitan Borough Council,http://www.sandwell.gov.uk/info/200202/performance_and_spending/1079/payments_over_500,01-Jan-2024,Childrens Services,CUSTODIAN GROUP LTD,Childrens Services,630.00,Rents,2324P10_CR00054,151637
Sandwell Metropolitan Borough Council,http://www.sandwell.gov.uk/info/200202/performance_and_spending/1079/payments_over_500,01-Jan-2024,Childrens Services,CUSTODIAN GROUP LTD,Childrens Services,630.00,Rents,2324P10_CR00055,151637
Sandwell Metropolitan Borough Council,http://www.sandwell.gov.uk/info/200202/performance_and_spending/1079/payments_over_500,01-Jan-2024,Childrens Services,CUSTODIAN GROUP LTD,Childrens Services,630.00,Rents,2324P10_CR00056,151637
Sandwell Metropolitan Borough Council,http://www.sandwell.gov.uk/info/200202/performance_and_spending/1079/payments_over_500,01-Jan-2024,Childrens Services,CUSTODIAN GROUP LTD,Childrens Services,630.00,Rents,2324P10_CR00057,151637
Sandwell Metropolitan Borough Council,http://www.sandwell.gov.uk/info/200202/performance_and_spending/1079/payments_over_500,01-Jan-2024,Childrens Services,CUSTODIAN GROUP LTD,Childrens Services,630.00,Rents,2324P10_CR00058,151637
Sandwell Metropolitan Borough Council,http://www.sandwell.gov.uk/info/200202/performance_and_spending/1079/payments_over_500,01-Jan-2024,Childrens Services,CUSTODIAN GROUP LTD,Childrens Services,630.00,Rents,2324P10_CR00059,151637
Sandwell Metropolitan Borough Council,http://www.sandwell.gov.uk/info/200202/performance_and_spending/1079/payments_over_500,01-Jan-2024,Childrens Services,CUSTODIAN GROUP LTD,Childrens Services,630.00,Rents,2324P10_CR00060,151637
Sandwell Metropolitan Borough Council,http://www.sandwell.gov.uk/info/200202/performance_and_spending/1079/payments_over_500,01-Jan-2024,Childrens Services,CUSTODIAN GROUP LTD,Childrens Services,630.00,Rents,2324P10_CR00061,151637
Sandwell Metropolitan Borough Council,http://www.sandwell.gov.uk/info/200202/performance_and_spending/1079/payments_over_500,08-Jan-2024,Childrens Services,CUSTODIAN GROUP LTD,Childrens Services,630.00,Rents,2324P10_CR00062,151637
Sandwell Metropolitan Borough Council,http://www.sandwell.gov.uk/info/200202/performance_and_spending/1079/payments_over_500,08-Jan-2024,Childrens Services,CUSTODIAN GROUP LTD,Childrens Services,630.00,Rents,2324P10_CR00063,151637
Sandwell Metropolitan Borough Council,http://www.sandwell.gov.uk/info/200202/performance_and_spending/1079/payments_over_500,08-Jan-2024,Childrens Services,CUSTODIAN GROUP LTD,Childrens Services,630.00,Rents,2324P10_CR00064,151637
Sandwell Metropolitan Borough Council,http://www.sandwell.gov.uk/info/200202/performance_and_spending/1079/payments_over_500,08-Jan-2024,Childrens Services,CUSTODIAN GROUP LTD,Childrens Services,630.00,Rents,2324P10_CR00065,151637
Sandwell Metropolitan Borough Council,http://www.sandwell.gov.uk/info/200202/performance_and_spending/1079/payments_over_500,08-Jan-2024,Childrens Services,CUSTODIAN GROUP LTD,Childrens Services,630.00,Rents,2324P10_CR00066,151637
Sandwell Metropolitan Borough Council,http://www.sandwell.gov.uk/info/200202/performance_and_spending/1079/payments_over_500,08-Jan-2024,Childrens Services,CUSTODIAN GROUP LTD,Childrens Services,630.00,Rents,2324P10_CR00067,151637
Sandwell Metropolitan Borough Council,http://www.sandwell.gov.uk/info/200202/performance_and_spending/1079/payments_over_500,08-Jan-2024,Childrens Services,CUSTODIAN GROUP LTD,Childrens Services,630.00,Rents,2324P10_CR00068,151637
Sandwell Metropolitan Borough Council,http://www.sandwell.gov.uk/info/200202/performance_and_spending/1079/payments_over_500,08-Jan-2024,Childrens Services,CUSTODIAN GROUP LTD,Childrens Services,630.00,Rents,2324P10_CR00069,151637
Sandwell Metropolitan Borough Council,http://www.sandwell.gov.uk/info/200202/performance_and_spending/1079/payments_over_500,08-Jan-2024,Childrens Services,CUSTODIAN GROUP LTD,Childrens Services,630.00,Rents,2324P10_CR00070,151637
Sandwell Metropolitan Borough Council,http://www.sandwell.gov.uk/info/200202/performance_and_spending/1079/payments_over_500,12-Jan-2024,Childrens Services,CUSTODIAN GROUP LTD,Childrens Services,630.00,Rents,2324P10_CR00071,151637
Sandwell Metropolitan Borough Council,http://www.sandwell.gov.uk/info/200202/performance_and_spending/1079/payments_over_500,08-Jan-2024,Childrens Services,CUSTODIAN GROUP LTD,Childrens Services,630.00,Rents,2324P10_CR00072,151637
Sandwell Metropolitan Borough Council,http://www.sandwell.gov.uk/info/200202/performance_and_spending/1079/payments_over_500,08-Jan-2024,Childrens Services,CUSTODIAN GROUP LTD,Childrens Services,630.00,Rents,2324P10_CR00073,151637
Sandwell Metropolitan Borough Council,http://www.sandwell.gov.uk/info/200202/performance_and_spending/1079/payments_over_500,08-Jan-2024,Childrens Services,CUSTODIAN GROUP LTD,Childrens Services,630.00,Rents,2324P10_CR00074,151637
Sandwell Metropolitan Borough Council,http://www.sandwell.gov.uk/info/200202/performance_and_spending/1079/payments_over_500,08-Jan-2024,Childrens Services,CUSTODIAN GROUP LTD,Childrens Services,630.00,Rents,2324P10_CR00075,151637
Sandwell Metropolitan Borough Council,http://www.sandwell.gov.uk/info/200202/performance_and_spending/1079/payments_over_500,08-Jan-2024,Childrens Services,CUSTODIAN GROUP LTD,Childrens Services,630.00,Rents,2324P10_CR00076,151637
Sandwell Metropolitan Borough Council,http://www.sandwell.gov.uk/info/200202/performance_and_spending/1079/payments_over_500,12-Jan-2024,Childrens Services,CUSTODIAN GROUP LTD,Childrens Services,630.00,Rents,2324P10_CR00077,151637
Sandwell Metropolitan Borough Council,http://www.sandwell.gov.uk/info/200202/performance_and_spending/1079/payments_over_500,08-Jan-2024,Childrens Services,CUSTODIAN GROUP LTD,Childrens Services,630.00,Rents,2324P10_CR00078,151637
Sandwell Metropolitan Borough Council,http://www.sandwell.gov.uk/info/200202/performance_and_spending/1079/payments_over_500,12-Jan-2024,Childrens Services,CUSTODIAN GROUP LTD,Childrens Services,630.00,Rents,2324P10_CR00079,151637
Sandwell Metropolitan Borough Council,http://www.sandwell.gov.uk/info/200202/performance_and_spending/1079/payments_over_500,12-Jan-2024,Childrens Services,CUSTODIAN GROUP LTD,Childrens Services,630.00,Rents,2324P10_CR00080,151637
Sandwell Metropolitan Borough Council,http://www.sandwell.gov.uk/info/200202/performance_and_spending/1079/payments_over_500,12-Jan-2024,Childrens Services,CUSTODIAN GROUP LTD,Childrens Services,630.00,Rents,2324P10_CR00081,151637
Sandwell Metropolitan Borough Council,http://www.sandwell.gov.uk/info/200202/performance_and_spending/1079/payments_over_500,12-Jan-2024,Childrens Services,CUSTODIAN GROUP LTD,Childrens Services,630.00,Rents,2324P10_CR00082,151637
Sandwell Metropolitan Borough Council,http://www.sandwell.gov.uk/info/200202/performance_and_spending/1079/payments_over_500,12-Jan-2024,Childrens Services,CUSTODIAN GROUP LTD,Childrens Services,630.00,Rents,2324P10_CR00083,151637
Sandwell Metropolitan Borough Council,http://www.sandwell.gov.uk/info/200202/performance_and_spending/1079/payments_over_500,12-Jan-2024,Childrens Services,CUSTODIAN GROUP LTD,Childrens Services,630.00,Rents,2324P10_CR00084,151637
Sandwell Metropolitan Borough Council,http://www.sandwell.gov.uk/info/200202/performance_and_spending/1079/payments_over_500,01-Jan-2024,Childrens Services,DIRECTION TRAINING & MANAGEMENT,Childrens Services,500.00,Externally Purchased Professional Services ,2324P10_CR00085,01727395
Sandwell Metropolitan Borough Council,http://www.sandwell.gov.uk/info/200202/performance_and_spending/1079/payments_over_500,01-Jan-2024,Childrens Services,DR PRINT (UK) LTD,Childrens Services,1272.96,"Printing, Stationery & General Office Expenses",2324P10_CR00086,63228
Sandwell Metropolitan Borough Council,http://www.sandwell.gov.uk/info/200202/performance_and_spending/1079/payments_over_500,01-Jan-2024,Childrens Services,DR PRINT (UK) LTD,Childrens Services,3735.20,"Printing, Stationery & General Office Expenses",2324P10_CR00087,63228
Sandwell Metropolitan Borough Council,http://www.sandwell.gov.uk/info/200202/performance_and_spending/1079/payments_over_500,11-Jan-2024,Childrens Services,DROACH TRAVEL LTD,Childrens Services,577.36,Public Transport,2324P10_CR00088,06002707
Sandwell Metropolitan Borough Council,http://www.sandwell.gov.uk/info/200202/performance_and_spending/1079/payments_over_500,01-Jan-2024,Childrens Services,DROACH TRAVEL LTD,Childrens Services,4000.00,Public Transport,2324P10_CR00089,06002707
Sandwell Metropolitan Borough Council,http://www.sandwell.gov.uk/info/200202/performance_and_spending/1079/payments_over_500,01-Jan-2024,Childrens Services,DROACH TRAVEL LTD,Childrens Services,4870.00,Public Transport,2324P10_CR00090,06002707
Sandwell Metropolitan Borough Council,http://www.sandwell.gov.uk/info/200202/performance_and_spending/1079/payments_over_500,11-Jan-2024,Childrens Services,DROACH TRAVEL LTD,Childrens Services,5300.00,Public Transport,2324P10_CR00091,06002707
Sandwell Metropolitan Borough Council,http://www.sandwell.gov.uk/info/200202/performance_and_spending/1079/payments_over_500,01-Jan-2024,Childrens Services,DROACH TRAVEL LTD,Childrens Services,5950.00,Public Transport,2324P10_CR00092,06002707
Sandwell Metropolitan Borough Council,http://www.sandwell.gov.uk/info/200202/performance_and_spending/1079/payments_over_500,01-Jan-2024,Childrens Services,DROACH TRAVEL LTD,Childrens Services,6090.00,Public Transport,2324P10_CR00093,06002707
Sandwell Metropolitan Borough Council,http://www.sandwell.gov.uk/info/200202/performance_and_spending/1079/payments_over_500,15-Jan-2024,Childrens Services,DROACH TRAVEL LTD,Childrens Services,62141.06,Public Transport,2324P10_CR00094,06002707
Sandwell Metropolitan Borough Council,http://www.sandwell.gov.uk/info/200202/performance_and_spending/1079/payments_over_500,01-Jan-2024,Childrens Services,DROACH TRAVEL LTD,Childrens Services,73890.46,Public Transport,2324P10_CR00095,06002707
Sandwell Metropolitan Borough Council,http://www.sandwell.gov.uk/info/200202/performance_and_spending/1079/payments_over_500,01-Jan-2024,Childrens Services,EAGLE DESIGN LIMITED,Childrens Services,800.00,Advertising & Publicity,2324P10_CR00096,1932
Sandwell Metropolitan Borough Council,http://www.sandwell.gov.uk/info/200202/performance_and_spending/1079/payments_over_500,01-Jan-2024,Childrens Services,EAGLE DESIGN LIMITED,Childrens Services,997.50,Advertising & Publicity,2324P10_CR00097,1932
Sandwell Metropolitan Borough Council,http://www.sandwell.gov.uk/info/200202/performance_and_spending/1079/payments_over_500,01-Jan-2024,Childrens Services,EARLS GYMNASTICS CLUB,Childrens Services,1260.00,Externally Purchased Professional Services ,2324P10_CR00098,96950
Sandwell Metropolitan Borough Council,http://www.sandwell.gov.uk/info/200202/performance_and_spending/1079/payments_over_500,01-Jan-2024,Childrens Services,EON NEXT ENERGY LTD,Childrens Services,942.31,Electricity,2324P10_CR00099,149566
Sandwell Metropolitan Borough Council,http://www.sandwell.gov.uk/info/200202/performance_and_spending/1079/payments_over_500,01-Jan-2024,Childrens Services,FIRST RESPONSE (FIRST AID) LTD,Childrens Services,740.00,Externally Purchased Professional Services ,2324P10_CR00100,57372
Sandwell Metropolitan Borough Council,http://www.sandwell.gov.uk/info/200202/performance_and_spending/1079/payments_over_500,01-Jan-2024,Childrens Services,FUTURE FIRST INDEPENDENT SCHOOL,Childrens Services,1470.00,External Contract Hire,2324P10_CR00101,106165
Sandwell Metropolitan Borough Council,http://www.sandwell.gov.uk/info/200202/performance_and_spending/1079/payments_over_500,01-Jan-2024,Childrens Services,GREEN DESTINATIONS LTD,Childrens Services,118583.14,Public Transport,2324P10_CR00102,109275
Sandwell Metropolitan Borough Council,http://www.sandwell.gov.uk/info/200202/performance_and_spending/1079/payments_over_500,01-Jan-2024,Childrens Services,HAYS SPECIALIST RECRUITMENT LTD,Childrens Services,217408.38,Agency Staff,2324P10_CR00103,80349
Sandwell Metropolitan Borough Council,http://www.sandwell.gov.uk/info/200202/performance_and_spending/1079/payments_over_500,01-Jan-2024,Childrens Services,HM PRISON AND PROBATION SERVICE,Childrens Services,656.00,Other Establishments,2324P10_CR00104,134815
Sandwell Metropolitan Borough Council,http://www.sandwell.gov.uk/info/200202/performance_and_spending/1079/payments_over_500,01-Jan-2024,Childrens Services,HM PRISON AND PROBATION SERVICE,Childrens Services,5004.00,Other Establishments,2324P10_CR00105,134815
Sandwell Metropolitan Borough Council,http://www.sandwell.gov.uk/info/200202/performance_and_spending/1079/payments_over_500,01-Jan-2024,Childrens Services,HM PRISON AND PROBATION SERVICE,Childrens Services,5576.00,Other Establishments,2324P10_CR00106,134815
Sandwell Metropolitan Borough Council,http://www.sandwell.gov.uk/info/200202/performance_and_spending/1079/payments_over_500,01-Jan-2024,Childrens Services,HM PRISON AND PROBATION SERVICE,Childrens Services,6560.00,Other Establishments,2324P10_CR00107,134815
Sandwell Metropolitan Borough Council,http://www.sandwell.gov.uk/info/200202/performance_and_spending/1079/payments_over_500,01-Jan-2024,Childrens Services,HM PRISON AND PROBATION SERVICE,Childrens Services,7544.00,Other Establishments,2324P10_CR00108,134815
Sandwell Metropolitan Borough Council,http://www.sandwell.gov.uk/info/200202/performance_and_spending/1079/payments_over_500,01-Jan-2024,Childrens Services,HM PRISON AND PROBATION SERVICE,Childrens Services,10008.00,Other Establishments,2324P10_CR00109,134815
Sandwell Metropolitan Borough Council,http://www.sandwell.gov.uk/info/200202/performance_and_spending/1079/payments_over_500,01-Jan-2024,Childrens Services,HM PRISON AND PROBATION SERVICE,Childrens Services,10168.00,Other Establishments,2324P10_CR00110,134815
Sandwell Metropolitan Borough Council,http://www.sandwell.gov.uk/info/200202/performance_and_spending/1079/payments_over_500,01-Jan-2024,Childrens Services,HM PRISON AND PROBATION SERVICE,Childrens Services,25020.00,Other Establishments,2324P10_CR00111,134815
Sandwell Metropolitan Borough Council,http://www.sandwell.gov.uk/info/200202/performance_and_spending/1079/payments_over_500,01-Jan-2024,Childrens Services,HM PRISON AND PROBATION SERVICE,Childrens Services,25140.00,Other Establishments,2324P10_CR00112,134815
Sandwell Metropolitan Borough Council,http://www.sandwell.gov.uk/info/200202/performance_and_spending/1079/payments_over_500,01-Jan-2024,Childrens Services,HM PRISON AND PROBATION SERVICE,Childrens Services,25140.00,Other Establishments,2324P10_CR00113,134815
Sandwell Metropolitan Borough Council,http://www.sandwell.gov.uk/info/200202/performance_and_spending/1079/payments_over_500,01-Jan-2024,Childrens Services,HM PRISON AND PROBATION SERVICE,Childrens Services,25978.00,Other Establishments,2324P10_CR00114,134815
Sandwell Metropolitan Borough Council,http://www.sandwell.gov.uk/info/200202/performance_and_spending/1079/payments_over_500,01-Jan-2024,Childrens Services,HOGREFE LTD,Childrens Services,7100.00,Externally Purchased Professional Services ,2324P10_CR00115,166959
Sandwell Metropolitan Borough Council,http://www.sandwell.gov.uk/info/200202/performance_and_spending/1079/payments_over_500,30-Jan-2024,Childrens Services,INGESTRE ORANGERY AND GARDENS,Childrens Services,650.00,Materials & Consumables,2324P10_CR00116,127331
Sandwell Metropolitan Borough Council,http://www.sandwell.gov.uk/info/200202/performance_and_spending/1079/payments_over_500,01-Jan-2024,Childrens Services,IRON MAIDENS COMMERCIAL LAUNDRY LIMITED,Childrens Services,968.50,Laundry,2324P10_CR00117,124628
Sandwell Metropolitan Borough Council,http://www.sandwell.gov.uk/info/200202/performance_and_spending/1079/payments_over_500,01-Jan-2024,Childrens Services,IRON MAIDENS COMMERCIAL LAUNDRY LIMITED,Childrens Services,1837.73,Laundry,2324P10_CR00118,124628
Sandwell Metropolitan Borough Council,http://www.sandwell.gov.uk/info/200202/performance_and_spending/1079/payments_over_500,11-Jan-2024,Childrens Services,LIMBRICK CONSULTANCY LLP T/A THE NATIONAL SBM NETWORK,Childrens Services,1350.00,Externally Purchased Professional Services ,2324P10_CR00119,141428
Sandwell Metropolitan Borough Council,http://www.sandwell.gov.uk/info/200202/performance_and_spending/1079/payments_over_500,01-Jan-2024,Childrens Services,LOCAL GOVERMENT TRAINING,Childrens Services,875.00,Externally Purchased Professional Services ,2324P10_CR00120,162678
Sandwell Metropolitan Borough Council,http://www.sandwell.gov.uk/info/200202/performance_and_spending/1079/payments_over_500,01-Jan-2024,Childrens Services,NEW BEGINNINGS COMMUNITY,Childrens Services,600.00,Externally Purchased Professional Services ,2324P10_CR00121,155886
Sandwell Metropolitan Borough Council,http://www.sandwell.gov.uk/info/200202/performance_and_spending/1079/payments_over_500,01-Jan-2024,Childrens Services,NEW BEGINNINGS COMMUNITY,Childrens Services,600.00,Externally Purchased Professional Services ,2324P10_CR00122,155886
Sandwell Metropolitan Borough Council,http://www.sandwell.gov.uk/info/200202/performance_and_spending/1079/payments_over_500,01-Jan-2024,Childrens Services,NEW BEGINNINGS COMMUNITY,Childrens Services,600.00,Externally Purchased Professional Services ,2324P10_CR00123,155886
Sandwell Metropolitan Borough Council,http://www.sandwell.gov.uk/info/200202/performance_and_spending/1079/payments_over_500,01-Jan-2024,Childrens Services,NEW BEGINNINGS COMMUNITY,Childrens Services,600.00,Externally Purchased Professional Services ,2324P10_CR00124,155886
Sandwell Metropolitan Borough Council,http://www.sandwell.gov.uk/info/200202/performance_and_spending/1079/payments_over_500,01-Jan-2024,Childrens Services,NEWAVE LTD,Childrens Services,1125.00,Agency Staff,2324P10_CR00125,101666
Sandwell Metropolitan Borough Council,http://www.sandwell.gov.uk/info/200202/performance_and_spending/1079/payments_over_500,01-Jan-2024,Childrens Services,NEWAVE LTD,Childrens Services,2561.00,Agency Staff,2324P10_CR00126,101666
Sandwell Metropolitan Borough Council,http://www.sandwell.gov.uk/info/200202/performance_and_spending/1079/payments_over_500,01-Jan-2024,Childrens Services,NEWVISION PROMOTIONS LTD,Childrens Services,2100.00,Advertising & Publicity,2324P10_CR00127,01423582
Sandwell Metropolitan Borough Council,http://www.sandwell.gov.uk/info/200202/performance_and_spending/1079/payments_over_500,01-Jan-2024,Childrens Services,NORTH SMETHWICK DEVELOPMENT TRUST,Childrens Services,640.00,Catering Provisions,2324P10_CR00128,01346623
Sandwell Metropolitan Borough Council,http://www.sandwell.gov.uk/info/200202/performance_and_spending/1079/payments_over_500,01-Jan-2024,Childrens Services,ONE 4 YOU SERVICES LTD,Childrens Services,2358.98,Public Transport,2324P10_CR00129,81204
Sandwell Metropolitan Borough Council,http://www.sandwell.gov.uk/info/200202/performance_and_spending/1079/payments_over_500,01-Jan-2024,Childrens Services,ONE 4 YOU SERVICES LTD,Childrens Services,176716.22,Public Transport,2324P10_CR00130,81204
Sandwell Metropolitan Borough Council,http://www.sandwell.gov.uk/info/200202/performance_and_spending/1079/payments_over_500,01-Jan-2024,Childrens Services,PENNA PLC,Childrens Services,1390.00,Advertising & Publicity,2324P10_CR00131,20829
Sandwell Metropolitan Borough Council,http://www.sandwell.gov.uk/info/200202/performance_and_spending/1079/payments_over_500,01-Jan-2024,Childrens Services,PENNON WATER SERVICES T/A SOURCE FOR BUSINESS,Childrens Services,952.30,Water Services,2324P10_CR00132,131726
Sandwell Metropolitan Borough Council,http://www.sandwell.gov.uk/info/200202/performance_and_spending/1079/payments_over_500,01-Jan-2024,Childrens Services,PIONEER PEOPLE LIMITED,Childrens Services,515.40,Agency Staff,2324P10_CR00133,165385
Sandwell Metropolitan Borough Council,http://www.sandwell.gov.uk/info/200202/performance_and_spending/1079/payments_over_500,01-Jan-2024,Childrens Services,PIONEER PEOPLE LIMITED,Childrens Services,515.40,Agency Staff,2324P10_CR00134,165385
Sandwell Metropolitan Borough Council,http://www.sandwell.gov.uk/info/200202/performance_and_spending/1079/payments_over_500,01-Jan-2024,Childrens Services,PIONEER PEOPLE LIMITED,Childrens Services,523.99,Agency Staff,2324P10_CR00135,165385
Sandwell Metropolitan Borough Council,http://www.sandwell.gov.uk/info/200202/performance_and_spending/1079/payments_over_500,01-Jan-2024,Childrens Services,POWERED BY CAN LTD,Childrens Services,600.00,Externally Purchased Professional Services ,2324P10_CR00136,116825
Sandwell Metropolitan Borough Council,http://www.sandwell.gov.uk/info/200202/performance_and_spending/1079/payments_over_500,01-Jan-2024,Childrens Services,RENAISSANCE CREATIVE DESIGN & PRINT LTD,Childrens Services,575.00,Advertising & Publicity,2324P10_CR00137,97376
Sandwell Metropolitan Borough Council,http://www.sandwell.gov.uk/info/200202/performance_and_spending/1079/payments_over_500,01-Jan-2024,Childrens Services,SANDWELL CHILDREN'S TRUST,Childrens Services,1275753.93,Other Establishments,2324P10_CR00138,133302
Sandwell Metropolitan Borough Council,http://www.sandwell.gov.uk/info/200202/performance_and_spending/1079/payments_over_500,01-Jan-2024,Childrens Services,SANDWELL CONSORTIUM CIC,Childrens Services,17643.79,Grants,2324P10_CR00139,104616
Sandwell Metropolitan Borough Council,http://www.sandwell.gov.uk/info/200202/performance_and_spending/1079/payments_over_500,01-Jan-2024,Childrens Services,SIPS EDUCATION LTD,Childrens Services,2493.00,Catering Provisions,2324P10_CR00140,110784
Sandwell Metropolitan Borough Council,http://www.sandwell.gov.uk/info/200202/performance_and_spending/1079/payments_over_500,01-Jan-2024,Childrens Services,SIPS EDUCATION LTD,Childrens Services,3024.50,Catering Provisions,2324P10_CR00141,110784
Sandwell Metropolitan Borough Council,http://www.sandwell.gov.uk/info/200202/performance_and_spending/1079/payments_over_500,01-Jan-2024,Childrens Services,SIPS EDUCATION LTD,Childrens Services,3302.90,Catering Provisions,2324P10_CR00142,110784
Sandwell Metropolitan Borough Council,http://www.sandwell.gov.uk/info/200202/performance_and_spending/1079/payments_over_500,01-Jan-2024,Childrens Services,THE KALEIDOSCOPE PLUS GROUP,Childrens Services,2978.72,Grants,2324P10_CR00143,01578854
Sandwell Metropolitan Borough Council,http://www.sandwell.gov.uk/info/200202/performance_and_spending/1079/payments_over_500,01-Jan-2024,Childrens Services,THE KALEIDOSCOPE PLUS GROUP,Childrens Services,4270.67,Grants,2324P10_CR00144,01578854
Sandwell Metropolitan Borough Council,http://www.sandwell.gov.uk/info/200202/performance_and_spending/1079/payments_over_500,15-Jan-2024,Childrens Services,TIPTON COMMUNITY ASSOCIATION LTD,Childrens Services,504.00,Hire of Facilities,2324P10_CR00145,4391
Sandwell Metropolitan Borough Council,http://www.sandwell.gov.uk/info/200202/performance_and_spending/1079/payments_over_500,01-Jan-2024,Childrens Services,TOTALENERGIES GAS & POWER LTD,Childrens Services,514.35,Gas,2324P10_CR00146,107605
Sandwell Metropolitan Borough Council,http://www.sandwell.gov.uk/info/200202/performance_and_spending/1079/payments_over_500,01-Jan-2024,Childrens Services,TOTALENERGIES GAS & POWER LTD,Childrens Services,562.25,Electricity,2324P10_CR00147,107605
Sandwell Metropolitan Borough Council,http://www.sandwell.gov.uk/info/200202/performance_and_spending/1079/payments_over_500,01-Jan-2024,Childrens Services,TOTALENERGIES GAS & POWER LTD,Childrens Services,583.56,Electricity,2324P10_CR00148,107605
Sandwell Metropolitan Borough Council,http://www.sandwell.gov.uk/info/200202/performance_and_spending/1079/payments_over_500,01-Jan-2024,Childrens Services,TOTALENERGIES GAS & POWER LTD,Childrens Services,599.29,Electricity,2324P10_CR00149,107605
Sandwell Metropolitan Borough Council,http://www.sandwell.gov.uk/info/200202/performance_and_spending/1079/payments_over_500,01-Jan-2024,Childrens Services,TOTALENERGIES GAS & POWER LTD,Childrens Services,676.62,Electricity,2324P10_CR00150,107605
Sandwell Metropolitan Borough Council,http://www.sandwell.gov.uk/info/200202/performance_and_spending/1079/payments_over_500,01-Jan-2024,Childrens Services,TOTALENERGIES GAS & POWER LTD,Childrens Services,753.19,Electricity,2324P10_CR00151,107605
Sandwell Metropolitan Borough Council,http://www.sandwell.gov.uk/info/200202/performance_and_spending/1079/payments_over_500,01-Jan-2024,Childrens Services,TOTALENERGIES GAS & POWER LTD,Childrens Services,764.37,Electricity,2324P10_CR00152,107605
Sandwell Metropolitan Borough Council,http://www.sandwell.gov.uk/info/200202/performance_and_spending/1079/payments_over_500,01-Jan-2024,Childrens Services,TOTALENERGIES GAS & POWER LTD,Childrens Services,778.81,Gas,2324P10_CR00153,107605
Sandwell Metropolitan Borough Council,http://www.sandwell.gov.uk/info/200202/performance_and_spending/1079/payments_over_500,01-Jan-2024,Childrens Services,TOTALENERGIES GAS & POWER LTD,Childrens Services,819.16,Electricity,2324P10_CR00154,107605
Sandwell Metropolitan Borough Council,http://www.sandwell.gov.uk/info/200202/performance_and_spending/1079/payments_over_500,01-Jan-2024,Childrens Services,TOTALENERGIES GAS & POWER LTD,Childrens Services,841.50,Gas,2324P10_CR00155,107605
Sandwell Metropolitan Borough Council,http://www.sandwell.gov.uk/info/200202/performance_and_spending/1079/payments_over_500,01-Jan-2024,Childrens Services,TOTALENERGIES GAS & POWER LTD,Childrens Services,1070.64,Gas,2324P10_CR00156,107605
Sandwell Metropolitan Borough Council,http://www.sandwell.gov.uk/info/200202/performance_and_spending/1079/payments_over_500,01-Jan-2024,Childrens Services,TOTALENERGIES GAS & POWER LTD,Childrens Services,1090.52,Gas,2324P10_CR00157,107605
Sandwell Metropolitan Borough Council,http://www.sandwell.gov.uk/info/200202/performance_and_spending/1079/payments_over_500,01-Jan-2024,Childrens Services,TOTALENERGIES GAS & POWER LTD,Childrens Services,1172.85,Gas,2324P10_CR00158,107605
Sandwell Metropolitan Borough Council,http://www.sandwell.gov.uk/info/200202/performance_and_spending/1079/payments_over_500,01-Jan-2024,Childrens Services,TOTALENERGIES GAS & POWER LTD,Childrens Services,1318.19,Gas,2324P10_CR00159,107605
Sandwell Metropolitan Borough Council,http://www.sandwell.gov.uk/info/200202/performance_and_spending/1079/payments_over_500,01-Jan-2024,Childrens Services,TOTALENERGIES GAS & POWER LTD,Childrens Services,1402.47,Electricity,2324P10_CR00160,107605
Sandwell Metropolitan Borough Council,http://www.sandwell.gov.uk/info/200202/performance_and_spending/1079/payments_over_500,01-Jan-2024,Childrens Services,TOTALENERGIES GAS & POWER LTD,Childrens Services,1446.85,Electricity,2324P10_CR00161,107605
Sandwell Metropolitan Borough Council,http://www.sandwell.gov.uk/info/200202/performance_and_spending/1079/payments_over_500,01-Jan-2024,Childrens Services,TOTALENERGIES GAS & POWER LTD,Childrens Services,1633.35,Electricity,2324P10_CR00162,107605
Sandwell Metropolitan Borough Council,http://www.sandwell.gov.uk/info/200202/performance_and_spending/1079/payments_over_500,01-Jan-2024,Childrens Services,TOTALENERGIES GAS & POWER LTD,Childrens Services,1914.85,Electricity,2324P10_CR00163,107605
Sandwell Metropolitan Borough Council,http://www.sandwell.gov.uk/info/200202/performance_and_spending/1079/payments_over_500,30-Jan-2024,Childrens Services,TOTALENERGIES GAS & POWER LTD,Childrens Services,2176.54,Electricity,2324P10_CR00164,107605
Sandwell Metropolitan Borough Council,http://www.sandwell.gov.uk/info/200202/performance_and_spending/1079/payments_over_500,01-Jan-2024,Childrens Services,TOTALENERGIES GAS & POWER LTD,Childrens Services,2250.82,Electricity,2324P10_CR00165,107605
Sandwell Metropolitan Borough Council,http://www.sandwell.gov.uk/info/200202/performance_and_spending/1079/payments_over_500,01-Jan-2024,Childrens Services,TOTALENERGIES GAS & POWER LTD,Childrens Services,2547.23,Gas,2324P10_CR00166,107605
Sandwell Metropolitan Borough Council,http://www.sandwell.gov.uk/info/200202/performance_and_spending/1079/payments_over_500,01-Jan-2024,Childrens Services,TOTALENERGIES GAS & POWER LTD,Childrens Services,2815.98,Electricity,2324P10_CR00167,107605
Sandwell Metropolitan Borough Council,http://www.sandwell.gov.uk/info/200202/performance_and_spending/1079/payments_over_500,01-Jan-2024,Childrens Services,TOTALENERGIES GAS & POWER LTD,Childrens Services,3157.18,Electricity,2324P10_CR00168,107605
Sandwell Metropolitan Borough Council,http://www.sandwell.gov.uk/info/200202/performance_and_spending/1079/payments_over_500,30-Jan-2024,Childrens Services,TOTALENERGIES GAS & POWER LTD,Childrens Services,3189.64,Electricity,2324P10_CR00169,107605
Sandwell Metropolitan Borough Council,http://www.sandwell.gov.uk/info/200202/performance_and_spending/1079/payments_over_500,01-Jan-2024,Childrens Services,TOTALENERGIES GAS & POWER LTD,Childrens Services,3284.64,Electricity,2324P10_CR00170,107605
Sandwell Metropolitan Borough Council,http://www.sandwell.gov.uk/info/200202/performance_and_spending/1079/payments_over_500,01-Jan-2024,Childrens Services,TOTALENERGIES GAS & POWER LTD,Childrens Services,3840.97,Electricity,2324P10_CR00171,107605
Sandwell Metropolitan Borough Council,http://www.sandwell.gov.uk/info/200202/performance_and_spending/1079/payments_over_500,01-Jan-2024,Childrens Services,TOTALENERGIES GAS & POWER LTD,Childrens Services,4814.76,Gas,2324P10_CR00172,107605
Sandwell Metropolitan Borough Council,http://www.sandwell.gov.uk/info/200202/performance_and_spending/1079/payments_over_500,01-Jan-2024,Childrens Services,UNIVERSITY HOSPITALS BIRMINGHAM NHS FOUNDATION TRUST,Childrens Services,532.00,Externally Purchased Professional Services ,2324P10_CR00173,93463
Sandwell Metropolitan Borough Council,http://www.sandwell.gov.uk/info/200202/performance_and_spending/1079/payments_over_500,01-Jan-2024,Childrens Services,WATER PLUS SELECT LIMITED,Childrens Services,530.08,Water Services,2324P10_CR00174,129644
Sandwell Metropolitan Borough Council,http://www.sandwell.gov.uk/info/200202/performance_and_spending/1079/payments_over_500,19-Jan-2024,Childrens Services,WEST BROMWICH ALBION FC LTD,Childrens Services,1896.00,Hire of Facilities,2324P10_CR00175,01606624
Sandwell Metropolitan Borough Council,http://www.sandwell.gov.uk/info/200202/performance_and_spending/1079/payments_over_500,19-Jan-2024,Childrens Services,WEST BROMWICH ALBION FC LTD,Childrens Services,2017.05,Hire of Facilities,2324P10_CR00176,01606624
Sandwell Metropolitan Borough Council,http://www.sandwell.gov.uk/info/200202/performance_and_spending/1079/payments_over_500,01-Jan-2024,Childrens Services,WEST BROMWICH ALBION FC LTD,Childrens Services,3800.00,Hire of Facilities,2324P10_CR00177,01606624
Sandwell Metropolitan Borough Council,http://www.sandwell.gov.uk/info/200202/performance_and_spending/1079/payments_over_500,01-Jan-2024,Childrens Services,WEST MIDLANDS TRAVEL LIMITED,Childrens Services,808.45,Public Transport,2324P10_CR00178,01736688
Sandwell Metropolitan Borough Council,http://www.sandwell.gov.uk/info/200202/performance_and_spending/1079/payments_over_500,01-Jan-2024,Childrens Services,WEST MIDLANDS TRAVEL LIMITED,Childrens Services,2295.00,Public Transport,2324P10_CR00179,01736688
Sandwell Metropolitan Borough Council,http://www.sandwell.gov.uk/info/200202/performance_and_spending/1079/payments_over_500,01-Jan-2024,Childrens Services,WEST MIDLANDS TRAVEL LIMITED,Childrens Services,2430.00,Public Transport,2324P10_CR00180,01736688
Sandwell Metropolitan Borough Council,http://www.sandwell.gov.uk/info/200202/performance_and_spending/1079/payments_over_500,01-Jan-2024,Childrens Services,WEST MIDLANDS TRAVEL LIMITED,Childrens Services,10051.80,Public Transport,2324P10_CR00181,01736688
Sandwell Metropolitan Borough Council,http://www.sandwell.gov.uk/info/200202/performance_and_spending/1079/payments_over_500,09-Jan-2024,Childrens Services,WILD LIVES FOREST SCHOOL,Childrens Services,600.00,Externally Purchased Professional Services ,2324P10_CR00182,165176
Sandwell Metropolitan Borough Council,http://www.sandwell.gov.uk/info/200202/performance_and_spending/1079/payments_over_500,01-Jan-2024,Childrens Services,WMA COMMUNITY FITNESS CENTRE,Childrens Services,600.00,Externally Purchased Professional Services ,2324P10_CR00183,141572
Sandwell Metropolitan Borough Council,http://www.sandwell.gov.uk/info/200202/performance_and_spending/1079/payments_over_500,01-Jan-2024,Childrens Services,WYRE FOREST PEST CONTROL,Childrens Services,900.00,Pest Control,2324P10_CR00184,155392
Sandwell Metropolitan Borough Council,http://www.sandwell.gov.uk/info/200202/performance_and_spending/1079/payments_over_500,01-Jan-2024,Childrens Services,YEMENI COMMUNITY ASSOCIATION IN SANDWELL,Childrens Services,600.00,Hire of Facilities,2324P10_CR00185,01711292
Sandwell Metropolitan Borough Council,http://www.sandwell.gov.uk/info/200202/performance_and_spending/1079/payments_over_500,01-Jan-2024,Childrens Services,YOUTH FOCUS WEST MIDLANDS,Childrens Services,1190.00,Externally Purchased Professional Services ,2324P10_CR00186,112224
Sandwell Metropolitan Borough Council,http://www.sandwell.gov.uk/info/200202/performance_and_spending/1079/payments_over_500,01-Jan-2024,Childrens Services,DANIELLE CAGA,Childrens Services,540.00,Externally Purchased Professional Services ,2324P10_CR00187,167347
Sandwell Metropolitan Borough Council,http://www.sandwell.gov.uk/info/200202/performance_and_spending/1079/payments_over_500,23-Jan-2024,Childrens Services,REDACTED PERSONAL DATA,Childrens Services,1007.20,Rents,2324P10_CR00188,REDACTED PERSONAL DATA
Sandwell Metropolitan Borough Council,http://www.sandwell.gov.uk/info/200202/performance_and_spending/1079/payments_over_500,12-Jan-2024,Childrens Services,REDACTED PERSONAL DATA,Childrens Services,727.27,External Contract Hire,2324P10_CR00189,REDACTED PERSONAL DATA
Sandwell Metropolitan Borough Council,http://www.sandwell.gov.uk/info/200202/performance_and_spending/1079/payments_over_500,12-Jan-2024,Childrens Services,REDACTED PERSONAL DATA,Childrens Services,545.45,External Contract Hire,2324P10_CR00190,REDACTED PERSONAL DATA
Sandwell Metropolitan Borough Council,http://www.sandwell.gov.uk/info/200202/performance_and_spending/1079/payments_over_500,12-Jan-2024,Childrens Services,REDACTED PERSONAL DATA,Childrens Services,727.28,External Contract Hire,2324P10_CR00191,REDACTED PERSONAL DATA
Sandwell Metropolitan Borough Council,http://www.sandwell.gov.uk/info/200202/performance_and_spending/1079/payments_over_500,12-Jan-2024,Childrens Services,REDACTED PERSONAL DATA,Childrens Services,545.45,External Contract Hire,2324P10_CR00192,REDACTED PERSONAL DATA
Sandwell Metropolitan Borough Council,http://www.sandwell.gov.uk/info/200202/performance_and_spending/1079/payments_over_500,12-Jan-2024,Childrens Services,REDACTED PERSONAL DATA,Childrens Services,545.45,External Contract Hire,2324P10_CR00193,REDACTED PERSONAL DATA
Sandwell Metropolitan Borough Council,http://www.sandwell.gov.uk/info/200202/performance_and_spending/1079/payments_over_500,12-Jan-2024,Childrens Services,REDACTED PERSONAL DATA,Childrens Services,545.45,External Contract Hire,2324P10_CR00194,REDACTED PERSONAL DATA
Sandwell Metropolitan Borough Council,http://www.sandwell.gov.uk/info/200202/performance_and_spending/1079/payments_over_500,12-Jan-2024,Childrens Services,REDACTED PERSONAL DATA,Childrens Services,1090.90,External Contract Hire,2324P10_CR00195,REDACTED PERSONAL DATA
Sandwell Metropolitan Borough Council,http://www.sandwell.gov.uk/info/200202/performance_and_spending/1079/payments_over_500,12-Jan-2024,Childrens Services,REDACTED PERSONAL DATA,Childrens Services,545.45,External Contract Hire,2324P10_CR00196,REDACTED PERSONAL DATA
Sandwell Metropolitan Borough Council,http://www.sandwell.gov.uk/info/200202/performance_and_spending/1079/payments_over_500,12-Jan-2024,Childrens Services,REDACTED PERSONAL DATA,Childrens Services,545.45,External Contract Hire,2324P10_CR00197,REDACTED PERSONAL DATA
Sandwell Metropolitan Borough Council,http://www.sandwell.gov.uk/info/200202/performance_and_spending/1079/payments_over_500,12-Jan-2024,Childrens Services,REDACTED PERSONAL DATA,Childrens Services,545.45,External Contract Hire,2324P10_CR00198,REDACTED PERSONAL DATA
Sandwell Metropolitan Borough Council,http://www.sandwell.gov.uk/info/200202/performance_and_spending/1079/payments_over_500,12-Jan-2024,Childrens Services,REDACTED PERSONAL DATA,Childrens Services,545.45,External Contract Hire,2324P10_CR00199,REDACTED PERSONAL DATA
Sandwell Metropolitan Borough Council,http://www.sandwell.gov.uk/info/200202/performance_and_spending/1079/payments_over_500,12-Jan-2024,Childrens Services,REDACTED PERSONAL DATA,Childrens Services,545.45,External Contract Hire,2324P10_CR00200,REDACTED PERSONAL DATA
Sandwell Metropolitan Borough Council,http://www.sandwell.gov.uk/info/200202/performance_and_spending/1079/payments_over_500,12-Jan-2024,Childrens Services,REDACTED PERSONAL DATA,Childrens Services,545.45,External Contract Hire,2324P10_CR00201,REDACTED PERSONAL DATA
Sandwell Metropolitan Borough Council,http://www.sandwell.gov.uk/info/200202/performance_and_spending/1079/payments_over_500,12-Jan-2024,Childrens Services,REDACTED PERSONAL DATA,Childrens Services,727.28,External Contract Hire,2324P10_CR00202,REDACTED PERSONAL DATA
Sandwell Metropolitan Borough Council,http://www.sandwell.gov.uk/info/200202/performance_and_spending/1079/payments_over_500,12-Jan-2024,Childrens Services,REDACTED PERSONAL DATA,Childrens Services,727.27,External Contract Hire,2324P10_CR00203,REDACTED PERSONAL DATA
Sandwell Metropolitan Borough Council,http://www.sandwell.gov.uk/info/200202/performance_and_spending/1079/payments_over_500,15-Jan-2024,Childrens Services,REDACTED PERSONAL DATA,Childrens Services,1010.16,External Contract Hire,2324P10_CR00204,REDACTED PERSONAL DATA
Sandwell Metropolitan Borough Council,http://www.sandwell.gov.uk/info/200202/performance_and_spending/1079/payments_over_500,12-Jan-2024,Childrens Services,REDACTED PERSONAL DATA,Childrens Services,545.45,External Contract Hire,2324P10_CR00205,REDACTED PERSONAL DATA
Sandwell Metropolitan Borough Council,http://www.sandwell.gov.uk/info/200202/performance_and_spending/1079/payments_over_500,12-Jan-2024,Childrens Services,REDACTED PERSONAL DATA,Childrens Services,545.45,External Contract Hire,2324P10_CR00206,REDACTED PERSONAL DATA
Sandwell Metropolitan Borough Council,http://www.sandwell.gov.uk/info/200202/performance_and_spending/1079/payments_over_500,12-Jan-2024,Childrens Services,REDACTED PERSONAL DATA,Childrens Services,545.45,External Contract Hire,2324P10_CR00207,REDACTED PERSONAL DATA
Sandwell Metropolitan Borough Council,http://www.sandwell.gov.uk/info/200202/performance_and_spending/1079/payments_over_500,12-Jan-2024,Childrens Services,REDACTED PERSONAL DATA,Childrens Services,727.27,External Contract Hire,2324P10_CR00208,REDACTED PERSONAL DATA
Sandwell Metropolitan Borough Council,http://www.sandwell.gov.uk/info/200202/performance_and_spending/1079/payments_over_500,12-Jan-2024,Childrens Services,REDACTED PERSONAL DATA,Childrens Services,727.27,External Contract Hire,2324P10_CR00209,REDACTED PERSONAL DATA
Sandwell Metropolitan Borough Council,http://www.sandwell.gov.uk/info/200202/performance_and_spending/1079/payments_over_500,12-Jan-2024,Childrens Services,REDACTED PERSONAL DATA,Childrens Services,545.45,External Contract Hire,2324P10_CR00210,REDACTED PERSONAL DATA
Sandwell Metropolitan Borough Council,http://www.sandwell.gov.uk/info/200202/performance_and_spending/1079/payments_over_500,12-Jan-2024,Childrens Services,REDACTED PERSONAL DATA,Childrens Services,727.27,External Contract Hire,2324P10_CR00211,REDACTED PERSONAL DATA
Sandwell Metropolitan Borough Council,http://www.sandwell.gov.uk/info/200202/performance_and_spending/1079/payments_over_500,12-Jan-2024,Childrens Services,REDACTED PERSONAL DATA,Childrens Services,545.45,External Contract Hire,2324P10_CR00212,REDACTED PERSONAL DATA
Sandwell Metropolitan Borough Council,http://www.sandwell.gov.uk/info/200202/performance_and_spending/1079/payments_over_500,12-Jan-2024,Childrens Services,REDACTED PERSONAL DATA,Childrens Services,545.45,External Contract Hire,2324P10_CR00213,REDACTED PERSONAL DATA
Sandwell Metropolitan Borough Council,http://www.sandwell.gov.uk/info/200202/performance_and_spending/1079/payments_over_500,12-Jan-2024,Childrens Services,REDACTED PERSONAL DATA,Childrens Services,545.45,External Contract Hire,2324P10_CR00214,REDACTED PERSONAL DATA
Sandwell Metropolitan Borough Council,http://www.sandwell.gov.uk/info/200202/performance_and_spending/1079/payments_over_500,12-Jan-2024,Childrens Services,REDACTED PERSONAL DATA,Childrens Services,727.27,External Contract Hire,2324P10_CR00215,REDACTED PERSONAL DATA
Sandwell Metropolitan Borough Council,http://www.sandwell.gov.uk/info/200202/performance_and_spending/1079/payments_over_500,12-Jan-2024,Childrens Services,REDACTED PERSONAL DATA,Childrens Services,545.45,External Contract Hire,2324P10_CR00216,REDACTED PERSONAL DATA
Sandwell Metropolitan Borough Council,http://www.sandwell.gov.uk/info/200202/performance_and_spending/1079/payments_over_500,26-Jan-2024,Childrens Services,S.C.V.O.,Childrens Services,500000.00,Grant Payments,2324P10_CR00217,109813
Sandwell Metropolitan Borough Council,http://www.sandwell.gov.uk/info/200202/performance_and_spending/1079/payments_over_500,02-Jan-2024,Childrens Services,SADWICA DAY NURSERY,Childrens Services,9045.00,Grant Payments,2324P10_CR00218,01667892
Sandwell Metropolitan Borough Council,http://www.sandwell.gov.uk/info/200202/performance_and_spending/1079/payments_over_500,01-Jan-2024,Childrens Services Capital,BRADLEY ENVIRONMENTAL CONSULTANTS LTD,Childrens Services Capital,1204.60,"CIP - New Construction,Conversion, Enhancement & Reno",2324P10_CR00219,01150424
Sandwell Metropolitan Borough Council,http://www.sandwell.gov.uk/info/200202/performance_and_spending/1079/payments_over_500,01-Jan-2024,Childrens Services Capital,BRADLEY ENVIRONMENTAL CONSULTANTS LTD,Childrens Services Capital,2943.06,"CIP - New Construction,Conversion, Enhancement & Reno",2324P10_CR00220,01150424
Sandwell Metropolitan Borough Council,http://www.sandwell.gov.uk/info/200202/performance_and_spending/1079/payments_over_500,01-Jan-2024,Childrens Services Capital,BRADLEY ENVIRONMENTAL CONSULTANTS LTD,Childrens Services Capital,3143.97,"CIP - New Construction,Conversion, Enhancement & Reno",2324P10_CR00221,01150424
Sandwell Metropolitan Borough Council,http://www.sandwell.gov.uk/info/200202/performance_and_spending/1079/payments_over_500,29-Jan-2024,Childrens Services Capital,SEDDON CONSTRUCTION LIMITED,Childrens Services Capital,15579.08,"CIP - New Construction,Conversion, Enhancement & Reno",2324P10_CR00222,132999
Sandwell Metropolitan Borough Council,http://www.sandwell.gov.uk/info/200202/performance_and_spending/1079/payments_over_500,01-Jan-2024,Corporate Management,WEST MIDLANDS GROWTH COMPANY LTD,Corporate Management,600.00,Conference Expenses,2324P10_CR00223,134460
Sandwell Metropolitan Borough Council,http://www.sandwell.gov.uk/info/200202/performance_and_spending/1079/payments_over_500,23-Jan-2024,FINANCE (Inc SIU),BARTLETTS  SOLICITORS,Assistant Chief Executive (Excl SIU),12484.20,Insurance,2324P10_CR00224,116212
Sandwell Metropolitan Borough Council,http://www.sandwell.gov.uk/info/200202/performance_and_spending/1079/payments_over_500,22-Jan-2024,FINANCE (Inc SIU),BROWNE JACOBSON LLP,Assistant Chief Executive (Excl SIU),574.60,Externally Purchased Professional Services ,2324P10_CR00225,109574
Sandwell Metropolitan Borough Council,http://www.sandwell.gov.uk/info/200202/performance_and_spending/1079/payments_over_500,12-Jan-2024,FINANCE (Inc SIU),BROWNE JACOBSON LLP,Assistant Chief Executive (Excl SIU),582.80,Externally Purchased Professional Services ,2324P10_CR00226,109574
Sandwell Metropolitan Borough Council,http://www.sandwell.gov.uk/info/200202/performance_and_spending/1079/payments_over_500,22-Jan-2024,FINANCE (Inc SIU),BROWNE JACOBSON LLP,Assistant Chief Executive (Excl SIU),750.00,Externally Purchased Professional Services ,2324P10_CR00227,109574
Sandwell Metropolitan Borough Council,http://www.sandwell.gov.uk/info/200202/performance_and_spending/1079/payments_over_500,31-Jan-2024,FINANCE (Inc SIU),BROWNE JACOBSON LLP,Assistant Chief Executive (Excl SIU),1014.00,Externally Purchased Professional Services ,2324P10_CR00228,109574
Sandwell Metropolitan Borough Council,http://www.sandwell.gov.uk/info/200202/performance_and_spending/1079/payments_over_500,04-Jan-2024,FINANCE (Inc SIU),BROWNE JACOBSON LLP,Assistant Chief Executive (Excl SIU),1073.50,Externally Purchased Professional Services ,2324P10_CR00229,109574
Sandwell Metropolitan Borough Council,http://www.sandwell.gov.uk/info/200202/performance_and_spending/1079/payments_over_500,04-Jan-2024,FINANCE (Inc SIU),BROWNE JACOBSON LLP,Assistant Chief Executive (Excl SIU),1235.00,Externally Purchased Professional Services ,2324P10_CR00230,109574
Sandwell Metropolitan Borough Council,http://www.sandwell.gov.uk/info/200202/performance_and_spending/1079/payments_over_500,23-Jan-2024,FINANCE (Inc SIU),BROWNE JACOBSON LLP,Assistant Chief Executive (Excl SIU),1318.20,Externally Purchased Professional Services ,2324P10_CR00231,109574
Sandwell Metropolitan Borough Council,http://www.sandwell.gov.uk/info/200202/performance_and_spending/1079/payments_over_500,12-Jan-2024,FINANCE (Inc SIU),BROWNE JACOBSON LLP,Assistant Chief Executive (Excl SIU),1791.40,Externally Purchased Professional Services ,2324P10_CR00232,109574
Sandwell Metropolitan Borough Council,http://www.sandwell.gov.uk/info/200202/performance_and_spending/1079/payments_over_500,08-Jan-2024,FINANCE (Inc SIU),BROWNE JACOBSON LLP,Assistant Chief Executive (Excl SIU),1958.00,Externally Purchased Professional Services ,2324P10_CR00233,109574
Sandwell Metropolitan Borough Council,http://www.sandwell.gov.uk/info/200202/performance_and_spending/1079/payments_over_500,25-Jan-2024,FINANCE (Inc SIU),BROWNE JACOBSON LLP,Assistant Chief Executive (Excl SIU),2937.80,Externally Purchased Professional Services ,2324P10_CR00234,109574
Sandwell Metropolitan Borough Council,http://www.sandwell.gov.uk/info/200202/performance_and_spending/1079/payments_over_500,31-Jan-2024,FINANCE (Inc SIU),BROWNE JACOBSON LLP,Assistant Chief Executive (Excl SIU),3244.80,Externally Purchased Professional Services ,2324P10_CR00235,109574
Sandwell Metropolitan Borough Council,http://www.sandwell.gov.uk/info/200202/performance_and_spending/1079/payments_over_500,23-Jan-2024,FINANCE (Inc SIU),BROWNE JACOBSON LLP,Assistant Chief Executive (Excl SIU),3795.50,Externally Purchased Professional Services ,2324P10_CR00236,109574
Sandwell Metropolitan Borough Council,http://www.sandwell.gov.uk/info/200202/performance_and_spending/1079/payments_over_500,11-Jan-2024,FINANCE (Inc SIU),BROWNE JACOBSON LLP,Assistant Chief Executive (Excl SIU),3989.70,Externally Purchased Professional Services ,2324P10_CR00237,109574
Sandwell Metropolitan Borough Council,http://www.sandwell.gov.uk/info/200202/performance_and_spending/1079/payments_over_500,11-Jan-2024,FINANCE (Inc SIU),BROWNE JACOBSON LLP,Assistant Chief Executive (Excl SIU),4774.20,Externally Purchased Professional Services ,2324P10_CR00238,109574
Sandwell Metropolitan Borough Council,http://www.sandwell.gov.uk/info/200202/performance_and_spending/1079/payments_over_500,11-Jan-2024,FINANCE (Inc SIU),BROWNE JACOBSON LLP,Assistant Chief Executive (Excl SIU),6588.20,Externally Purchased Professional Services ,2324P10_CR00239,109574
Sandwell Metropolitan Borough Council,http://www.sandwell.gov.uk/info/200202/performance_and_spending/1079/payments_over_500,08-Jan-2024,FINANCE (Inc SIU),CHESHIRE ESTATE & LEGAL,Assistant Chief Executive (Excl SIU),6000.00,Insurance,2324P10_CR00240,139926
Sandwell Metropolitan Borough Council,http://www.sandwell.gov.uk/info/200202/performance_and_spending/1079/payments_over_500,05-Jan-2024,FINANCE (Inc SIU),DRISCOLL KINGSTON SOLICITORS,Assistant Chief Executive (Excl SIU),4178.64,Insurance,2324P10_CR00241,140883
Sandwell Metropolitan Borough Council,http://www.sandwell.gov.uk/info/200202/performance_and_spending/1079/payments_over_500,31-Jan-2024,FINANCE (Inc SIU),DRISCOLL KINGSTON SOLICITORS,Assistant Chief Executive (Excl SIU),13500.00,Insurance,2324P10_CR00242,140883
Sandwell Metropolitan Borough Council,http://www.sandwell.gov.uk/info/200202/performance_and_spending/1079/payments_over_500,12-Jan-2024,FINANCE (Inc SIU),DWP,Assistant Chief Executive (Excl SIU),743.00,Insurance,2324P10_CR00243,01753867
Sandwell Metropolitan Borough Council,http://www.sandwell.gov.uk/info/200202/performance_and_spending/1079/payments_over_500,05-Jan-2024,FINANCE (Inc SIU),DWP,Assistant Chief Executive (Excl SIU),4800.00,Insurance,2324P10_CR00244,01753867
Sandwell Metropolitan Borough Council,http://www.sandwell.gov.uk/info/200202/performance_and_spending/1079/payments_over_500,10-Jan-2024,FINANCE (Inc SIU),EMERALD LAW LTD,Assistant Chief Executive (Excl SIU),12000.00,Insurance,2324P10_CR00245,151068
Sandwell Metropolitan Borough Council,http://www.sandwell.gov.uk/info/200202/performance_and_spending/1079/payments_over_500,26-Jan-2024,FINANCE (Inc SIU),FARLEYS SOLICITORS LLP CLIENT ACCOUNT,Assistant Chief Executive (Excl SIU),51000.00,Insurance,2324P10_CR00246,167906
Sandwell Metropolitan Borough Council,http://www.sandwell.gov.uk/info/200202/performance_and_spending/1079/payments_over_500,23-Jan-2024,FINANCE (Inc SIU),GOWING LAW SOLICITORS,Assistant Chief Executive (Excl SIU),2375.00,Insurance,2324P10_CR00247,163069
Sandwell Metropolitan Borough Council,http://www.sandwell.gov.uk/info/200202/performance_and_spending/1079/payments_over_500,01-Jan-2024,FINANCE (Inc SIU),GOWING LAW SOLICITORS,Assistant Chief Executive (Excl SIU),7500.00,Insurance,2324P10_CR00248,163069
Sandwell Metropolitan Borough Council,http://www.sandwell.gov.uk/info/200202/performance_and_spending/1079/payments_over_500,18-Jan-2024,FINANCE (Inc SIU),NEWLAW SOLICITORS,Assistant Chief Executive (Excl SIU),3996.00,Insurance,2324P10_CR00249,118813
Sandwell Metropolitan Borough Council,http://www.sandwell.gov.uk/info/200202/performance_and_spending/1079/payments_over_500,05-Jan-2024,FINANCE (Inc SIU),NEWLAW SOLICITORS,Assistant Chief Executive (Excl SIU),15500.00,Insurance,2324P10_CR00250,118813
Sandwell Metropolitan Borough Council,http://www.sandwell.gov.uk/info/200202/performance_and_spending/1079/payments_over_500,31-Jan-2024,FINANCE (Inc SIU),ROBERT BINGHAM LTD,Assistant Chief Executive (Excl SIU),5250.00,Insurance,2324P10_CR00251,164179
Sandwell Metropolitan Borough Council,http://www.sandwell.gov.uk/info/200202/performance_and_spending/1079/payments_over_500,18-Jan-2024,FINANCE (Inc SIU),ROBERT BINGHAM LTD,Assistant Chief Executive (Excl SIU),6875.00,Insurance,2324P10_CR00252,164179
Sandwell Metropolitan Borough Council,http://www.sandwell.gov.uk/info/200202/performance_and_spending/1079/payments_over_500,23-Jan-2024,FINANCE (Inc SIU),ROSS ALDRIDGE SOLICITORS,Assistant Chief Executive (Excl SIU),5394.00,Insurance,2324P10_CR00253,93780
Sandwell Metropolitan Borough Council,http://www.sandwell.gov.uk/info/200202/performance_and_spending/1079/payments_over_500,15-Jan-2024,FINANCE (Inc SIU),SATCHELL MORAN SOLICITORS,Assistant Chief Executive (Excl SIU),10000.00,Insurance,2324P10_CR00254,154265
Sandwell Metropolitan Borough Council,http://www.sandwell.gov.uk/info/200202/performance_and_spending/1079/payments_over_500,16-Jan-2024,FINANCE (Inc SIU),SEDGWICK INTERNATIONAL UK,Assistant Chief Executive (Excl SIU),950.00,Externally Purchased Professional Services ,2324P10_CR00255,136510
Sandwell Metropolitan Borough Council,http://www.sandwell.gov.uk/info/200202/performance_and_spending/1079/payments_over_500,23-Jan-2024,FINANCE (Inc SIU),SEDGWICK INTERNATIONAL UK,Assistant Chief Executive (Excl SIU),985.00,Externally Purchased Professional Services ,2324P10_CR00256,136510
Sandwell Metropolitan Borough Council,http://www.sandwell.gov.uk/info/200202/performance_and_spending/1079/payments_over_500,23-Jan-2024,FINANCE (Inc SIU),THE ACCOUNTANT GENERAL OF THE SENIOR COURTS,Assistant Chief Executive (Excl SIU),7000.00,Insurance,2324P10_CR00257,5091
Sandwell Metropolitan Borough Council,http://www.sandwell.gov.uk/info/200202/performance_and_spending/1079/payments_over_500,10-Jan-2024,FINANCE (Inc SIU),VERITAS SOLICITORS,Assistant Chief Executive (Excl SIU),2748.00,Insurance,2324P10_CR00258,163336
Sandwell Metropolitan Borough Council,http://www.sandwell.gov.uk/info/200202/performance_and_spending/1079/payments_over_500,23-Jan-2024,FINANCE (Inc SIU),REDACTED PERSONAL DATA,Assistant Chief Executive (Excl SIU),1000.00,Insurance,2324P10_CR00259,REDACTED PERSONAL DATA
Sandwell Metropolitan Borough Council,http://www.sandwell.gov.uk/info/200202/performance_and_spending/1079/payments_over_500,05-Jan-2024,FINANCE (Inc SIU),REDACTED PERSONAL DATA,Assistant Chief Executive (Excl SIU),1566.00,Insurance,2324P10_CR00260,REDACTED PERSONAL DATA
Sandwell Metropolitan Borough Council,http://www.sandwell.gov.uk/info/200202/performance_and_spending/1079/payments_over_500,01-Jan-2024,FINANCE (Inc SIU),AMBIENT PEOPLE LTD,Assistant Chief Executive (Excl SIU),690.00,Agency Staff,2324P10_CR00261,165446
Sandwell Metropolitan Borough Council,http://www.sandwell.gov.uk/info/200202/performance_and_spending/1079/payments_over_500,19-Jan-2024,FINANCE (Inc SIU),AMBIENT PEOPLE LTD,Assistant Chief Executive (Excl SIU),2760.00,Agency Staff,2324P10_CR00262,165446
Sandwell Metropolitan Borough Council,http://www.sandwell.gov.uk/info/200202/performance_and_spending/1079/payments_over_500,01-Jan-2024,FINANCE (Inc SIU),AMBIENT PEOPLE LTD,Assistant Chief Executive (Excl SIU),3450.00,Agency Staff,2324P10_CR00263,165446
Sandwell Metropolitan Borough Council,http://www.sandwell.gov.uk/info/200202/performance_and_spending/1079/payments_over_500,01-Jan-2024,FINANCE (Inc SIU),AMBIENT PEOPLE LTD,Assistant Chief Executive (Excl SIU),3450.00,Agency Staff,2324P10_CR00264,165446
Sandwell Metropolitan Borough Council,http://www.sandwell.gov.uk/info/200202/performance_and_spending/1079/payments_over_500,01-Jan-2024,FINANCE (Inc SIU),AMBIENT PEOPLE LTD,Assistant Chief Executive (Excl SIU),3450.00,Agency Staff,2324P10_CR00265,165446
Sandwell Metropolitan Borough Council,http://www.sandwell.gov.uk/info/200202/performance_and_spending/1079/payments_over_500,01-Jan-2024,FINANCE (Inc SIU),AMBIENT PEOPLE LTD,Assistant Chief Executive (Excl SIU),3450.00,Agency Staff,2324P10_CR00266,165446
Sandwell Metropolitan Borough Council,http://www.sandwell.gov.uk/info/200202/performance_and_spending/1079/payments_over_500,01-Jan-2024,FINANCE (Inc SIU),AMBIENT PEOPLE LTD,Assistant Chief Executive (Excl SIU),3450.00,Agency Staff,2324P10_CR00267,165446
Sandwell Metropolitan Borough Council,http://www.sandwell.gov.uk/info/200202/performance_and_spending/1079/payments_over_500,19-Jan-2024,FINANCE (Inc SIU),AMBIENT PEOPLE LTD,Assistant Chief Executive (Excl SIU),3450.00,Agency Staff,2324P10_CR00268,165446
Sandwell Metropolitan Borough Council,http://www.sandwell.gov.uk/info/200202/performance_and_spending/1079/payments_over_500,01-Jan-2024,FINANCE (Inc SIU),CAMMAX LTD,Assistant Chief Executive (Excl SIU),1454.12,Equipment & Furniture ,2324P10_CR00269,140126
Sandwell Metropolitan Borough Council,http://www.sandwell.gov.uk/info/200202/performance_and_spending/1079/payments_over_500,01-Jan-2024,FINANCE (Inc SIU),CENTERPRISE INTERNATIONAL LTD,Assistant Chief Executive (Excl SIU),19786.87,Externally Purchased Professional Services ,2324P10_CR00270,10029
Sandwell Metropolitan Borough Council,http://www.sandwell.gov.uk/info/200202/performance_and_spending/1079/payments_over_500,01-Jan-2024,FINANCE (Inc SIU),CIPFA C.CO,Assistant Chief Executive (Excl SIU),4875.00,Externally Purchased Professional Services ,2324P10_CR00271,134304
Sandwell Metropolitan Borough Council,http://www.sandwell.gov.uk/info/200202/performance_and_spending/1079/payments_over_500,01-Jan-2024,FINANCE (Inc SIU),CIPFA C.CO,Assistant Chief Executive (Excl SIU),6500.00,Externally Purchased Professional Services ,2324P10_CR00272,134304
Sandwell Metropolitan Borough Council,http://www.sandwell.gov.uk/info/200202/performance_and_spending/1079/payments_over_500,01-Jan-2024,FINANCE (Inc SIU),CIPFA C.CO,Assistant Chief Executive (Excl SIU),9800.00,Externally Purchased Professional Services ,2324P10_CR00273,134304
Sandwell Metropolitan Borough Council,http://www.sandwell.gov.uk/info/200202/performance_and_spending/1079/payments_over_500,01-Jan-2024,FINANCE (Inc SIU),CIPFA C.CO,Assistant Chief Executive (Excl SIU),10000.00,Externally Purchased Professional Services ,2324P10_CR00274,134304
Sandwell Metropolitan Borough Council,http://www.sandwell.gov.uk/info/200202/performance_and_spending/1079/payments_over_500,01-Jan-2024,FINANCE (Inc SIU),CIPFA C.CO,Assistant Chief Executive (Excl SIU),10725.80,Externally Purchased Professional Services ,2324P10_CR00275,134304
Sandwell Metropolitan Borough Council,http://www.sandwell.gov.uk/info/200202/performance_and_spending/1079/payments_over_500,01-Jan-2024,FINANCE (Inc SIU),CIPFA C.CO,Assistant Chief Executive (Excl SIU),14135.08,Externally Purchased Professional Services ,2324P10_CR00276,134304
Sandwell Metropolitan Borough Council,http://www.sandwell.gov.uk/info/200202/performance_and_spending/1079/payments_over_500,01-Jan-2024,FINANCE (Inc SIU),CIPFA C.CO,Assistant Chief Executive (Excl SIU),23000.00,Externally Purchased Professional Services ,2324P10_CR00277,134304
Sandwell Metropolitan Borough Council,http://www.sandwell.gov.uk/info/200202/performance_and_spending/1079/payments_over_500,01-Jan-2024,FINANCE (Inc SIU),CIPFA C.CO,Assistant Chief Executive (Excl SIU),26000.00,Externally Purchased Professional Services ,2324P10_CR00278,134304
Sandwell Metropolitan Borough Council,http://www.sandwell.gov.uk/info/200202/performance_and_spending/1079/payments_over_500,01-Jan-2024,FINANCE (Inc SIU),CIPFA C.CO,Assistant Chief Executive (Excl SIU),34728.56,Externally Purchased Professional Services ,2324P10_CR00279,134304
Sandwell Metropolitan Borough Council,http://www.sandwell.gov.uk/info/200202/performance_and_spending/1079/payments_over_500,01-Jan-2024,FINANCE (Inc SIU),DEPARTMENT OF ENERGY SECURITY AND NET ZERO,Assistant Chief Executive (Excl SIU),896920.00,Government Grants & Subsidies,2324P10_CR00280,167783
Sandwell Metropolitan Borough Council,http://www.sandwell.gov.uk/info/200202/performance_and_spending/1079/payments_over_500,19-Jan-2024,FINANCE (Inc SIU),EKAL SOLUTIONS LIMITED,Assistant Chief Executive (Excl SIU),2340.00,Agency Staff,2324P10_CR00281,166571
Sandwell Metropolitan Borough Council,http://www.sandwell.gov.uk/info/200202/performance_and_spending/1079/payments_over_500,01-Jan-2024,FINANCE (Inc SIU),EKAL SOLUTIONS LIMITED,Assistant Chief Executive (Excl SIU),2632.50,Agency Staff,2324P10_CR00282,166571
Sandwell Metropolitan Borough Council,http://www.sandwell.gov.uk/info/200202/performance_and_spending/1079/payments_over_500,01-Jan-2024,FINANCE (Inc SIU),EKAL SOLUTIONS LIMITED,Assistant Chief Executive (Excl SIU),2925.00,Agency Staff,2324P10_CR00283,166571
Sandwell Metropolitan Borough Council,http://www.sandwell.gov.uk/info/200202/performance_and_spending/1079/payments_over_500,01-Jan-2024,FINANCE (Inc SIU),EKAL SOLUTIONS LIMITED,Assistant Chief Executive (Excl SIU),2925.00,Agency Staff,2324P10_CR00284,166571
Sandwell Metropolitan Borough Council,http://www.sandwell.gov.uk/info/200202/performance_and_spending/1079/payments_over_500,01-Jan-2024,FINANCE (Inc SIU),G4S CASH SOLUTIONS (UK) LTD,Assistant Chief Executive (Excl SIU),736.08,Cash Collections,2324P10_CR00285,01606348
Sandwell Metropolitan Borough Council,http://www.sandwell.gov.uk/info/200202/performance_and_spending/1079/payments_over_500,19-Jan-2024,FINANCE (Inc SIU),GATENBYSANDERSON LTD,Assistant Chief Executive (Excl SIU),12017.50,Agency Staff,2324P10_CR00286,50038
Sandwell Metropolitan Borough Council,http://www.sandwell.gov.uk/info/200202/performance_and_spending/1079/payments_over_500,14-Jan-2024,FINANCE (Inc SIU),GATENBYSANDERSON LTD,Assistant Chief Executive (Excl SIU),18975.00,Agency Staff,2324P10_CR00287,50038
Sandwell Metropolitan Borough Council,http://www.sandwell.gov.uk/info/200202/performance_and_spending/1079/payments_over_500,01-Jan-2024,FINANCE (Inc SIU),GRANT THORNTON UK LLP,Assistant Chief Executive (Excl SIU),7500.00,Externally Purchased Professional Services ,2324P10_CR00288,74713
Sandwell Metropolitan Borough Council,http://www.sandwell.gov.uk/info/200202/performance_and_spending/1079/payments_over_500,01-Jan-2024,FINANCE (Inc SIU),GRANT THORNTON UK LLP,Assistant Chief Executive (Excl SIU),8000.00,Externally Purchased Professional Services ,2324P10_CR00289,74713
Sandwell Metropolitan Borough Council,http://www.sandwell.gov.uk/info/200202/performance_and_spending/1079/payments_over_500,01-Jan-2024,FINANCE (Inc SIU),GREENHALGH KERR SOLICITORS LIMITED,Assistant Chief Executive (Excl SIU),1409.00,Externally Purchased Professional Services ,2324P10_CR00290,127273
Sandwell Metropolitan Borough Council,http://www.sandwell.gov.uk/info/200202/performance_and_spending/1079/payments_over_500,01-Jan-2024,FINANCE (Inc SIU),GREENHALGH KERR SOLICITORS LIMITED,Assistant Chief Executive (Excl SIU),1824.00,Externally Purchased Professional Services ,2324P10_CR00291,127273
Sandwell Metropolitan Borough Council,http://www.sandwell.gov.uk/info/200202/performance_and_spending/1079/payments_over_500,14-Jan-2024,FINANCE (Inc SIU),HAYS SPECIALIST RECRUITMENT LTD,Assistant Chief Executive (Excl SIU),162842.81,Agency Staff,2324P10_CR00292,80349
Sandwell Metropolitan Borough Council,http://www.sandwell.gov.uk/info/200202/performance_and_spending/1079/payments_over_500,10-Jan-2024,FINANCE (Inc SIU),HAYS SPECIALIST RECRUITMENT LTD,Assistant Chief Executive (Excl SIU),165254.09,Agency Staff,2324P10_CR00293,80349
Sandwell Metropolitan Borough Council,http://www.sandwell.gov.uk/info/200202/performance_and_spending/1079/payments_over_500,01-Jan-2024,FINANCE (Inc SIU),INOAPPS LIMITED,Assistant Chief Executive (Excl SIU),7700.00,Externally Purchased Professional Services ,2324P10_CR00294,122364
Sandwell Metropolitan Borough Council,http://www.sandwell.gov.uk/info/200202/performance_and_spending/1079/payments_over_500,01-Jan-2024,FINANCE (Inc SIU),KPMG LLP,Assistant Chief Executive (Excl SIU),24000.00,Externally Purchased Professional Services ,2324P10_CR00295,01164043
Sandwell Metropolitan Borough Council,http://www.sandwell.gov.uk/info/200202/performance_and_spending/1079/payments_over_500,01-Jan-2024,FINANCE (Inc SIU),LAVAT CONSULTING LIMITED T/A PSTAX,Assistant Chief Executive (Excl SIU),1000.00,Externally Purchased Professional Services ,2324P10_CR00296,127781
Sandwell Metropolitan Borough Council,http://www.sandwell.gov.uk/info/200202/performance_and_spending/1079/payments_over_500,01-Jan-2024,FINANCE (Inc SIU),LAVAT CONSULTING LIMITED T/A PSTAX,Assistant Chief Executive (Excl SIU),18000.00,Consultancy,2324P10_CR00297,127781
Sandwell Metropolitan Borough Council,http://www.sandwell.gov.uk/info/200202/performance_and_spending/1079/payments_over_500,14-Jan-2024,FINANCE (Inc SIU),MACILDOWIE ASSOCIATES LTD,Assistant Chief Executive (Excl SIU),737.10,Agency Staff,2324P10_CR00298,164797
Sandwell Metropolitan Borough Council,http://www.sandwell.gov.uk/info/200202/performance_and_spending/1079/payments_over_500,14-Jan-2024,FINANCE (Inc SIU),MACILDOWIE ASSOCIATES LTD,Assistant Chief Executive (Excl SIU),1404.00,Agency Staff,2324P10_CR00299,164797
Sandwell Metropolitan Borough Council,http://www.sandwell.gov.uk/info/200202/performance_and_spending/1079/payments_over_500,14-Jan-2024,FINANCE (Inc SIU),MACILDOWIE ASSOCIATES LTD,Assistant Chief Executive (Excl SIU),1474.20,Agency Staff,2324P10_CR00300,164797
Sandwell Metropolitan Borough Council,http://www.sandwell.gov.uk/info/200202/performance_and_spending/1079/payments_over_500,14-Jan-2024,FINANCE (Inc SIU),MACILDOWIE ASSOCIATES LTD,Assistant Chief Executive (Excl SIU),1474.20,Agency Staff,2324P10_CR00301,164797
Sandwell Metropolitan Borough Council,http://www.sandwell.gov.uk/info/200202/performance_and_spending/1079/payments_over_500,01-Jan-2024,FINANCE (Inc SIU),MACILDOWIE ASSOCIATES LTD,Assistant Chief Executive (Excl SIU),2106.00,Agency Staff,2324P10_CR00302,164797
Sandwell Metropolitan Borough Council,http://www.sandwell.gov.uk/info/200202/performance_and_spending/1079/payments_over_500,14-Jan-2024,FINANCE (Inc SIU),MACILDOWIE ASSOCIATES LTD,Assistant Chief Executive (Excl SIU),2211.30,Agency Staff,2324P10_CR00303,164797
Sandwell Metropolitan Borough Council,http://www.sandwell.gov.uk/info/200202/performance_and_spending/1079/payments_over_500,14-Jan-2024,FINANCE (Inc SIU),MACILDOWIE ASSOCIATES LTD,Assistant Chief Executive (Excl SIU),2211.30,Agency Staff,2324P10_CR00304,164797
Sandwell Metropolitan Borough Council,http://www.sandwell.gov.uk/info/200202/performance_and_spending/1079/payments_over_500,01-Jan-2024,FINANCE (Inc SIU),MACILDOWIE ASSOCIATES LTD,Assistant Chief Executive (Excl SIU),2808.00,Agency Staff,2324P10_CR00305,164797
Sandwell Metropolitan Borough Council,http://www.sandwell.gov.uk/info/200202/performance_and_spending/1079/payments_over_500,14-Jan-2024,FINANCE (Inc SIU),MACILDOWIE ASSOCIATES LTD,Assistant Chief Executive (Excl SIU),2928.00,Agency Staff,2324P10_CR00306,164797
Sandwell Metropolitan Borough Council,http://www.sandwell.gov.uk/info/200202/performance_and_spending/1079/payments_over_500,03-Jan-2024,FINANCE (Inc SIU),MACILDOWIE ASSOCIATES LTD,Assistant Chief Executive (Excl SIU),3510.00,Agency Staff,2324P10_CR00307,164797
Sandwell Metropolitan Borough Council,http://www.sandwell.gov.uk/info/200202/performance_and_spending/1079/payments_over_500,01-Jan-2024,FINANCE (Inc SIU),MACILDOWIE ASSOCIATES LTD,Assistant Chief Executive (Excl SIU),3510.00,Agency Staff,2324P10_CR00308,164797
Sandwell Metropolitan Borough Council,http://www.sandwell.gov.uk/info/200202/performance_and_spending/1079/payments_over_500,01-Jan-2024,FINANCE (Inc SIU),MACILDOWIE ASSOCIATES LTD,Assistant Chief Executive (Excl SIU),3510.00,Agency Staff,2324P10_CR00309,164797
Sandwell Metropolitan Borough Council,http://www.sandwell.gov.uk/info/200202/performance_and_spending/1079/payments_over_500,14-Jan-2024,FINANCE (Inc SIU),MACILDOWIE ASSOCIATES LTD,Assistant Chief Executive (Excl SIU),3510.00,Agency Staff,2324P10_CR00310,164797
Sandwell Metropolitan Borough Council,http://www.sandwell.gov.uk/info/200202/performance_and_spending/1079/payments_over_500,14-Jan-2024,FINANCE (Inc SIU),MACILDOWIE ASSOCIATES LTD,Assistant Chief Executive (Excl SIU),3660.00,Agency Staff,2324P10_CR00311,164797
Sandwell Metropolitan Borough Council,http://www.sandwell.gov.uk/info/200202/performance_and_spending/1079/payments_over_500,01-Jan-2024,FINANCE (Inc SIU),MACILDOWIE ASSOCIATES LTD,Assistant Chief Executive (Excl SIU),4212.00,Agency Staff,2324P10_CR00312,164797
Sandwell Metropolitan Borough Council,http://www.sandwell.gov.uk/info/200202/performance_and_spending/1079/payments_over_500,01-Jan-2024,FINANCE (Inc SIU),NEC SOFTWARE SOLUTIONS UK LTD,Assistant Chief Executive (Excl SIU),1950.00,Private Contractors,2324P10_CR00313,56043
Sandwell Metropolitan Borough Council,http://www.sandwell.gov.uk/info/200202/performance_and_spending/1079/payments_over_500,01-Jan-2024,FINANCE (Inc SIU),NEC SOFTWARE SOLUTIONS UK LTD,Assistant Chief Executive (Excl SIU),3120.00,Private Contractors,2324P10_CR00314,56043
Sandwell Metropolitan Borough Council,http://www.sandwell.gov.uk/info/200202/performance_and_spending/1079/payments_over_500,01-Jan-2024,FINANCE (Inc SIU),NHS PENSIONS,Assistant Chief Executive (Excl SIU),3197.79,Externally Purchased Professional Services ,2324P10_CR00315,141186
Sandwell Metropolitan Borough Council,http://www.sandwell.gov.uk/info/200202/performance_and_spending/1079/payments_over_500,01-Jan-2024,FINANCE (Inc SIU),ORACLE CORPORATION UK LTD,Assistant Chief Executive (Excl SIU),143766.00,Externally Purchased Professional Services ,2324P10_CR00316,01539742
Sandwell Metropolitan Borough Council,http://www.sandwell.gov.uk/info/200202/performance_and_spending/1079/payments_over_500,01-Jan-2024,FINANCE (Inc SIU),ORACLE CORPORATION UK LTD,Assistant Chief Executive (Excl SIU),175714.00,Externally Purchased Professional Services ,2324P10_CR00317,01539742
Sandwell Metropolitan Borough Council,http://www.sandwell.gov.uk/info/200202/performance_and_spending/1079/payments_over_500,19-Jan-2024,FINANCE (Inc SIU),PERMANENT FUTURES LTD,Assistant Chief Executive (Excl SIU),2700.00,Agency Staff,2324P10_CR00318,45209
Sandwell Metropolitan Borough Council,http://www.sandwell.gov.uk/info/200202/performance_and_spending/1079/payments_over_500,01-Jan-2024,FINANCE (Inc SIU),PERMANENT FUTURES LTD,Assistant Chief Executive (Excl SIU),3375.00,Agency Staff,2324P10_CR00319,45209
Sandwell Metropolitan Borough Council,http://www.sandwell.gov.uk/info/200202/performance_and_spending/1079/payments_over_500,01-Jan-2024,FINANCE (Inc SIU),PERMANENT FUTURES LTD,Assistant Chief Executive (Excl SIU),3375.00,Agency Staff,2324P10_CR00320,45209
Sandwell Metropolitan Borough Council,http://www.sandwell.gov.uk/info/200202/performance_and_spending/1079/payments_over_500,01-Jan-2024,FINANCE (Inc SIU),PERMANENT FUTURES LTD,Assistant Chief Executive (Excl SIU),3375.00,Agency Staff,2324P10_CR00321,45209
Sandwell Metropolitan Borough Council,http://www.sandwell.gov.uk/info/200202/performance_and_spending/1079/payments_over_500,14-Jan-2024,FINANCE (Inc SIU),PERMANENT FUTURES LTD,Assistant Chief Executive (Excl SIU),3375.00,Agency Staff,2324P10_CR00322,45209
Sandwell Metropolitan Borough Council,http://www.sandwell.gov.uk/info/200202/performance_and_spending/1079/payments_over_500,19-Jan-2024,FINANCE (Inc SIU),PERMANENT FUTURES LTD,Assistant Chief Executive (Excl SIU),3375.00,Agency Staff,2324P10_CR00323,45209
Sandwell Metropolitan Borough Council,http://www.sandwell.gov.uk/info/200202/performance_and_spending/1079/payments_over_500,01-Jan-2024,FINANCE (Inc SIU),PORTFOLIO PAYROLL LTD,Assistant Chief Executive (Excl SIU),684.00,Agency Staff,2324P10_CR00324,167281
Sandwell Metropolitan Borough Council,http://www.sandwell.gov.uk/info/200202/performance_and_spending/1079/payments_over_500,14-Jan-2024,FINANCE (Inc SIU),PORTFOLIO PAYROLL LTD,Assistant Chief Executive (Excl SIU),912.00,Agency Staff,2324P10_CR00325,167281
Sandwell Metropolitan Borough Council,http://www.sandwell.gov.uk/info/200202/performance_and_spending/1079/payments_over_500,01-Jan-2024,FINANCE (Inc SIU),PORTFOLIO PAYROLL LTD,Assistant Chief Executive (Excl SIU),1140.00,Agency Staff,2324P10_CR00326,167281
Sandwell Metropolitan Borough Council,http://www.sandwell.gov.uk/info/200202/performance_and_spending/1079/payments_over_500,01-Jan-2024,FINANCE (Inc SIU),PORTFOLIO PAYROLL LTD,Assistant Chief Executive (Excl SIU),1140.00,Agency Staff,2324P10_CR00327,167281
Sandwell Metropolitan Borough Council,http://www.sandwell.gov.uk/info/200202/performance_and_spending/1079/payments_over_500,01-Jan-2024,FINANCE (Inc SIU),PORTFOLIO PAYROLL LTD,Assistant Chief Executive (Excl SIU),1140.00,Agency Staff,2324P10_CR00328,167281
Sandwell Metropolitan Borough Council,http://www.sandwell.gov.uk/info/200202/performance_and_spending/1079/payments_over_500,14-Jan-2024,FINANCE (Inc SIU),PORTFOLIO PAYROLL LTD,Assistant Chief Executive (Excl SIU),1140.00,Agency Staff,2324P10_CR00329,167281
Sandwell Metropolitan Borough Council,http://www.sandwell.gov.uk/info/200202/performance_and_spending/1079/payments_over_500,14-Jan-2024,FINANCE (Inc SIU),PORTFOLIO PAYROLL LTD,Assistant Chief Executive (Excl SIU),1140.00,Agency Staff,2324P10_CR00330,167281
Sandwell Metropolitan Borough Council,http://www.sandwell.gov.uk/info/200202/performance_and_spending/1079/payments_over_500,14-Jan-2024,FINANCE (Inc SIU),PORTFOLIO PAYROLL LTD,Assistant Chief Executive (Excl SIU),1140.00,Agency Staff,2324P10_CR00331,167281
Sandwell Metropolitan Borough Council,http://www.sandwell.gov.uk/info/200202/performance_and_spending/1079/payments_over_500,14-Jan-2024,FINANCE (Inc SIU),PORTFOLIO PAYROLL LTD,Assistant Chief Executive (Excl SIU),1140.00,Agency Staff,2324P10_CR00332,167281
Sandwell Metropolitan Borough Council,http://www.sandwell.gov.uk/info/200202/performance_and_spending/1079/payments_over_500,30-Jan-2024,FINANCE (Inc SIU),PROVISION  HOUSE,Assistant Chief Executive (Excl SIU),14139.00,Equipment & Furniture ,2324P10_CR00333,71090
Sandwell Metropolitan Borough Council,http://www.sandwell.gov.uk/info/200202/performance_and_spending/1079/payments_over_500,01-Jan-2024,FINANCE (Inc SIU),RESTORE DIGITAL LIMITED,Total Adult Social Care,914.20,ICT ,2324P10_CR00334,13549
Sandwell Metropolitan Borough Council,http://www.sandwell.gov.uk/info/200202/performance_and_spending/1079/payments_over_500,01-Jan-2024,FINANCE (Inc SIU),RESTORE DIGITAL LIMITED,Total Adult Social Care,914.20,ICT ,2324P10_CR00335,13549
Sandwell Metropolitan Borough Council,http://www.sandwell.gov.uk/info/200202/performance_and_spending/1079/payments_over_500,25-Jan-2024,FINANCE (Inc SIU),SOCITM ADVISORY LTD,Assistant Chief Executive (Excl SIU),9060.50,Externally Purchased Professional Services ,2324P10_CR00336,162370
Sandwell Metropolitan Borough Council,http://www.sandwell.gov.uk/info/200202/performance_and_spending/1079/payments_over_500,10-Jan-2024,FINANCE (Inc SIU),SOCITM ADVISORY LTD,Assistant Chief Executive (Excl SIU),9833.33,Consultancy,2324P10_CR00337,162370
Sandwell Metropolitan Borough Council,http://www.sandwell.gov.uk/info/200202/performance_and_spending/1079/payments_over_500,25-Jan-2024,FINANCE (Inc SIU),SOCITM ADVISORY LTD,Assistant Chief Executive (Excl SIU),9833.33,Consultancy,2324P10_CR00338,162370
Sandwell Metropolitan Borough Council,http://www.sandwell.gov.uk/info/200202/performance_and_spending/1079/payments_over_500,10-Jan-2024,FINANCE (Inc SIU),SOCITM ADVISORY LTD,Assistant Chief Executive (Excl SIU),15300.00,Consultancy,2324P10_CR00339,162370
Sandwell Metropolitan Borough Council,http://www.sandwell.gov.uk/info/200202/performance_and_spending/1079/payments_over_500,25-Jan-2024,FINANCE (Inc SIU),SOCITM ADVISORY LTD,Assistant Chief Executive (Excl SIU),15300.00,Consultancy,2324P10_CR00340,162370
Sandwell Metropolitan Borough Council,http://www.sandwell.gov.uk/info/200202/performance_and_spending/1079/payments_over_500,25-Jan-2024,FINANCE (Inc SIU),SOCITM ADVISORY LTD,Assistant Chief Executive (Excl SIU),19796.43,Consultancy,2324P10_CR00341,162370
Sandwell Metropolitan Borough Council,http://www.sandwell.gov.uk/info/200202/performance_and_spending/1079/payments_over_500,01-Jan-2024,FINANCE (Inc SIU),SOCITM ADVISORY LTD,Assistant Chief Executive (Excl SIU),62581.82,Consultancy,2324P10_CR00342,162370
Sandwell Metropolitan Borough Council,http://www.sandwell.gov.uk/info/200202/performance_and_spending/1079/payments_over_500,10-Jan-2024,FINANCE (Inc SIU),SOCITM ADVISORY LTD,Assistant Chief Executive (Excl SIU),62581.82,Consultancy,2324P10_CR00343,162370
Sandwell Metropolitan Borough Council,http://www.sandwell.gov.uk/info/200202/performance_and_spending/1079/payments_over_500,25-Jan-2024,FINANCE (Inc SIU),SOCITM ADVISORY LTD,Assistant Chief Executive (Excl SIU),62581.82,Consultancy,2324P10_CR00344,162370
Sandwell Metropolitan Borough Council,http://www.sandwell.gov.uk/info/200202/performance_and_spending/1079/payments_over_500,01-Jan-2024,FINANCE (Inc SIU),SOLACE IN BUSINESS LTD,Assistant Chief Executive (Excl SIU),7200.00,Consultancy,2324P10_CR00345,129445
Sandwell Metropolitan Borough Council,http://www.sandwell.gov.uk/info/200202/performance_and_spending/1079/payments_over_500,01-Jan-2024,FINANCE (Inc SIU),SOLACE IN BUSINESS LTD,Assistant Chief Executive (Excl SIU),7200.00,Externally Purchased Professional Services ,2324P10_CR00346,129445
Sandwell Metropolitan Borough Council,http://www.sandwell.gov.uk/info/200202/performance_and_spending/1079/payments_over_500,01-Jan-2024,FINANCE (Inc SIU),SOLACE IN BUSINESS LTD,Assistant Chief Executive (Excl SIU),8000.00,Consultancy,2324P10_CR00347,129445
Sandwell Metropolitan Borough Council,http://www.sandwell.gov.uk/info/200202/performance_and_spending/1079/payments_over_500,01-Jan-2024,FINANCE (Inc SIU),SOLACE IN BUSINESS LTD,Assistant Chief Executive (Excl SIU),9600.00,Consultancy,2324P10_CR00348,129445
Sandwell Metropolitan Borough Council,http://www.sandwell.gov.uk/info/200202/performance_and_spending/1079/payments_over_500,14-Jan-2024,FINANCE (Inc SIU),THE OYSTER PARTNERSHIP LTD,Assistant Chief Executive (Excl SIU),700.00,Agency Staff,2324P10_CR00349,148917
Sandwell Metropolitan Borough Council,http://www.sandwell.gov.uk/info/200202/performance_and_spending/1079/payments_over_500,10-Jan-2024,FINANCE (Inc SIU),THE OYSTER PARTNERSHIP LTD,Assistant Chief Executive (Excl SIU),2100.00,Agency Staff,2324P10_CR00350,148917
Sandwell Metropolitan Borough Council,http://www.sandwell.gov.uk/info/200202/performance_and_spending/1079/payments_over_500,10-Jan-2024,FINANCE (Inc SIU),THE OYSTER PARTNERSHIP LTD,Assistant Chief Executive (Excl SIU),2100.00,Agency Staff,2324P10_CR00351,148917
Sandwell Metropolitan Borough Council,http://www.sandwell.gov.uk/info/200202/performance_and_spending/1079/payments_over_500,01-Jan-2024,FINANCE (Inc SIU),THE OYSTER PARTNERSHIP LTD,Assistant Chief Executive (Excl SIU),2800.00,Agency Staff,2324P10_CR00352,148917
Sandwell Metropolitan Borough Council,http://www.sandwell.gov.uk/info/200202/performance_and_spending/1079/payments_over_500,01-Jan-2024,FINANCE (Inc SIU),THE OYSTER PARTNERSHIP LTD,Assistant Chief Executive (Excl SIU),2800.00,Agency Staff,2324P10_CR00353,148917
Sandwell Metropolitan Borough Council,http://www.sandwell.gov.uk/info/200202/performance_and_spending/1079/payments_over_500,14-Jan-2024,FINANCE (Inc SIU),THE OYSTER PARTNERSHIP LTD,Assistant Chief Executive (Excl SIU),2800.00,Agency Staff,2324P10_CR00354,148917
Sandwell Metropolitan Borough Council,http://www.sandwell.gov.uk/info/200202/performance_and_spending/1079/payments_over_500,14-Jan-2024,FINANCE (Inc SIU),THE OYSTER PARTNERSHIP LTD,Assistant Chief Executive (Excl SIU),3500.00,Agency Staff,2324P10_CR00355,148917
Sandwell Metropolitan Borough Council,http://www.sandwell.gov.uk/info/200202/performance_and_spending/1079/payments_over_500,14-Jan-2024,FINANCE (Inc SIU),THE OYSTER PARTNERSHIP LTD,Assistant Chief Executive (Excl SIU),3500.00,Agency Staff,2324P10_CR00356,148917
Sandwell Metropolitan Borough Council,http://www.sandwell.gov.uk/info/200202/performance_and_spending/1079/payments_over_500,14-Jan-2024,FINANCE (Inc SIU),THE OYSTER PARTNERSHIP LTD,Assistant Chief Executive (Excl SIU),3500.00,Agency Staff,2324P10_CR00357,148917
Sandwell Metropolitan Borough Council,http://www.sandwell.gov.uk/info/200202/performance_and_spending/1079/payments_over_500,01-Jan-2024,FINANCE (Inc SIU),TROJAN CONSULTANTS LTD,Total Adult Social Care,3000.00,ICT ,2324P10_CR00358,108169
Sandwell Metropolitan Borough Council,http://www.sandwell.gov.uk/info/200202/performance_and_spending/1079/payments_over_500,01-Jan-2024,FINANCE (Inc SIU),MURRAY HALL COMMUNITY TRUST,Assistant Chief Executive (Excl SIU),3000.00,Grant Payments,2324P10_CR00359,01627284
Sandwell Metropolitan Borough Council,http://www.sandwell.gov.uk/info/200202/performance_and_spending/1079/payments_over_500,10-Jan-2024,Housing & Assets Total,ABRAXAS CATERING EQUIPMENT LTD,Housing & Assets Total,2719.00,Equipment & Furniture ,2324P10_CR00360,124644
Sandwell Metropolitan Borough Council,http://www.sandwell.gov.uk/info/200202/performance_and_spending/1079/payments_over_500,01-Jan-2024,Housing & Assets Total,ADT FIRE & SECURITY PLC,Corporate Management,1099.91,Security,2324P10_CR00361,01115015
Sandwell Metropolitan Borough Council,http://www.sandwell.gov.uk/info/200202/performance_and_spending/1079/payments_over_500,01-Jan-2024,Housing & Assets Total,B & L FENCING SERVICES LTD,Corporate Management,3424.00,Grounds Maintenance & Improvements,2324P10_CR00362,166444
Sandwell Metropolitan Borough Council,http://www.sandwell.gov.uk/info/200202/performance_and_spending/1079/payments_over_500,01-Jan-2024,Housing & Assets Total,BEECHWOOD TREES & LANDSCAPE LTD,Housing & Assets Total,675.66,Externally Purchased Professional Services ,2324P10_CR00363,93287
Sandwell Metropolitan Borough Council,http://www.sandwell.gov.uk/info/200202/performance_and_spending/1079/payments_over_500,01-Jan-2024,Housing & Assets Total,BEECHWOOD TREES & LANDSCAPE LTD,Housing & Assets Total,954.65,Externally Purchased Professional Services ,2324P10_CR00364,93287
Sandwell Metropolitan Borough Council,http://www.sandwell.gov.uk/info/200202/performance_and_spending/1079/payments_over_500,01-Jan-2024,Housing & Assets Total,BEECHWOOD TREES & LANDSCAPE LTD,Housing & Assets Total,1351.32,Externally Purchased Professional Services ,2324P10_CR00365,93287
Sandwell Metropolitan Borough Council,http://www.sandwell.gov.uk/info/200202/performance_and_spending/1079/payments_over_500,01-Jan-2024,Housing & Assets Total,BEECHWOOD TREES & LANDSCAPE LTD,Housing & Assets Total,1351.32,Externally Purchased Professional Services ,2324P10_CR00366,93287
Sandwell Metropolitan Borough Council,http://www.sandwell.gov.uk/info/200202/performance_and_spending/1079/payments_over_500,01-Jan-2024,Housing & Assets Total,BEECHWOOD TREES & LANDSCAPE LTD,Housing & Assets Total,1351.32,Externally Purchased Professional Services ,2324P10_CR00367,93287
Sandwell Metropolitan Borough Council,http://www.sandwell.gov.uk/info/200202/performance_and_spending/1079/payments_over_500,01-Jan-2024,Housing & Assets Total,BEECHWOOD TREES & LANDSCAPE LTD,Housing & Assets Total,2364.81,Externally Purchased Professional Services ,2324P10_CR00368,93287
Sandwell Metropolitan Borough Council,http://www.sandwell.gov.uk/info/200202/performance_and_spending/1079/payments_over_500,01-Jan-2024,Housing & Assets Total,BRUSHSTROKES,Corporate Management,2290.50,Grant Payments,2324P10_CR00369,21029374
Sandwell Metropolitan Borough Council,http://www.sandwell.gov.uk/info/200202/performance_and_spending/1079/payments_over_500,01-Jan-2024,Housing & Assets Total,BRUSHSTROKES,Corporate Management,2420.00,Grant Payments,2324P10_CR00370,21029374
Sandwell Metropolitan Borough Council,http://www.sandwell.gov.uk/info/200202/performance_and_spending/1079/payments_over_500,01-Jan-2024,Housing & Assets Total,BRUSHSTROKES,Corporate Management,4541.60,Grant Payments,2324P10_CR00371,21029374
Sandwell Metropolitan Borough Council,http://www.sandwell.gov.uk/info/200202/performance_and_spending/1079/payments_over_500,01-Jan-2024,Housing & Assets Total,CHUBB FIRE & SECURITY LIMITED t/a CHUBB ELECTRONIC SECURITY,Corporate Management,584.81,Security,2324P10_CR00372,81343
Sandwell Metropolitan Borough Council,http://www.sandwell.gov.uk/info/200202/performance_and_spending/1079/payments_over_500,01-Jan-2024,Housing & Assets Total,CKP LTD T/A HAGLEY HOTEL,Corporate Management,600.00,Rents,2324P10_CR00373,143677
Sandwell Metropolitan Borough Council,http://www.sandwell.gov.uk/info/200202/performance_and_spending/1079/payments_over_500,01-Jan-2024,Housing & Assets Total,CKP LTD T/A HAGLEY HOTEL,Corporate Management,1085.00,Rents,2324P10_CR00374,143677
Sandwell Metropolitan Borough Council,http://www.sandwell.gov.uk/info/200202/performance_and_spending/1079/payments_over_500,01-Jan-2024,Housing & Assets Total,CKP LTD T/A HAGLEY HOTEL,Corporate Management,1355.00,Rents,2324P10_CR00375,143677
Sandwell Metropolitan Borough Council,http://www.sandwell.gov.uk/info/200202/performance_and_spending/1079/payments_over_500,01-Jan-2024,Housing & Assets Total,CKP LTD T/A HAGLEY HOTEL,Corporate Management,1550.00,Rents,2324P10_CR00376,143677
Sandwell Metropolitan Borough Council,http://www.sandwell.gov.uk/info/200202/performance_and_spending/1079/payments_over_500,01-Jan-2024,Housing & Assets Total,CKP LTD T/A HAGLEY HOTEL,Corporate Management,1550.00,Rents,2324P10_CR00377,143677
Sandwell Metropolitan Borough Council,http://www.sandwell.gov.uk/info/200202/performance_and_spending/1079/payments_over_500,01-Jan-2024,Housing & Assets Total,CKP LTD T/A HAGLEY HOTEL,Corporate Management,1690.00,Rents,2324P10_CR00378,143677
Sandwell Metropolitan Borough Council,http://www.sandwell.gov.uk/info/200202/performance_and_spending/1079/payments_over_500,01-Jan-2024,Housing & Assets Total,CKP LTD T/A HAGLEY HOTEL,Corporate Management,2325.00,Rents,2324P10_CR00379,143677
Sandwell Metropolitan Borough Council,http://www.sandwell.gov.uk/info/200202/performance_and_spending/1079/payments_over_500,01-Jan-2024,Housing & Assets Total,DOOCEY INFRASTRUCTURE LIMITED,Housing & Assets Total,595.00,Operational Services ,2324P10_CR00380,102966
Sandwell Metropolitan Borough Council,http://www.sandwell.gov.uk/info/200202/performance_and_spending/1079/payments_over_500,01-Jan-2024,Housing & Assets Total,EUROPEAN'S WELFARE ASSOCIATION CIC,Corporate Management,500.00,Grant Payments,2324P10_CR00381,123703
Sandwell Metropolitan Borough Council,http://www.sandwell.gov.uk/info/200202/performance_and_spending/1079/payments_over_500,01-Jan-2024,Housing & Assets Total,EUROPEAN'S WELFARE ASSOCIATION CIC,Corporate Management,500.00,Grant Payments,2324P10_CR00382,123703
Sandwell Metropolitan Borough Council,http://www.sandwell.gov.uk/info/200202/performance_and_spending/1079/payments_over_500,01-Jan-2024,Housing & Assets Total,EUROPEAN'S WELFARE ASSOCIATION CIC,Corporate Management,500.00,Grant Payments,2324P10_CR00383,123703
Sandwell Metropolitan Borough Council,http://www.sandwell.gov.uk/info/200202/performance_and_spending/1079/payments_over_500,01-Jan-2024,Housing & Assets Total,EUROPEAN'S WELFARE ASSOCIATION CIC,Corporate Management,1000.00,Grant Payments,2324P10_CR00384,123703
Sandwell Metropolitan Borough Council,http://www.sandwell.gov.uk/info/200202/performance_and_spending/1079/payments_over_500,01-Jan-2024,Housing & Assets Total,EUROPEAN'S WELFARE ASSOCIATION CIC,Corporate Management,1292.55,Grant Payments,2324P10_CR00385,123703
Sandwell Metropolitan Borough Council,http://www.sandwell.gov.uk/info/200202/performance_and_spending/1079/payments_over_500,01-Jan-2024,Housing & Assets Total,EUROPEAN'S WELFARE ASSOCIATION CIC,Corporate Management,4620.00,Grant Payments,2324P10_CR00386,123703
Sandwell Metropolitan Borough Council,http://www.sandwell.gov.uk/info/200202/performance_and_spending/1079/payments_over_500,01-Jan-2024,Housing & Assets Total,EUROPEAN'S WELFARE ASSOCIATION CIC,Corporate Management,7260.00,Grant Payments,2324P10_CR00387,123703
Sandwell Metropolitan Borough Council,http://www.sandwell.gov.uk/info/200202/performance_and_spending/1079/payments_over_500,01-Jan-2024,Housing & Assets Total,EUROPEAN'S WELFARE ASSOCIATION CIC,Corporate Management,7260.00,Grant Payments,2324P10_CR00388,123703
Sandwell Metropolitan Borough Council,http://www.sandwell.gov.uk/info/200202/performance_and_spending/1079/payments_over_500,01-Jan-2024,Housing & Assets Total,EUROPEAN'S WELFARE ASSOCIATION CIC,Corporate Management,9500.00,Grant Payments,2324P10_CR00389,123703
Sandwell Metropolitan Borough Council,http://www.sandwell.gov.uk/info/200202/performance_and_spending/1079/payments_over_500,01-Jan-2024,Housing & Assets Total,EUROPEAN'S WELFARE ASSOCIATION CIC,Corporate Management,19500.00,Grant Payments,2324P10_CR00390,123703
Sandwell Metropolitan Borough Council,http://www.sandwell.gov.uk/info/200202/performance_and_spending/1079/payments_over_500,01-Jan-2024,Housing & Assets Total,EXHIBITION PLUS,Housing & Assets Total,7921.00,Externally Purchased Professional Services ,2324P10_CR00391,117729
Sandwell Metropolitan Borough Council,http://www.sandwell.gov.uk/info/200202/performance_and_spending/1079/payments_over_500,01-Jan-2024,Housing & Assets Total,GILANI ENTERPRISES LIMITED,Corporate Management,583.33,Rents,2324P10_CR00392,2696
Sandwell Metropolitan Borough Council,http://www.sandwell.gov.uk/info/200202/performance_and_spending/1079/payments_over_500,01-Jan-2024,Housing & Assets Total,GILANI ENTERPRISES LIMITED,Corporate Management,1400.00,Rents,2324P10_CR00393,2696
Sandwell Metropolitan Borough Council,http://www.sandwell.gov.uk/info/200202/performance_and_spending/1079/payments_over_500,01-Jan-2024,Housing & Assets Total,GILANI ENTERPRISES LIMITED,Corporate Management,1400.00,Rents,2324P10_CR00394,2696
Sandwell Metropolitan Borough Council,http://www.sandwell.gov.uk/info/200202/performance_and_spending/1079/payments_over_500,01-Jan-2024,Housing & Assets Total,GILANI ENTERPRISES LIMITED,Corporate Management,1600.00,Rents,2324P10_CR00395,2696
Sandwell Metropolitan Borough Council,http://www.sandwell.gov.uk/info/200202/performance_and_spending/1079/payments_over_500,01-Jan-2024,Housing & Assets Total,GILANI ENTERPRISES LIMITED,Corporate Management,1691.67,Rents,2324P10_CR00396,2696
Sandwell Metropolitan Borough Council,http://www.sandwell.gov.uk/info/200202/performance_and_spending/1079/payments_over_500,01-Jan-2024,Housing & Assets Total,GILANI ENTERPRISES LIMITED,Corporate Management,1866.67,Rents,2324P10_CR00397,2696
Sandwell Metropolitan Borough Council,http://www.sandwell.gov.uk/info/200202/performance_and_spending/1079/payments_over_500,01-Jan-2024,Housing & Assets Total,GILANI ENTERPRISES LIMITED,Corporate Management,1866.67,Rents,2324P10_CR00398,2696
Sandwell Metropolitan Borough Council,http://www.sandwell.gov.uk/info/200202/performance_and_spending/1079/payments_over_500,01-Jan-2024,Housing & Assets Total,GILANI ENTERPRISES LIMITED,Corporate Management,2000.00,Rents,2324P10_CR00399,2696
Sandwell Metropolitan Borough Council,http://www.sandwell.gov.uk/info/200202/performance_and_spending/1079/payments_over_500,01-Jan-2024,Housing & Assets Total,GILANI ENTERPRISES LIMITED,Corporate Management,2333.33,Rents,2324P10_CR00400,2696
Sandwell Metropolitan Borough Council,http://www.sandwell.gov.uk/info/200202/performance_and_spending/1079/payments_over_500,01-Jan-2024,Housing & Assets Total,GILANI ENTERPRISES LIMITED,Corporate Management,2333.33,Rents,2324P10_CR00401,2696
Sandwell Metropolitan Borough Council,http://www.sandwell.gov.uk/info/200202/performance_and_spending/1079/payments_over_500,01-Jan-2024,Housing & Assets Total,GILANI ENTERPRISES LIMITED,Corporate Management,2333.33,Rents,2324P10_CR00402,2696
Sandwell Metropolitan Borough Council,http://www.sandwell.gov.uk/info/200202/performance_and_spending/1079/payments_over_500,01-Jan-2024,Housing & Assets Total,GILANI ENTERPRISES LIMITED,Corporate Management,2800.00,Rents,2324P10_CR00403,2696
Sandwell Metropolitan Borough Council,http://www.sandwell.gov.uk/info/200202/performance_and_spending/1079/payments_over_500,01-Jan-2024,Housing & Assets Total,GILANI ENTERPRISES LIMITED,Corporate Management,3500.00,Rents,2324P10_CR00404,2696
Sandwell Metropolitan Borough Council,http://www.sandwell.gov.uk/info/200202/performance_and_spending/1079/payments_over_500,01-Jan-2024,Housing & Assets Total,GILANI ENTERPRISES LIMITED,Corporate Management,3500.00,Rents,2324P10_CR00405,2696
Sandwell Metropolitan Borough Council,http://www.sandwell.gov.uk/info/200202/performance_and_spending/1079/payments_over_500,01-Jan-2024,Housing & Assets Total,GILANI ENTERPRISES LIMITED,Corporate Management,3500.00,Rents,2324P10_CR00406,2696
Sandwell Metropolitan Borough Council,http://www.sandwell.gov.uk/info/200202/performance_and_spending/1079/payments_over_500,01-Jan-2024,Housing & Assets Total,GILANI ENTERPRISES LIMITED,Corporate Management,3500.00,Rents,2324P10_CR00407,2696
Sandwell Metropolitan Borough Council,http://www.sandwell.gov.uk/info/200202/performance_and_spending/1079/payments_over_500,01-Jan-2024,Housing & Assets Total,GILANI ENTERPRISES LIMITED,Corporate Management,4375.00,Rents,2324P10_CR00408,2696
Sandwell Metropolitan Borough Council,http://www.sandwell.gov.uk/info/200202/performance_and_spending/1079/payments_over_500,01-Jan-2024,Housing & Assets Total,GILANI ENTERPRISES LIMITED,Corporate Management,5400.00,Rents,2324P10_CR00409,2696
Sandwell Metropolitan Borough Council,http://www.sandwell.gov.uk/info/200202/performance_and_spending/1079/payments_over_500,01-Jan-2024,Housing & Assets Total,GILANI ENTERPRISES LIMITED,Corporate Management,5600.00,Rents,2324P10_CR00410,2696
Sandwell Metropolitan Borough Council,http://www.sandwell.gov.uk/info/200202/performance_and_spending/1079/payments_over_500,01-Jan-2024,Housing & Assets Total,GILANI ENTERPRISES LIMITED,Corporate Management,7000.00,Rents,2324P10_CR00411,2696
Sandwell Metropolitan Borough Council,http://www.sandwell.gov.uk/info/200202/performance_and_spending/1079/payments_over_500,01-Jan-2024,Housing & Assets Total,GRESHAM OFFICE FURNITURE LTD,Housing & Assets Total,1444.50,Equipment & Furniture ,2324P10_CR00412,93465
Sandwell Metropolitan Borough Council,http://www.sandwell.gov.uk/info/200202/performance_and_spending/1079/payments_over_500,01-Jan-2024,Housing & Assets Total,"HIGHFIELD HOUSE HOTEL,",Corporate Management,1320.00,Rents,2324P10_CR00413,162756
Sandwell Metropolitan Borough Council,http://www.sandwell.gov.uk/info/200202/performance_and_spending/1079/payments_over_500,01-Jan-2024,Housing & Assets Total,"HIGHFIELD HOUSE HOTEL,",Corporate Management,1365.00,Rents,2324P10_CR00414,162756
Sandwell Metropolitan Borough Council,http://www.sandwell.gov.uk/info/200202/performance_and_spending/1079/payments_over_500,01-Jan-2024,Housing & Assets Total,"HIGHFIELD HOUSE HOTEL,",Corporate Management,2175.00,Rents,2324P10_CR00415,162756
Sandwell Metropolitan Borough Council,http://www.sandwell.gov.uk/info/200202/performance_and_spending/1079/payments_over_500,01-Jan-2024,Housing & Assets Total,"HIGHFIELD HOUSE HOTEL,",Corporate Management,3720.00,Rents,2324P10_CR00416,162756
Sandwell Metropolitan Borough Council,http://www.sandwell.gov.uk/info/200202/performance_and_spending/1079/payments_over_500,01-Jan-2024,Housing & Assets Total,HOME FARM NURSERIES (PINVIN) LIMITED,Housing & Assets Total,6532.91,Grounds Maintenance & Improvements,2324P10_CR00417,77003445
Sandwell Metropolitan Borough Council,http://www.sandwell.gov.uk/info/200202/performance_and_spending/1079/payments_over_500,01-Jan-2024,Housing & Assets Total,HOUSING SYSTEMS LTD,Corporate Management,680.00,Licences,2324P10_CR00418,155593
Sandwell Metropolitan Borough Council,http://www.sandwell.gov.uk/info/200202/performance_and_spending/1079/payments_over_500,01-Jan-2024,Housing & Assets Total,INFAMOUS COMMUNITY ARTS,Housing & Assets Total,5000.00,Civic Events,2324P10_CR00419,102940
Sandwell Metropolitan Borough Council,http://www.sandwell.gov.uk/info/200202/performance_and_spending/1079/payments_over_500,01-Jan-2024,Housing & Assets Total,MEL RESEARCH LTD,Total Adult Social Care,15397.33,Consultancy,2324P10_CR00420,01682622
Sandwell Metropolitan Borough Council,http://www.sandwell.gov.uk/info/200202/performance_and_spending/1079/payments_over_500,01-Jan-2024,Housing & Assets Total,MIDLAND FORESTRY LIMITED,Housing & Assets Total,551.44,Externally Purchased Professional Services ,2324P10_CR00421,45812
Sandwell Metropolitan Borough Council,http://www.sandwell.gov.uk/info/200202/performance_and_spending/1079/payments_over_500,01-Jan-2024,Housing & Assets Total,MIDLAND FORESTRY LIMITED,Housing & Assets Total,620.92,Externally Purchased Professional Services ,2324P10_CR00422,45812
Sandwell Metropolitan Borough Council,http://www.sandwell.gov.uk/info/200202/performance_and_spending/1079/payments_over_500,01-Jan-2024,Housing & Assets Total,MIDLAND FORESTRY LIMITED,Housing & Assets Total,658.24,Externally Purchased Professional Services ,2324P10_CR00423,45812
Sandwell Metropolitan Borough Council,http://www.sandwell.gov.uk/info/200202/performance_and_spending/1079/payments_over_500,01-Jan-2024,Housing & Assets Total,MIDLAND FORESTRY LIMITED,Housing & Assets Total,680.03,Externally Purchased Professional Services ,2324P10_CR00424,45812
Sandwell Metropolitan Borough Council,http://www.sandwell.gov.uk/info/200202/performance_and_spending/1079/payments_over_500,01-Jan-2024,Housing & Assets Total,MIDLAND FORESTRY LIMITED,Housing & Assets Total,682.20,Externally Purchased Professional Services ,2324P10_CR00425,45812
Sandwell Metropolitan Borough Council,http://www.sandwell.gov.uk/info/200202/performance_and_spending/1079/payments_over_500,01-Jan-2024,Housing & Assets Total,MIDLAND FORESTRY LIMITED,Housing & Assets Total,688.11,Externally Purchased Professional Services ,2324P10_CR00426,45812
Sandwell Metropolitan Borough Council,http://www.sandwell.gov.uk/info/200202/performance_and_spending/1079/payments_over_500,01-Jan-2024,Housing & Assets Total,MIDLAND FORESTRY LIMITED,Housing & Assets Total,694.19,Externally Purchased Professional Services ,2324P10_CR00427,45812
Sandwell Metropolitan Borough Council,http://www.sandwell.gov.uk/info/200202/performance_and_spending/1079/payments_over_500,01-Jan-2024,Housing & Assets Total,MIDLAND FORESTRY LIMITED,Housing & Assets Total,771.56,Externally Purchased Professional Services ,2324P10_CR00428,45812
Sandwell Metropolitan Borough Council,http://www.sandwell.gov.uk/info/200202/performance_and_spending/1079/payments_over_500,01-Jan-2024,Housing & Assets Total,MIDLAND FORESTRY LIMITED,Housing & Assets Total,824.80,Externally Purchased Professional Services ,2324P10_CR00429,45812
Sandwell Metropolitan Borough Council,http://www.sandwell.gov.uk/info/200202/performance_and_spending/1079/payments_over_500,01-Jan-2024,Housing & Assets Total,MIDLAND FORESTRY LIMITED,Housing & Assets Total,870.75,Externally Purchased Professional Services ,2324P10_CR00430,45812
Sandwell Metropolitan Borough Council,http://www.sandwell.gov.uk/info/200202/performance_and_spending/1079/payments_over_500,01-Jan-2024,Housing & Assets Total,MIDLAND FORESTRY LIMITED,Housing & Assets Total,938.34,Externally Purchased Professional Services ,2324P10_CR00431,45812
Sandwell Metropolitan Borough Council,http://www.sandwell.gov.uk/info/200202/performance_and_spending/1079/payments_over_500,01-Jan-2024,Housing & Assets Total,MIDLAND FORESTRY LIMITED,Housing & Assets Total,1020.05,Externally Purchased Professional Services ,2324P10_CR00432,45812
Sandwell Metropolitan Borough Council,http://www.sandwell.gov.uk/info/200202/performance_and_spending/1079/payments_over_500,01-Jan-2024,Housing & Assets Total,MIDLAND FORESTRY LIMITED,Housing & Assets Total,1251.12,Externally Purchased Professional Services ,2324P10_CR00433,45812
Sandwell Metropolitan Borough Council,http://www.sandwell.gov.uk/info/200202/performance_and_spending/1079/payments_over_500,01-Jan-2024,Housing & Assets Total,MIDLAND FORESTRY LIMITED,Housing & Assets Total,1275.03,Externally Purchased Professional Services ,2324P10_CR00434,45812
Sandwell Metropolitan Borough Council,http://www.sandwell.gov.uk/info/200202/performance_and_spending/1079/payments_over_500,01-Jan-2024,Housing & Assets Total,MIDLAND FORESTRY LIMITED,Housing & Assets Total,1641.47,Externally Purchased Professional Services ,2324P10_CR00435,45812
Sandwell Metropolitan Borough Council,http://www.sandwell.gov.uk/info/200202/performance_and_spending/1079/payments_over_500,01-Jan-2024,Housing & Assets Total,MIDLAND FORESTRY LIMITED,Housing & Assets Total,2391.00,Externally Purchased Professional Services ,2324P10_CR00436,45812
Sandwell Metropolitan Borough Council,http://www.sandwell.gov.uk/info/200202/performance_and_spending/1079/payments_over_500,01-Jan-2024,Housing & Assets Total,MIDLAND FORESTRY LIMITED,Housing & Assets Total,4969.54,Externally Purchased Professional Services ,2324P10_CR00437,45812
Sandwell Metropolitan Borough Council,http://www.sandwell.gov.uk/info/200202/performance_and_spending/1079/payments_over_500,01-Jan-2024,Housing & Assets Total,MIDLAND FORESTRY LIMITED,Housing & Assets Total,8126.35,Externally Purchased Professional Services ,2324P10_CR00438,45812
Sandwell Metropolitan Borough Council,http://www.sandwell.gov.uk/info/200202/performance_and_spending/1079/payments_over_500,01-Jan-2024,Housing & Assets Total,PROFILE SECURITY SERVICES LTD,Corporate Management,7205.00,Security,2324P10_CR00439,131253
Sandwell Metropolitan Borough Council,http://www.sandwell.gov.uk/info/200202/performance_and_spending/1079/payments_over_500,01-Jan-2024,Housing & Assets Total,PROFILE SECURITY SERVICES LTD,Corporate Management,9078.30,Security,2324P10_CR00440,131253
Sandwell Metropolitan Borough Council,http://www.sandwell.gov.uk/info/200202/performance_and_spending/1079/payments_over_500,01-Jan-2024,Housing & Assets Total,RSK ADAS LTD,Housing & Assets Total,2626.50,Materials & Consumables,2324P10_CR00441,89358
Sandwell Metropolitan Borough Council,http://www.sandwell.gov.uk/info/200202/performance_and_spending/1079/payments_over_500,10-Jan-2024,Housing & Assets Total,RSK ADAS LTD,Housing & Assets Total,12147.30,Materials & Consumables,2324P10_CR00442,89358
Sandwell Metropolitan Borough Council,http://www.sandwell.gov.uk/info/200202/performance_and_spending/1079/payments_over_500,01-Jan-2024,Housing & Assets Total,SHARP,Corporate Management,1108.41,Externally Purchased Professional Services ,2324P10_CR00443,08280972
Sandwell Metropolitan Borough Council,http://www.sandwell.gov.uk/info/200202/performance_and_spending/1079/payments_over_500,01-Jan-2024,Housing & Assets Total,TALASH HOTELS LTD T/A BARONS COURT HOTEL,Corporate Management,9658.33,Rents,2324P10_CR00444,167786
Sandwell Metropolitan Borough Council,http://www.sandwell.gov.uk/info/200202/performance_and_spending/1079/payments_over_500,01-Jan-2024,Housing & Assets Total,TALASH HOTELS LTD T/A BARONS COURT HOTEL,Corporate Management,20641.67,Rents,2324P10_CR00445,167786
Sandwell Metropolitan Borough Council,http://www.sandwell.gov.uk/info/200202/performance_and_spending/1079/payments_over_500,01-Jan-2024,Housing & Assets Total,TOTALENERGIES GAS & POWER LTD,Corporate Management,711.70,Gas,2324P10_CR00446,107605
Sandwell Metropolitan Borough Council,http://www.sandwell.gov.uk/info/200202/performance_and_spending/1079/payments_over_500,01-Jan-2024,Housing & Assets Total,TOTALENERGIES GAS & POWER LTD,Corporate Management,913.23,Gas,2324P10_CR00447,107605
Sandwell Metropolitan Borough Council,http://www.sandwell.gov.uk/info/200202/performance_and_spending/1079/payments_over_500,11-Jan-2024,Housing & Assets Total,WORD360 LTD,Corporate Management,1563.94,Externally Purchased Professional Services ,2324P10_CR00448,01679409
Sandwell Metropolitan Borough Council,http://www.sandwell.gov.uk/info/200202/performance_and_spending/1079/payments_over_500,01-Jan-2024,Housing & Assets Total,XL CARS GROUP LTD,Corporate Management,546.00,Public Transport,2324P10_CR00449,141083
Sandwell Metropolitan Borough Council,http://www.sandwell.gov.uk/info/200202/performance_and_spending/1079/payments_over_500,24-Jan-2024,Housing & Assets Total,YOUR MOVE,Corporate Management,1500.00,Tenants Expenses,2324P10_CR00450,166769
Sandwell Metropolitan Borough Council,http://www.sandwell.gov.uk/info/200202/performance_and_spending/1079/payments_over_500,10-Jan-2024,Housing & Assets Total,REDACTED PERSONAL DATA,Housing & Assets Total,608.97,Grant Payments,2324P10_CR00451,REDACTED PERSONAL DATA
Sandwell Metropolitan Borough Council,http://www.sandwell.gov.uk/info/200202/performance_and_spending/1079/payments_over_500,05-Jan-2024,Housing & Assets Total,REDACTED PERSONAL DATA,Housing & Assets Total,750.00,Grant Payments,2324P10_CR00452,REDACTED PERSONAL DATA
Sandwell Metropolitan Borough Council,http://www.sandwell.gov.uk/info/200202/performance_and_spending/1079/payments_over_500,01-Jan-2024,Housing & Assets Total,REDACTED PERSONAL DATA,Housing & Assets Total,1486.00,Grant Payments,2324P10_CR00453,REDACTED PERSONAL DATA
Sandwell Metropolitan Borough Council,http://www.sandwell.gov.uk/info/200202/performance_and_spending/1079/payments_over_500,10-Jan-2024,Housing & Assets Total,REDACTED PERSONAL DATA,Corporate Management,510.00,Rents,2324P10_CR00454,REDACTED PERSONAL DATA
Sandwell Metropolitan Borough Council,http://www.sandwell.gov.uk/info/200202/performance_and_spending/1079/payments_over_500,05-Jan-2024,Housing & Assets Total,REDACTED PERSONAL DATA,Housing & Assets Total,500.00,Rents,2324P10_CR00455,REDACTED PERSONAL DATA
Sandwell Metropolitan Borough Council,http://www.sandwell.gov.uk/info/200202/performance_and_spending/1079/payments_over_500,05-Jan-2024,Housing & Assets Total,REDACTED PERSONAL DATA,Housing & Assets Total,1550.00,Rents,2324P10_CR00456,REDACTED PERSONAL DATA
Sandwell Metropolitan Borough Council,http://www.sandwell.gov.uk/info/200202/performance_and_spending/1079/payments_over_500,05-Jan-2024,Housing & Assets Total,REDACTED PERSONAL DATA,Housing & Assets Total,500.00,Rents,2324P10_CR00457,REDACTED PERSONAL DATA
Sandwell Metropolitan Borough Council,http://www.sandwell.gov.uk/info/200202/performance_and_spending/1079/payments_over_500,05-Jan-2024,Housing & Assets Total,REDACTED PERSONAL DATA,Housing & Assets Total,500.00,Rents,2324P10_CR00458,REDACTED PERSONAL DATA
Sandwell Metropolitan Borough Council,http://www.sandwell.gov.uk/info/200202/performance_and_spending/1079/payments_over_500,05-Jan-2024,Housing & Assets Total,REDACTED PERSONAL DATA,Housing & Assets Total,500.00,Rents,2324P10_CR00459,REDACTED PERSONAL DATA
Sandwell Metropolitan Borough Council,http://www.sandwell.gov.uk/info/200202/performance_and_spending/1079/payments_over_500,05-Jan-2024,Housing & Assets Total,REDACTED PERSONAL DATA,Housing & Assets Total,500.00,Rents,2324P10_CR00460,REDACTED PERSONAL DATA
Sandwell Metropolitan Borough Council,http://www.sandwell.gov.uk/info/200202/performance_and_spending/1079/payments_over_500,05-Jan-2024,Housing & Assets Total,REDACTED PERSONAL DATA,Housing & Assets Total,500.00,Rents,2324P10_CR00461,REDACTED PERSONAL DATA
Sandwell Metropolitan Borough Council,http://www.sandwell.gov.uk/info/200202/performance_and_spending/1079/payments_over_500,05-Jan-2024,Housing & Assets Total,REDACTED PERSONAL DATA,Housing & Assets Total,500.00,Rents,2324P10_CR00462,REDACTED PERSONAL DATA
Sandwell Metropolitan Borough Council,http://www.sandwell.gov.uk/info/200202/performance_and_spending/1079/payments_over_500,05-Jan-2024,Housing & Assets Total,REDACTED PERSONAL DATA,Housing & Assets Total,500.00,Rents,2324P10_CR00463,REDACTED PERSONAL DATA
Sandwell Metropolitan Borough Council,http://www.sandwell.gov.uk/info/200202/performance_and_spending/1079/payments_over_500,05-Jan-2024,Housing & Assets Total,REDACTED PERSONAL DATA,Housing & Assets Total,500.00,Rents,2324P10_CR00464,REDACTED PERSONAL DATA
Sandwell Metropolitan Borough Council,http://www.sandwell.gov.uk/info/200202/performance_and_spending/1079/payments_over_500,05-Jan-2024,Housing & Assets Total,REDACTED PERSONAL DATA,Housing & Assets Total,500.00,Rents,2324P10_CR00465,REDACTED PERSONAL DATA
Sandwell Metropolitan Borough Council,http://www.sandwell.gov.uk/info/200202/performance_and_spending/1079/payments_over_500,05-Jan-2024,Housing & Assets Total,REDACTED PERSONAL DATA,Housing & Assets Total,500.00,Rents,2324P10_CR00466,REDACTED PERSONAL DATA
Sandwell Metropolitan Borough Council,http://www.sandwell.gov.uk/info/200202/performance_and_spending/1079/payments_over_500,05-Jan-2024,Housing & Assets Total,REDACTED PERSONAL DATA,Housing & Assets Total,1050.00,Rents,2324P10_CR00467,REDACTED PERSONAL DATA
Sandwell Metropolitan Borough Council,http://www.sandwell.gov.uk/info/200202/performance_and_spending/1079/payments_over_500,26-Jan-2024,Housing & Assets Total,TRINITY HOUSE GARDENS TRA,Corporate Management,1500.00,Grant Payments,2324P10_CR00468,166526
Sandwell Metropolitan Borough Council,http://www.sandwell.gov.uk/info/200202/performance_and_spending/1079/payments_over_500,01-Jan-2024,Housing & Communities,ALLIANCE LEISURE SERVICES LTD,Housing & Communities,31212.40,"CIP - New Construction,Conversion, Enhancement & Reno",2324P10_CR00469,166445
Sandwell Metropolitan Borough Council,http://www.sandwell.gov.uk/info/200202/performance_and_spending/1079/payments_over_500,01-Jan-2024,Housing & Communities,STRATEGIC LEISURE LIMITED,Housing & Communities,2981.45,"CIP - New Construction,Conversion, Enhancement & Reno",2324P10_CR00470,106038
Sandwell Metropolitan Borough Council,http://www.sandwell.gov.uk/info/200202/performance_and_spending/1079/payments_over_500,01-Jan-2024,Housing Revenue Account Capital,THERMABEAD LTD,Housing Revenue Account Capital,-2749.00,"CIP - New Construction,Conversion, Enhancement & Reno",2324P10_CR00471,166829
Sandwell Metropolitan Borough Council,http://www.sandwell.gov.uk/info/200202/performance_and_spending/1079/payments_over_500,01-Jan-2024,Housing Revenue Account Capital,"ACIVICO (DESIGN,CONSTRUCTION AND FACILITIES MANAGEMENT) LTD",Housing Revenue Account Capital,918.00,"CIP - New Construction,Conversion, Enhancement & Reno",2324P10_CR00472,148500
Sandwell Metropolitan Borough Council,http://www.sandwell.gov.uk/info/200202/performance_and_spending/1079/payments_over_500,01-Jan-2024,Housing Revenue Account Capital,"ACIVICO (DESIGN,CONSTRUCTION AND FACILITIES MANAGEMENT) LTD",Housing Revenue Account Capital,2700.00,"CIP - New Construction,Conversion, Enhancement & Reno",2324P10_CR00473,148500
Sandwell Metropolitan Borough Council,http://www.sandwell.gov.uk/info/200202/performance_and_spending/1079/payments_over_500,01-Jan-2024,Housing Revenue Account Capital,"ACIVICO (DESIGN,CONSTRUCTION AND FACILITIES MANAGEMENT) LTD",Housing Revenue Account Capital,7877.92,"CIP - New Construction,Conversion, Enhancement & Reno",2324P10_CR00474,148500
Sandwell Metropolitan Borough Council,http://www.sandwell.gov.uk/info/200202/performance_and_spending/1079/payments_over_500,01-Jan-2024,Housing Revenue Account Capital,"ACIVICO (DESIGN,CONSTRUCTION AND FACILITIES MANAGEMENT) LTD",Housing Revenue Account Capital,7877.92,"CIP - New Construction,Conversion, Enhancement & Reno",2324P10_CR00475,148500
Sandwell Metropolitan Borough Council,http://www.sandwell.gov.uk/info/200202/performance_and_spending/1079/payments_over_500,01-Jan-2024,Housing Revenue Account Capital,"ACIVICO (DESIGN,CONSTRUCTION AND FACILITIES MANAGEMENT) LTD",Housing Revenue Account Capital,8170.88,"CIP - New Construction,Conversion, Enhancement & Reno",2324P10_CR00476,148500
Sandwell Metropolitan Borough Council,http://www.sandwell.gov.uk/info/200202/performance_and_spending/1079/payments_over_500,01-Jan-2024,Housing Revenue Account Capital,"ACIVICO (DESIGN,CONSTRUCTION AND FACILITIES MANAGEMENT) LTD",Housing Revenue Account Capital,8439.94,"CIP - New Construction,Conversion, Enhancement & Reno",2324P10_CR00477,148500
Sandwell Metropolitan Borough Council,http://www.sandwell.gov.uk/info/200202/performance_and_spending/1079/payments_over_500,01-Jan-2024,Housing Revenue Account Capital,"ACIVICO (DESIGN,CONSTRUCTION AND FACILITIES MANAGEMENT) LTD",Housing Revenue Account Capital,10295.10,"CIP - New Construction,Conversion, Enhancement & Reno",2324P10_CR00478,148500
Sandwell Metropolitan Borough Council,http://www.sandwell.gov.uk/info/200202/performance_and_spending/1079/payments_over_500,01-Jan-2024,Housing Revenue Account Capital,"ACIVICO (DESIGN,CONSTRUCTION AND FACILITIES MANAGEMENT) LTD",Housing Revenue Account Capital,10634.08,"CIP - New Construction,Conversion, Enhancement & Reno",2324P10_CR00479,148500
Sandwell Metropolitan Borough Council,http://www.sandwell.gov.uk/info/200202/performance_and_spending/1079/payments_over_500,01-Jan-2024,Housing Revenue Account Capital,AXIS EUROPE PLC   ,Housing Revenue Account Capital,5065.78,Deferred Charges/Grant Payments,2324P10_CR00480,64946
Sandwell Metropolitan Borough Council,http://www.sandwell.gov.uk/info/200202/performance_and_spending/1079/payments_over_500,01-Jan-2024,Housing Revenue Account Capital,HOME FARM NURSERIES (PINVIN) LIMITED,Housing Revenue Account Capital,2743.75,CIP - Infrastructure,2324P10_CR00481,77003445
Sandwell Metropolitan Borough Council,http://www.sandwell.gov.uk/info/200202/performance_and_spending/1079/payments_over_500,29-Jan-2024,Housing Revenue Account Capital,J.HARPER & SONS (LEOMINSTER) LIMITED,Housing Revenue Account Capital,45621.95,"CIP - New Construction,Conversion, Enhancement & Reno",2324P10_CR00482,111814
Sandwell Metropolitan Borough Council,http://www.sandwell.gov.uk/info/200202/performance_and_spending/1079/payments_over_500,01-Jan-2024,Housing Revenue Account Capital,JACOBS U.K. LIMITED,Housing Revenue Account Capital,1622.98,"CIP - New Construction,Conversion, Enhancement & Reno",2324P10_CR00483,104701
Sandwell Metropolitan Borough Council,http://www.sandwell.gov.uk/info/200202/performance_and_spending/1079/payments_over_500,01-Jan-2024,Housing Revenue Account Capital,JPC CONSTRUCTION (MIDLANDS) LTD,Housing Revenue Account Capital,2943.71,CIP - Infrastructure,2324P10_CR00484,166819
Sandwell Metropolitan Borough Council,http://www.sandwell.gov.uk/info/200202/performance_and_spending/1079/payments_over_500,01-Jan-2024,Housing Revenue Account Capital,LIFT & ENGINEERING SERVICES LTD,Housing Revenue Account Capital,13456.17,CIP - Fixtures & Fittings,2324P10_CR00485,77003962
Sandwell Metropolitan Borough Council,http://www.sandwell.gov.uk/info/200202/performance_and_spending/1079/payments_over_500,01-Jan-2024,Housing Revenue Account Capital,LOVELL PARTNERSHIPS  LTD,Housing Revenue Account Capital,325178.83,"CIP - New Construction,Conversion, Enhancement & Reno",2324P10_CR00486,77007398
Sandwell Metropolitan Borough Council,http://www.sandwell.gov.uk/info/200202/performance_and_spending/1079/payments_over_500,04-Jan-2024,Housing Revenue Account Capital,LOVELL PARTNERSHIPS  LTD,Housing Revenue Account Capital,604567.56,"CIP - New Construction,Conversion, Enhancement & Reno",2324P10_CR00487,77007398
Sandwell Metropolitan Borough Council,http://www.sandwell.gov.uk/info/200202/performance_and_spending/1079/payments_over_500,12-Jan-2024,Housing Revenue Account Capital,LOW CARBON BOX LTD,Housing Revenue Account Capital,815.00,"CIP - New Construction,Conversion, Enhancement & Reno",2324P10_CR00488,164357
Sandwell Metropolitan Borough Council,http://www.sandwell.gov.uk/info/200202/performance_and_spending/1079/payments_over_500,01-Jan-2024,Housing Revenue Account Capital,MOVECORP HOLDINGS LTD,Housing Revenue Account Capital,625.00,Waste Disposal Charges,2324P10_CR00489,152623
Sandwell Metropolitan Borough Council,http://www.sandwell.gov.uk/info/200202/performance_and_spending/1079/payments_over_500,03-Jan-2024,Housing Revenue Account Capital,NATIONAL GRID ELECTRICITY DISTRIBUTION (WEST MIDLANDS) PLC,Housing Revenue Account Capital,4920.00,CIP - Acquisition of Land & Existing Buildings,2324P10_CR00490,97805
Sandwell Metropolitan Borough Council,http://www.sandwell.gov.uk/info/200202/performance_and_spending/1079/payments_over_500,01-Jan-2024,Housing Revenue Account Capital,NATIONWIDE WINDOWS LIMITED,Housing Revenue Account Capital,8730.06,"CIP - New Construction,Conversion, Enhancement & Reno",2324P10_CR00491,108316
Sandwell Metropolitan Borough Council,http://www.sandwell.gov.uk/info/200202/performance_and_spending/1079/payments_over_500,01-Jan-2024,Housing Revenue Account Capital,NATIONWIDE WINDOWS LIMITED,Housing Revenue Account Capital,191832.19,"CIP - New Construction,Conversion, Enhancement & Reno",2324P10_CR00492,108316
Sandwell Metropolitan Borough Council,http://www.sandwell.gov.uk/info/200202/performance_and_spending/1079/payments_over_500,01-Jan-2024,Housing Revenue Account Capital,OPENVIEW SECURITY SOLUTIONS LIMITED,Housing Revenue Account Capital,30136.62,"CIP - New Construction,Conversion, Enhancement & Reno",2324P10_CR00493,77000151
Sandwell Metropolitan Borough Council,http://www.sandwell.gov.uk/info/200202/performance_and_spending/1079/payments_over_500,01-Jan-2024,Housing Revenue Account Capital,PHOENIX GAS SERVICES LIMITED,Housing Revenue Account Capital,1810.87,Contract Payments,2324P10_CR00494,126729
Sandwell Metropolitan Borough Council,http://www.sandwell.gov.uk/info/200202/performance_and_spending/1079/payments_over_500,06-Jan-2024,Housing Revenue Account Capital,PHOENIX GAS SERVICES LIMITED,Housing Revenue Account Capital,2262.16,Contract Payments,2324P10_CR00495,126729
Sandwell Metropolitan Borough Council,http://www.sandwell.gov.uk/info/200202/performance_and_spending/1079/payments_over_500,01-Jan-2024,Housing Revenue Account Capital,PHOENIX GAS SERVICES LIMITED,Housing Revenue Account Capital,2299.10,Contract Payments,2324P10_CR00496,126729
Sandwell Metropolitan Borough Council,http://www.sandwell.gov.uk/info/200202/performance_and_spending/1079/payments_over_500,01-Jan-2024,Housing Revenue Account Capital,PHOENIX GAS SERVICES LIMITED,Housing Revenue Account Capital,3903.26,Contract Payments,2324P10_CR00497,126729
Sandwell Metropolitan Borough Council,http://www.sandwell.gov.uk/info/200202/performance_and_spending/1079/payments_over_500,01-Jan-2024,Housing Revenue Account Capital,POWRED HEATING COMPONENTS LIMITED,Housing Revenue Account Capital,2147.47,Materials & Consumables,2324P10_CR00498,133978
Sandwell Metropolitan Borough Council,http://www.sandwell.gov.uk/info/200202/performance_and_spending/1079/payments_over_500,01-Jan-2024,Housing Revenue Account Capital,PR PROPERTY MAINTENANCE,Housing Revenue Account Capital,51736.21,Deferred Charges/Grant Payments,2324P10_CR00499,33836
Sandwell Metropolitan Borough Council,http://www.sandwell.gov.uk/info/200202/performance_and_spending/1079/payments_over_500,01-Jan-2024,Housing Revenue Account Capital,RIDGE & PARTNERS LLP,Housing Revenue Account Capital,1040.00,CIP - Acquisition of Land & Existing Buildings,2324P10_CR00500,134994
Sandwell Metropolitan Borough Council,http://www.sandwell.gov.uk/info/200202/performance_and_spending/1079/payments_over_500,01-Jan-2024,Housing Revenue Account Capital,RIDGE & PARTNERS LLP,Housing Revenue Account Capital,1040.00,CIP - Acquisition of Land & Existing Buildings,2324P10_CR00501,134994
Sandwell Metropolitan Borough Council,http://www.sandwell.gov.uk/info/200202/performance_and_spending/1079/payments_over_500,01-Jan-2024,Housing Revenue Account Capital,RIDGE & PARTNERS LLP,Housing Revenue Account Capital,2080.00,"CIP - New Construction,Conversion, Enhancement & Reno",2324P10_CR00502,134994
Sandwell Metropolitan Borough Council,http://www.sandwell.gov.uk/info/200202/performance_and_spending/1079/payments_over_500,01-Jan-2024,Housing Revenue Account Capital,RIDGE & PARTNERS LLP,Housing Revenue Account Capital,2080.00,"CIP - New Construction,Conversion, Enhancement & Reno",2324P10_CR00503,134994
Sandwell Metropolitan Borough Council,http://www.sandwell.gov.uk/info/200202/performance_and_spending/1079/payments_over_500,01-Jan-2024,Housing Revenue Account Capital,RIDGE & PARTNERS LLP,Housing Revenue Account Capital,2251.67,CIP - Infrastructure,2324P10_CR00504,134994
Sandwell Metropolitan Borough Council,http://www.sandwell.gov.uk/info/200202/performance_and_spending/1079/payments_over_500,01-Jan-2024,Housing Revenue Account Capital,RIDGE & PARTNERS LLP,Housing Revenue Account Capital,2251.67,CIP - Infrastructure,2324P10_CR00505,134994
Sandwell Metropolitan Borough Council,http://www.sandwell.gov.uk/info/200202/performance_and_spending/1079/payments_over_500,01-Jan-2024,Housing Revenue Account Capital,RIDGE & PARTNERS LLP,Housing Revenue Account Capital,2251.67,CIP - Infrastructure,2324P10_CR00506,134994
Sandwell Metropolitan Borough Council,http://www.sandwell.gov.uk/info/200202/performance_and_spending/1079/payments_over_500,01-Jan-2024,Housing Revenue Account Capital,RIDGE & PARTNERS LLP,Housing Revenue Account Capital,2251.67,CIP - Infrastructure,2324P10_CR00507,134994
Sandwell Metropolitan Borough Council,http://www.sandwell.gov.uk/info/200202/performance_and_spending/1079/payments_over_500,01-Jan-2024,Housing Revenue Account Capital,RIDGE & PARTNERS LLP,Housing Revenue Account Capital,2251.67,CIP - Infrastructure,2324P10_CR00508,134994
Sandwell Metropolitan Borough Council,http://www.sandwell.gov.uk/info/200202/performance_and_spending/1079/payments_over_500,01-Jan-2024,Housing Revenue Account Capital,RIDGE & PARTNERS LLP,Housing Revenue Account Capital,2745.00,CIP - Infrastructure,2324P10_CR00509,134994
Sandwell Metropolitan Borough Council,http://www.sandwell.gov.uk/info/200202/performance_and_spending/1079/payments_over_500,01-Jan-2024,Housing Revenue Account Capital,RIDGE & PARTNERS LLP,Housing Revenue Account Capital,4200.00,CIP - Infrastructure,2324P10_CR00510,134994
Sandwell Metropolitan Borough Council,http://www.sandwell.gov.uk/info/200202/performance_and_spending/1079/payments_over_500,18-Jan-2024,Housing Revenue Account Capital,SEDDON CONSTRUCTION LIMITED,Housing Revenue Account Capital,435594.59,"CIP - New Construction,Conversion, Enhancement & Reno",2324P10_CR00511,132999
Sandwell Metropolitan Borough Council,http://www.sandwell.gov.uk/info/200202/performance_and_spending/1079/payments_over_500,01-Jan-2024,Housing Revenue Account Capital,SELECT WINDOWS (HOME IMPROVEMENTS) LIMITED,Housing Revenue Account Capital,662.09,Contract Payments,2324P10_CR00512,42616
Sandwell Metropolitan Borough Council,http://www.sandwell.gov.uk/info/200202/performance_and_spending/1079/payments_over_500,01-Jan-2024,Housing Revenue Account Capital,SELECT WINDOWS (HOME IMPROVEMENTS) LIMITED,Housing Revenue Account Capital,696.06,Contract Payments,2324P10_CR00513,42616
Sandwell Metropolitan Borough Council,http://www.sandwell.gov.uk/info/200202/performance_and_spending/1079/payments_over_500,01-Jan-2024,Housing Revenue Account Capital,SELECT WINDOWS (HOME IMPROVEMENTS) LIMITED,Housing Revenue Account Capital,807.81,Contract Payments,2324P10_CR00514,42616
Sandwell Metropolitan Borough Council,http://www.sandwell.gov.uk/info/200202/performance_and_spending/1079/payments_over_500,01-Jan-2024,Housing Revenue Account Capital,SELECT WINDOWS (HOME IMPROVEMENTS) LIMITED,Housing Revenue Account Capital,811.12,Contract Payments,2324P10_CR00515,42616
Sandwell Metropolitan Borough Council,http://www.sandwell.gov.uk/info/200202/performance_and_spending/1079/payments_over_500,01-Jan-2024,Housing Revenue Account Capital,SELECT WINDOWS (HOME IMPROVEMENTS) LIMITED,Housing Revenue Account Capital,811.12,Contract Payments,2324P10_CR00516,42616
Sandwell Metropolitan Borough Council,http://www.sandwell.gov.uk/info/200202/performance_and_spending/1079/payments_over_500,01-Jan-2024,Housing Revenue Account Capital,SELECT WINDOWS (HOME IMPROVEMENTS) LIMITED,Housing Revenue Account Capital,1165.46,Contract Payments,2324P10_CR00517,42616
Sandwell Metropolitan Borough Council,http://www.sandwell.gov.uk/info/200202/performance_and_spending/1079/payments_over_500,01-Jan-2024,Housing Revenue Account Capital,SELECT WINDOWS (HOME IMPROVEMENTS) LIMITED,Housing Revenue Account Capital,1335.34,Contract Payments,2324P10_CR00518,42616
Sandwell Metropolitan Borough Council,http://www.sandwell.gov.uk/info/200202/performance_and_spending/1079/payments_over_500,01-Jan-2024,Housing Revenue Account Capital,SELECT WINDOWS (HOME IMPROVEMENTS) LIMITED,Housing Revenue Account Capital,1535.41,Contract Payments,2324P10_CR00519,42616
Sandwell Metropolitan Borough Council,http://www.sandwell.gov.uk/info/200202/performance_and_spending/1079/payments_over_500,09-Jan-2024,Housing Revenue Account Capital,SURE MAINTENANCE LIMITED,Housing Revenue Account Capital,260396.77,"CIP - New Construction,Conversion, Enhancement & Reno",2324P10_CR00520,93926
Sandwell Metropolitan Borough Council,http://www.sandwell.gov.uk/info/200202/performance_and_spending/1079/payments_over_500,23-Jan-2024,Housing Revenue Account Capital,SWG CONSTRUCTION (BUILD & RENOVATE) LTD,Housing Revenue Account Capital,101648.62,"CIP - New Construction,Conversion, Enhancement & Reno",2324P10_CR00521,166518
Sandwell Metropolitan Borough Council,http://www.sandwell.gov.uk/info/200202/performance_and_spending/1079/payments_over_500,09-Jan-2024,Housing Revenue Account Capital,SYCAMORE WINDOWS & CONSERVATORIES LIMITED,Housing Revenue Account Capital,182536.55,"CIP - New Construction,Conversion, Enhancement & Reno",2324P10_CR00522,145272
Sandwell Metropolitan Borough Council,http://www.sandwell.gov.uk/info/200202/performance_and_spending/1079/payments_over_500,01-Jan-2024,Housing Revenue Account Capital,SYCAMORE WINDOWS & CONSERVATORIES LIMITED,Housing Revenue Account Capital,307320.86,"CIP - New Construction,Conversion, Enhancement & Reno",2324P10_CR00523,145272
Sandwell Metropolitan Borough Council,http://www.sandwell.gov.uk/info/200202/performance_and_spending/1079/payments_over_500,04-Jan-2024,Housing Revenue Account Capital,TRICAS CONSTRUCTION LIMITED,Housing Revenue Account Capital,70921.81,"CIP - New Construction,Conversion, Enhancement & Reno",2324P10_CR00524,165600
Sandwell Metropolitan Borough Council,http://www.sandwell.gov.uk/info/200202/performance_and_spending/1079/payments_over_500,11-Jan-2024,Housing Revenue Account Capital,TRICAS CONSTRUCTION LIMITED,Housing Revenue Account Capital,76011.01,"CIP - New Construction,Conversion, Enhancement & Reno",2324P10_CR00525,165600
Sandwell Metropolitan Borough Council,http://www.sandwell.gov.uk/info/200202/performance_and_spending/1079/payments_over_500,29-Jan-2024,Housing Revenue Account Capital,WELCH AND PHILLIPS BUILDING CONTRACTORS LTD,Housing Revenue Account Capital,64175.77,"CIP - New Construction,Conversion, Enhancement & Reno",2324P10_CR00526,167124
Sandwell Metropolitan Borough Council,http://www.sandwell.gov.uk/info/200202/performance_and_spending/1079/payments_over_500,01-Jan-2024,Housing Revenue Account Capital,WERNICK HIRE LTD,Housing Revenue Account Capital,911.15,"CIP - New Construction,Conversion, Enhancement & Reno",2324P10_CR00527,01540783
Sandwell Metropolitan Borough Council,http://www.sandwell.gov.uk/info/200202/performance_and_spending/1079/payments_over_500,01-Jan-2024,Housing Revenue Account Capital,WERNICK HIRE LTD,Housing Revenue Account Capital,1204.30,"CIP - New Construction,Conversion, Enhancement & Reno",2324P10_CR00528,01540783
Sandwell Metropolitan Borough Council,http://www.sandwell.gov.uk/info/200202/performance_and_spending/1079/payments_over_500,01-Jan-2024,Housing Revenue Account Capital,WESSEX LIFT CO LTD,Housing Revenue Account Capital,17624.00,Deferred Charges/Grant Payments,2324P10_CR00529,01095737
Sandwell Metropolitan Borough Council,http://www.sandwell.gov.uk/info/200202/performance_and_spending/1079/payments_over_500,01-Jan-2024,Housing Revenue Account Capital,REDACTED PERSONAL DATA,Housing Revenue Account Capital,10240.33,Deferred Charges/Grant Payments,2324P10_CR00530,REDACTED PERSONAL DATA
Sandwell Metropolitan Borough Council,http://www.sandwell.gov.uk/info/200202/performance_and_spending/1079/payments_over_500,01-Jan-2024,Housing Revenue Account Capital,REDACTED PERSONAL DATA,Housing Revenue Account Capital,7398.20,Deferred Charges/Grant Payments,2324P10_CR00531,REDACTED PERSONAL DATA
Sandwell Metropolitan Borough Council,http://www.sandwell.gov.uk/info/200202/performance_and_spending/1079/payments_over_500,01-Jan-2024,Housing Revenue Account Capital,REDACTED PERSONAL DATA,Housing Revenue Account Capital,9280.46,Deferred Charges/Grant Payments,2324P10_CR00532,REDACTED PERSONAL DATA
Sandwell Metropolitan Borough Council,http://www.sandwell.gov.uk/info/200202/performance_and_spending/1079/payments_over_500,09-Jan-2024,Housing Revenue Account Capital,PR PROPERTY MAINTENANCE,Housing Revenue Account Capital,670.45,Deferred Charges/Grant Payments,2324P10_CR00533,33836
Sandwell Metropolitan Borough Council,http://www.sandwell.gov.uk/info/200202/performance_and_spending/1079/payments_over_500,09-Jan-2024,Housing Revenue Account Capital,PR PROPERTY MAINTENANCE,Housing Revenue Account Capital,670.45,Deferred Charges/Grant Payments,2324P10_CR00534,33836
Sandwell Metropolitan Borough Council,http://www.sandwell.gov.uk/info/200202/performance_and_spending/1079/payments_over_500,09-Jan-2024,Housing Revenue Account Capital,PR PROPERTY MAINTENANCE,Housing Revenue Account Capital,1830.91,Deferred Charges/Grant Payments,2324P10_CR00535,33836
Sandwell Metropolitan Borough Council,http://www.sandwell.gov.uk/info/200202/performance_and_spending/1079/payments_over_500,22-Jan-2024,Housing Revenue Account Capital,LIFT & ENGINEERING SERVICES LTD,Housing Revenue Account Capital,567.83,"CIP - New Construction,Conversion, Enhancement & Reno",2324P10_CR00536,77003962
Sandwell Metropolitan Borough Council,http://www.sandwell.gov.uk/info/200202/performance_and_spending/1079/payments_over_500,16-Jan-2024,Housing Revenue Account Capital,LIFT & ENGINEERING SERVICES LTD,Housing Revenue Account Capital,583.52,"CIP - New Construction,Conversion, Enhancement & Reno",2324P10_CR00537,77003962
Sandwell Metropolitan Borough Council,http://www.sandwell.gov.uk/info/200202/performance_and_spending/1079/payments_over_500,08-Jan-2024,Housing Revenue Account Capital,LIFT & ENGINEERING SERVICES LTD,Housing Revenue Account Capital,612.35,"CIP - New Construction,Conversion, Enhancement & Reno",2324P10_CR00538,77003962
Sandwell Metropolitan Borough Council,http://www.sandwell.gov.uk/info/200202/performance_and_spending/1079/payments_over_500,23-Jan-2024,Housing Revenue Account Capital,LIFT & ENGINEERING SERVICES LTD,Housing Revenue Account Capital,673.58,"CIP - New Construction,Conversion, Enhancement & Reno",2324P10_CR00539,77003962
Sandwell Metropolitan Borough Council,http://www.sandwell.gov.uk/info/200202/performance_and_spending/1079/payments_over_500,16-Jan-2024,Housing Revenue Account Capital,LIFT & ENGINEERING SERVICES LTD,Housing Revenue Account Capital,709.42,"CIP - New Construction,Conversion, Enhancement & Reno",2324P10_CR00540,77003962
Sandwell Metropolitan Borough Council,http://www.sandwell.gov.uk/info/200202/performance_and_spending/1079/payments_over_500,23-Jan-2024,Housing Revenue Account Capital,LIFT & ENGINEERING SERVICES LTD,Housing Revenue Account Capital,779.01,"CIP - New Construction,Conversion, Enhancement & Reno",2324P10_CR00541,77003962
Sandwell Metropolitan Borough Council,http://www.sandwell.gov.uk/info/200202/performance_and_spending/1079/payments_over_500,22-Jan-2024,Housing Revenue Account Capital,LIFT & ENGINEERING SERVICES LTD,Housing Revenue Account Capital,805.25,"CIP - New Construction,Conversion, Enhancement & Reno",2324P10_CR00542,77003962
Sandwell Metropolitan Borough Council,http://www.sandwell.gov.uk/info/200202/performance_and_spending/1079/payments_over_500,08-Jan-2024,Housing Revenue Account Capital,LIFT & ENGINEERING SERVICES LTD,Housing Revenue Account Capital,835.32,"CIP - New Construction,Conversion, Enhancement & Reno",2324P10_CR00543,77003962
Sandwell Metropolitan Borough Council,http://www.sandwell.gov.uk/info/200202/performance_and_spending/1079/payments_over_500,23-Jan-2024,Individual School Budgets With Inclusion,5 STAR DAY NURSERY - OLDBURY,Individual School Budgets With Inclusion,11714.87,Grant Payments,2324P10_CR00544,120730
Sandwell Metropolitan Borough Council,http://www.sandwell.gov.uk/info/200202/performance_and_spending/1079/payments_over_500,23-Jan-2024,Individual School Budgets With Inclusion,5 STAR DAY NURSERY LIMITED,Individual School Budgets With Inclusion,7256.30,Grant Payments,2324P10_CR00545,105382
Sandwell Metropolitan Borough Council,http://www.sandwell.gov.uk/info/200202/performance_and_spending/1079/payments_over_500,23-Jan-2024,Individual School Budgets With Inclusion,ABC DAY NURSERY & PRE SCHOOL LTD,Individual School Budgets With Inclusion,15571.11,Grant Payments,2324P10_CR00546,01472823
Sandwell Metropolitan Borough Council,http://www.sandwell.gov.uk/info/200202/performance_and_spending/1079/payments_over_500,23-Jan-2024,Individual School Budgets With Inclusion,ADVENTURE QUEST (GREAT BRIDGE) LTD,Individual School Budgets With Inclusion,8323.72,Grant Payments,2324P10_CR00547,153563
Sandwell Metropolitan Borough Council,http://www.sandwell.gov.uk/info/200202/performance_and_spending/1079/payments_over_500,23-Jan-2024,Individual School Budgets With Inclusion,AL KAHIR SCHOOL,Individual School Budgets With Inclusion,4823.99,Grant Payments,2324P10_CR00548,128728
Sandwell Metropolitan Borough Council,http://www.sandwell.gov.uk/info/200202/performance_and_spending/1079/payments_over_500,23-Jan-2024,Individual School Budgets With Inclusion,BABY STEPS DAY CARE,Individual School Budgets With Inclusion,3023.46,Grant Payments,2324P10_CR00549,165672
Sandwell Metropolitan Borough Council,http://www.sandwell.gov.uk/info/200202/performance_and_spending/1079/payments_over_500,23-Jan-2024,Individual School Budgets With Inclusion,BANANA MOON DAY NURSERY,Individual School Budgets With Inclusion,10173.44,Grant Payments,2324P10_CR00550,124220
Sandwell Metropolitan Borough Council,http://www.sandwell.gov.uk/info/200202/performance_and_spending/1079/payments_over_500,23-Jan-2024,Individual School Budgets With Inclusion,BEEHIVE WB LTD,Individual School Budgets With Inclusion,604.69,Grant Payments,2324P10_CR00551,164780
Sandwell Metropolitan Borough Council,http://www.sandwell.gov.uk/info/200202/performance_and_spending/1079/payments_over_500,23-Jan-2024,Individual School Budgets With Inclusion,BOOKWORMS DAYCARE LIMITED,Individual School Budgets With Inclusion,14044.53,Grant Payments,2324P10_CR00552,114741
Sandwell Metropolitan Borough Council,http://www.sandwell.gov.uk/info/200202/performance_and_spending/1079/payments_over_500,23-Jan-2024,Individual School Budgets With Inclusion,BRIGHT LIGHTS DAY NURSERY,Individual School Budgets With Inclusion,14140.17,Grant Payments,2324P10_CR00553,89877
Sandwell Metropolitan Borough Council,http://www.sandwell.gov.uk/info/200202/performance_and_spending/1079/payments_over_500,23-Jan-2024,Individual School Budgets With Inclusion,BUSY BEE NURSERY,Individual School Budgets With Inclusion,14960.48,Grant Payments,2324P10_CR00554,01222577
Sandwell Metropolitan Borough Council,http://www.sandwell.gov.uk/info/200202/performance_and_spending/1079/payments_over_500,23-Jan-2024,Individual School Budgets With Inclusion,CAP DAY NURSERY,Individual School Budgets With Inclusion,4713.39,Grant Payments,2324P10_CR00555,51154
Sandwell Metropolitan Borough Council,http://www.sandwell.gov.uk/info/200202/performance_and_spending/1079/payments_over_500,23-Jan-2024,Individual School Budgets With Inclusion,CONFEDERATION OF BANGLADESHI ORGANISATIONS (CBO) LIMITED,Individual School Budgets With Inclusion,1571.13,Grant Payments,2324P10_CR00556,10034
Sandwell Metropolitan Borough Council,http://www.sandwell.gov.uk/info/200202/performance_and_spending/1079/payments_over_500,23-Jan-2024,Individual School Budgets With Inclusion,CONIFERS DAY NURSERY LTD,Individual School Budgets With Inclusion,9556.86,Grant Payments,2324P10_CR00557,131957
Sandwell Metropolitan Borough Council,http://www.sandwell.gov.uk/info/200202/performance_and_spending/1079/payments_over_500,23-Jan-2024,Individual School Budgets With Inclusion,DAFFODILS NURSERY LTD,Individual School Budgets With Inclusion,10997.91,Grant Payments,2324P10_CR00558,120066
Sandwell Metropolitan Borough Council,http://www.sandwell.gov.uk/info/200202/performance_and_spending/1079/payments_over_500,23-Jan-2024,Individual School Budgets With Inclusion,FAIRYTALES NURSERY LTD,Individual School Budgets With Inclusion,12823.27,Grant Payments,2324P10_CR00559,106247
Sandwell Metropolitan Borough Council,http://www.sandwell.gov.uk/info/200202/performance_and_spending/1079/payments_over_500,23-Jan-2024,Individual School Budgets With Inclusion,FATIMA DAY NURSERY,Individual School Budgets With Inclusion,10173.44,Grant Payments,2324P10_CR00560,131343
Sandwell Metropolitan Borough Council,http://www.sandwell.gov.uk/info/200202/performance_and_spending/1079/payments_over_500,23-Jan-2024,Individual School Budgets With Inclusion,FIREFLIES NURSERY LIMITED,Individual School Budgets With Inclusion,16955.73,Grant Payments,2324P10_CR00561,124120
Sandwell Metropolitan Borough Council,http://www.sandwell.gov.uk/info/200202/performance_and_spending/1079/payments_over_500,23-Jan-2024,Individual School Budgets With Inclusion,FIRST STEPS DAY NURSERY,Individual School Budgets With Inclusion,10358.41,Grant Payments,2324P10_CR00562,51155
Sandwell Metropolitan Borough Council,http://www.sandwell.gov.uk/info/200202/performance_and_spending/1079/payments_over_500,23-Jan-2024,Individual School Budgets With Inclusion,FIRST STEPS OLDBURY,Individual School Budgets With Inclusion,7090.58,Grant Payments,2324P10_CR00563,118886
Sandwell Metropolitan Borough Council,http://www.sandwell.gov.uk/info/200202/performance_and_spending/1079/payments_over_500,23-Jan-2024,Individual School Budgets With Inclusion,GENIUS GEMS,Individual School Budgets With Inclusion,24046.31,Grant Payments,2324P10_CR00564,160606
Sandwell Metropolitan Borough Council,http://www.sandwell.gov.uk/info/200202/performance_and_spending/1079/payments_over_500,23-Jan-2024,Individual School Budgets With Inclusion,GNG NURSERY,Individual School Budgets With Inclusion,12331.44,Grant Payments,2324P10_CR00565,114805
Sandwell Metropolitan Borough Council,http://www.sandwell.gov.uk/info/200202/performance_and_spending/1079/payments_over_500,23-Jan-2024,Individual School Budgets With Inclusion,HAPPY DAYS NURSERY (GREETS GREEN),Individual School Budgets With Inclusion,7227.20,Grant Payments,2324P10_CR00566,125840
Sandwell Metropolitan Borough Council,http://www.sandwell.gov.uk/info/200202/performance_and_spending/1079/payments_over_500,23-Jan-2024,Individual School Budgets With Inclusion,HUMPTY DUMPTYS DAY NURSERY,Individual School Budgets With Inclusion,16647.44,Grant Payments,2324P10_CR00567,08510771
Sandwell Metropolitan Borough Council,http://www.sandwell.gov.uk/info/200202/performance_and_spending/1079/payments_over_500,23-Jan-2024,Individual School Budgets With Inclusion,JUNIPER'S PRESCHOOL,Individual School Budgets With Inclusion,14960.48,Grant Payments,2324P10_CR00568,154579
Sandwell Metropolitan Borough Council,http://www.sandwell.gov.uk/info/200202/performance_and_spending/1079/payments_over_500,23-Jan-2024,Individual School Budgets With Inclusion,KANGAROO POUCH AT GREAT BRIDGE,Individual School Budgets With Inclusion,12331.44,Grant Payments,2324P10_CR00569,129771
Sandwell Metropolitan Borough Council,http://www.sandwell.gov.uk/info/200202/performance_and_spending/1079/payments_over_500,23-Jan-2024,Individual School Budgets With Inclusion,KANGAROO POUCH AT TIVIDALE,Individual School Budgets With Inclusion,9372.72,Grant Payments,2324P10_CR00570,113715
Sandwell Metropolitan Borough Council,http://www.sandwell.gov.uk/info/200202/performance_and_spending/1079/payments_over_500,23-Jan-2024,Individual School Budgets With Inclusion,KANGAROO POUCH CHARLEMONT,Individual School Budgets With Inclusion,4713.39,Grant Payments,2324P10_CR00571,117283
Sandwell Metropolitan Borough Council,http://www.sandwell.gov.uk/info/200202/performance_and_spending/1079/payments_over_500,23-Jan-2024,Individual School Budgets With Inclusion,KANGAROO POUCH LIMITED,Individual School Budgets With Inclusion,8632.01,Grant Payments,2324P10_CR00572,106981
Sandwell Metropolitan Borough Council,http://www.sandwell.gov.uk/info/200202/performance_and_spending/1079/payments_over_500,23-Jan-2024,Individual School Budgets With Inclusion,LAVENDER FARM DAY NURSERY,Individual School Budgets With Inclusion,38844.03,Grant Payments,2324P10_CR00573,65596
Sandwell Metropolitan Borough Council,http://www.sandwell.gov.uk/info/200202/performance_and_spending/1079/payments_over_500,23-Jan-2024,Individual School Budgets With Inclusion,LILLIPUT LODGE CHILDRENS DAY NURSERY,Individual School Budgets With Inclusion,12212.64,Grant Payments,2324P10_CR00574,2980
Sandwell Metropolitan Borough Council,http://www.sandwell.gov.uk/info/200202/performance_and_spending/1079/payments_over_500,23-Jan-2024,Individual School Budgets With Inclusion,LITTLE ACADEMY NURSERY,Individual School Budgets With Inclusion,4579.74,Grant Payments,2324P10_CR00575,81904
Sandwell Metropolitan Borough Council,http://www.sandwell.gov.uk/info/200202/performance_and_spending/1079/payments_over_500,23-Jan-2024,Individual School Budgets With Inclusion,LITTLE ANGELS DAY NURSERY LIMITED,Individual School Budgets With Inclusion,5549.15,Grant Payments,2324P10_CR00576,10207
Sandwell Metropolitan Borough Council,http://www.sandwell.gov.uk/info/200202/performance_and_spending/1079/payments_over_500,23-Jan-2024,Individual School Budgets With Inclusion,LITTLE EXPLORERS (WEST MIDLANDS) LTD,Individual School Budgets With Inclusion,25587.74,Grant Payments,2324P10_CR00577,114804
Sandwell Metropolitan Borough Council,http://www.sandwell.gov.uk/info/200202/performance_and_spending/1079/payments_over_500,23-Jan-2024,Individual School Budgets With Inclusion,LITTLE LEARNERS LTD,Individual School Budgets With Inclusion,14273.82,Grant Payments,2324P10_CR00578,01424133
Sandwell Metropolitan Borough Council,http://www.sandwell.gov.uk/info/200202/performance_and_spending/1079/payments_over_500,23-Jan-2024,Individual School Budgets With Inclusion,LITTLE LEGEND NURSERIES LTD,Individual School Budgets With Inclusion,7113.74,Grant Payments,2324P10_CR00579,117890
Sandwell Metropolitan Borough Council,http://www.sandwell.gov.uk/info/200202/performance_and_spending/1079/payments_over_500,23-Jan-2024,Individual School Budgets With Inclusion,LITTLE SAPLINGS CHILDCARE CENTRES,Individual School Budgets With Inclusion,7938.21,Grant Payments,2324P10_CR00580,131043
Sandwell Metropolitan Borough Council,http://www.sandwell.gov.uk/info/200202/performance_and_spending/1079/payments_over_500,23-Jan-2024,Individual School Budgets With Inclusion,LITTLE STEPPERS,Individual School Budgets With Inclusion,8632.01,Grant Payments,2324P10_CR00581,120240
Sandwell Metropolitan Borough Council,http://www.sandwell.gov.uk/info/200202/performance_and_spending/1079/payments_over_500,23-Jan-2024,Individual School Budgets With Inclusion,LITTLE VALERS PRE SCHOOL,Individual School Budgets With Inclusion,14512.61,Grant Payments,2324P10_CR00582,99107
Sandwell Metropolitan Borough Council,http://www.sandwell.gov.uk/info/200202/performance_and_spending/1079/payments_over_500,23-Jan-2024,Individual School Budgets With Inclusion,LITTLE WENDY HOUSE DAY NURSERY,Individual School Budgets With Inclusion,15784.24,Grant Payments,2324P10_CR00583,91544
Sandwell Metropolitan Borough Council,http://www.sandwell.gov.uk/info/200202/performance_and_spending/1079/payments_over_500,23-Jan-2024,Individual School Budgets With Inclusion,LOLA BELLES PRIVATE DAY NURSERY,Individual School Budgets With Inclusion,11907.32,Grant Payments,2324P10_CR00584,89271
Sandwell Metropolitan Borough Council,http://www.sandwell.gov.uk/info/200202/performance_and_spending/1079/payments_over_500,23-Jan-2024,Individual School Budgets With Inclusion,MINI MONKEYS LTD,Individual School Budgets With Inclusion,12023.15,Grant Payments,2324P10_CR00585,114818
Sandwell Metropolitan Borough Council,http://www.sandwell.gov.uk/info/200202/performance_and_spending/1079/payments_over_500,23-Jan-2024,Individual School Budgets With Inclusion,MINNS LIMITED,Individual School Budgets With Inclusion,9248.58,Grant Payments,2324P10_CR00586,120067
Sandwell Metropolitan Borough Council,http://www.sandwell.gov.uk/info/200202/performance_and_spending/1079/payments_over_500,23-Jan-2024,Individual School Budgets With Inclusion,MOORLANDS LITTLE LEARNERS PLAYGROUP,Individual School Budgets With Inclusion,10481.72,Grant Payments,2324P10_CR00587,46390
Sandwell Metropolitan Borough Council,http://www.sandwell.gov.uk/info/200202/performance_and_spending/1079/payments_over_500,23-Jan-2024,Individual School Budgets With Inclusion,N & K VARMA LIMITED T/A (KIDDIES PLAYHOUSE TIPTON),Individual School Budgets With Inclusion,10481.72,Grant Payments,2324P10_CR00588,26124
Sandwell Metropolitan Borough Council,http://www.sandwell.gov.uk/info/200202/performance_and_spending/1079/payments_over_500,23-Jan-2024,Individual School Budgets With Inclusion,OUR LADY AND ST HUBERTS CATHOLIC PRIMARY SCHOOL   ,Individual School Budgets With Inclusion,16647.44,Grant Payments,2324P10_CR00589,61053
Sandwell Metropolitan Borough Council,http://www.sandwell.gov.uk/info/200202/performance_and_spending/1079/payments_over_500,23-Jan-2024,Individual School Budgets With Inclusion,PERRYFIELDS PRE SCHOOL,Individual School Budgets With Inclusion,14624.63,Grant Payments,2324P10_CR00590,18879
Sandwell Metropolitan Borough Council,http://www.sandwell.gov.uk/info/200202/performance_and_spending/1079/payments_over_500,23-Jan-2024,Individual School Budgets With Inclusion,PLAYHOUSE DAY NURSERY,Individual School Budgets With Inclusion,4007.72,Grant Payments,2324P10_CR00591,01586669
Sandwell Metropolitan Borough Council,http://www.sandwell.gov.uk/info/200202/performance_and_spending/1079/payments_over_500,23-Jan-2024,Individual School Budgets With Inclusion,PRECIOUS TIMES DAY NURSERY,Individual School Budgets With Inclusion,11907.32,Grant Payments,2324P10_CR00592,165946
Sandwell Metropolitan Borough Council,http://www.sandwell.gov.uk/info/200202/performance_and_spending/1079/payments_over_500,23-Jan-2024,Individual School Budgets With Inclusion,PRECIOUS TIMES PRESCHOOL GEORGE RD,Individual School Budgets With Inclusion,3265.33,Grant Payments,2324P10_CR00593,167728
Sandwell Metropolitan Borough Council,http://www.sandwell.gov.uk/info/200202/performance_and_spending/1079/payments_over_500,23-Jan-2024,Individual School Budgets With Inclusion,RAK DAY CARE LTD T/A HAPPY VALLEY PRE SCHOOL LTD,Individual School Budgets With Inclusion,13564.58,Grant Payments,2324P10_CR00594,01572212
Sandwell Metropolitan Borough Council,http://www.sandwell.gov.uk/info/200202/performance_and_spending/1079/payments_over_500,23-Jan-2024,Individual School Budgets With Inclusion,RARE WOOD LIMITED,Individual School Budgets With Inclusion,20738.91,Grant Payments,2324P10_CR00595,20167
Sandwell Metropolitan Borough Council,http://www.sandwell.gov.uk/info/200202/performance_and_spending/1079/payments_over_500,23-Jan-2024,Individual School Budgets With Inclusion,ROOTS & SHOOTS PLAYGROUP,Individual School Budgets With Inclusion,5809.32,Grant Payments,2324P10_CR00596,75502
Sandwell Metropolitan Borough Council,http://www.sandwell.gov.uk/info/200202/performance_and_spending/1079/payments_over_500,23-Jan-2024,Individual School Budgets With Inclusion,ROWLEY VILLAGE DAY NURSERY,Individual School Budgets With Inclusion,12639.72,Grant Payments,2324P10_CR00597,24228
Sandwell Metropolitan Borough Council,http://www.sandwell.gov.uk/info/200202/performance_and_spending/1079/payments_over_500,23-Jan-2024,Individual School Budgets With Inclusion,SADWICA DAY NURSERY,Individual School Budgets With Inclusion,8015.43,Grant Payments,2324P10_CR00598,01667892
Sandwell Metropolitan Borough Council,http://www.sandwell.gov.uk/info/200202/performance_and_spending/1079/payments_over_500,23-Jan-2024,Individual School Budgets With Inclusion,SANDWELL NHS TRUST DAY NURSERY,Individual School Budgets With Inclusion,20346.87,Grant Payments,2324P10_CR00599,40788
Sandwell Metropolitan Borough Council,http://www.sandwell.gov.uk/info/200202/performance_and_spending/1079/payments_over_500,23-Jan-2024,Individual School Budgets With Inclusion,SANTOS DAY NURSERIES,Individual School Budgets With Inclusion,13000.88,Grant Payments,2324P10_CR00600,129262
Sandwell Metropolitan Borough Council,http://www.sandwell.gov.uk/info/200202/performance_and_spending/1079/payments_over_500,23-Jan-2024,Individual School Budgets With Inclusion,SMARTY PANTS @ LIGHTWOODS HOUSE LTD,Individual School Budgets With Inclusion,14210.26,Grant Payments,2324P10_CR00601,130645
Sandwell Metropolitan Borough Council,http://www.sandwell.gov.uk/info/200202/performance_and_spending/1079/payments_over_500,23-Jan-2024,Individual School Budgets With Inclusion,SMARTY PANTS PRIVATE DAY NURSERY LTD,Individual School Budgets With Inclusion,20655.16,Grant Payments,2324P10_CR00602,74037
Sandwell Metropolitan Borough Council,http://www.sandwell.gov.uk/info/200202/performance_and_spending/1079/payments_over_500,23-Jan-2024,Individual School Budgets With Inclusion,SPON LANE DAY NURSERY LIMITED,Individual School Budgets With Inclusion,11626.36,Grant Payments,2324P10_CR00603,127024
Sandwell Metropolitan Borough Council,http://www.sandwell.gov.uk/info/200202/performance_and_spending/1079/payments_over_500,23-Jan-2024,Individual School Budgets With Inclusion,ST HUBERTS PRE-SCHOOL PLAYGROUP 2,Individual School Budgets With Inclusion,17403.01,Grant Payments,2324P10_CR00604,123074
Sandwell Metropolitan Borough Council,http://www.sandwell.gov.uk/info/200202/performance_and_spending/1079/payments_over_500,23-Jan-2024,Individual School Budgets With Inclusion,ST MICHAELS DAY NURSERY,Individual School Budgets With Inclusion,8484.10,Grant Payments,2324P10_CR00605,01698538
Sandwell Metropolitan Borough Council,http://www.sandwell.gov.uk/info/200202/performance_and_spending/1079/payments_over_500,23-Jan-2024,Individual School Budgets With Inclusion,STEPPING STONES NURSERY,Individual School Budgets With Inclusion,8243.53,Grant Payments,2324P10_CR00606,50029
Sandwell Metropolitan Borough Council,http://www.sandwell.gov.uk/info/200202/performance_and_spending/1079/payments_over_500,23-Jan-2024,Individual School Budgets With Inclusion,TENDER TROOPS DAY NURSERY AND CHILDREN HUB,Individual School Budgets With Inclusion,4123.55,Grant Payments,2324P10_CR00607,164824
Sandwell Metropolitan Borough Council,http://www.sandwell.gov.uk/info/200202/performance_and_spending/1079/payments_over_500,23-Jan-2024,Individual School Budgets With Inclusion,THE FAMILY NURSERY COMPANY LTD,Individual School Budgets With Inclusion,11714.87,Grant Payments,2324P10_CR00608,89879
Sandwell Metropolitan Borough Council,http://www.sandwell.gov.uk/info/200202/performance_and_spending/1079/payments_over_500,23-Jan-2024,Individual School Budgets With Inclusion,THE OLD STATION NURSERY,Individual School Budgets With Inclusion,6394.62,Grant Payments,2324P10_CR00609,166979
Sandwell Metropolitan Borough Council,http://www.sandwell.gov.uk/info/200202/performance_and_spending/1079/payments_over_500,23-Jan-2024,Individual School Budgets With Inclusion,THE RIVERS MULTI ACADEMY TRUST,Individual School Budgets With Inclusion,29595.45,Grant Payments,2324P10_CR00610,61014
Sandwell Metropolitan Borough Council,http://www.sandwell.gov.uk/info/200202/performance_and_spending/1079/payments_over_500,23-Jan-2024,Individual School Budgets With Inclusion,THE TODDLER HOUSE LIMITED,Individual School Budgets With Inclusion,7398.86,Grant Payments,2324P10_CR00611,122166
Sandwell Metropolitan Borough Council,http://www.sandwell.gov.uk/info/200202/performance_and_spending/1079/payments_over_500,23-Jan-2024,Individual School Budgets With Inclusion,THE WONDER YEARS DAY NURSERY LIMITED,Individual School Budgets With Inclusion,17264.01,Grant Payments,2324P10_CR00612,01647249
Sandwell Metropolitan Borough Council,http://www.sandwell.gov.uk/info/200202/performance_and_spending/1079/payments_over_500,23-Jan-2024,Individual School Budgets With Inclusion,TICK TOCK DAY NURSERY LTD,Individual School Budgets With Inclusion,15475.95,Grant Payments,2324P10_CR00613,9391
Sandwell Metropolitan Borough Council,http://www.sandwell.gov.uk/info/200202/performance_and_spending/1079/payments_over_500,23-Jan-2024,Individual School Budgets With Inclusion,TIDDLYWINKS KIDDYS NURSERY LIMITED,Individual School Budgets With Inclusion,19730.30,Grant Payments,2324P10_CR00614,110667
Sandwell Metropolitan Borough Council,http://www.sandwell.gov.uk/info/200202/performance_and_spending/1079/payments_over_500,23-Jan-2024,Individual School Budgets With Inclusion,TIMBERTREE NEIGHBOURHOOD NURSERY,Individual School Budgets With Inclusion,13739.22,Grant Payments,2324P10_CR00615,135664
Sandwell Metropolitan Borough Council,http://www.sandwell.gov.uk/info/200202/performance_and_spending/1079/payments_over_500,23-Jan-2024,Individual School Budgets With Inclusion,TINY STEPS,Individual School Budgets With Inclusion,3082.86,Grant Payments,2324P10_CR00616,125778
Sandwell Metropolitan Borough Council,http://www.sandwell.gov.uk/info/200202/performance_and_spending/1079/payments_over_500,23-Jan-2024,Individual School Budgets With Inclusion,TINY TOEZ LIMITED,Individual School Budgets With Inclusion,11791.49,Grant Payments,2324P10_CR00617,23618
Sandwell Metropolitan Borough Council,http://www.sandwell.gov.uk/info/200202/performance_and_spending/1079/payments_over_500,23-Jan-2024,Individual School Budgets With Inclusion,"TINYWOODS PRESCHOOL,",Individual School Budgets With Inclusion,22010.79,Grant Payments,2324P10_CR00618,91788
Sandwell Metropolitan Borough Council,http://www.sandwell.gov.uk/info/200202/performance_and_spending/1079/payments_over_500,23-Jan-2024,Individual School Budgets With Inclusion,TIPTON NURSERY,Individual School Budgets With Inclusion,9112.55,Grant Payments,2324P10_CR00619,89881
Sandwell Metropolitan Borough Council,http://www.sandwell.gov.uk/info/200202/performance_and_spending/1079/payments_over_500,23-Jan-2024,Individual School Budgets With Inclusion,TIPTON TODDLERS DAY NURSERY,Individual School Budgets With Inclusion,17403.01,Grant Payments,2324P10_CR00620,4397
Sandwell Metropolitan Borough Council,http://www.sandwell.gov.uk/info/200202/performance_and_spending/1079/payments_over_500,23-Jan-2024,Individual School Budgets With Inclusion,TULIP DAY NURSERY LTD,Individual School Budgets With Inclusion,7855.65,Grant Payments,2324P10_CR00621,152250
Sandwell Metropolitan Borough Council,http://www.sandwell.gov.uk/info/200202/performance_and_spending/1079/payments_over_500,23-Jan-2024,Individual School Budgets With Inclusion,TWO STEPS PRE-SCHOOL,Individual School Budgets With Inclusion,4123.55,Grant Payments,2324P10_CR00622,109186
Sandwell Metropolitan Borough Council,http://www.sandwell.gov.uk/info/200202/performance_and_spending/1079/payments_over_500,23-Jan-2024,Individual School Budgets With Inclusion,UNICORN DAY NURSERY,Individual School Budgets With Inclusion,27839.59,Grant Payments,2324P10_CR00623,91543
Sandwell Metropolitan Borough Council,http://www.sandwell.gov.uk/info/200202/performance_and_spending/1079/payments_over_500,23-Jan-2024,Individual School Budgets With Inclusion,UNITED KIDS CHILDCARE,Individual School Budgets With Inclusion,20456.17,Grant Payments,2324P10_CR00624,134806
Sandwell Metropolitan Borough Council,http://www.sandwell.gov.uk/info/200202/performance_and_spending/1079/payments_over_500,23-Jan-2024,Individual School Budgets With Inclusion,UNITED KIDS LIMITED,Individual School Budgets With Inclusion,11406.58,Grant Payments,2324P10_CR00625,136360
Sandwell Metropolitan Borough Council,http://www.sandwell.gov.uk/info/200202/performance_and_spending/1079/payments_over_500,23-Jan-2024,Individual School Budgets With Inclusion,VANESSA BILLINGSLEY,Individual School Budgets With Inclusion,2418.77,Grant Payments,2324P10_CR00626,125216
Sandwell Metropolitan Borough Council,http://www.sandwell.gov.uk/info/200202/performance_and_spending/1079/payments_over_500,23-Jan-2024,Individual School Budgets With Inclusion,WEST BROMWICH & DISTRICT Y.M.C.A. COMMUNITY ENTERPRISES,Individual School Budgets With Inclusion,16041.92,Grant Payments,2324P10_CR00627,01088376
Sandwell Metropolitan Borough Council,http://www.sandwell.gov.uk/info/200202/performance_and_spending/1079/payments_over_500,23-Jan-2024,Individual School Budgets With Inclusion,WHITECREST PRIMARY SCHOOL   ,Individual School Budgets With Inclusion,5121.47,Grant Payments,2324P10_CR00628,38087
Sandwell Metropolitan Borough Council,http://www.sandwell.gov.uk/info/200202/performance_and_spending/1079/payments_over_500,23-Jan-2024,Individual School Budgets With Inclusion,WIGGLES & GIGGLES OLDBURY LTD,Individual School Budgets With Inclusion,15117.30,Grant Payments,2324P10_CR00629,01674799
Sandwell Metropolitan Borough Council,http://www.sandwell.gov.uk/info/200202/performance_and_spending/1079/payments_over_500,23-Jan-2024,Individual School Budgets With Inclusion,WONDERLAND CHILDRENS DAY NURSERY (UK) LTD,Individual School Budgets With Inclusion,32370.03,Grant Payments,2324P10_CR00630,50852
Sandwell Metropolitan Borough Council,http://www.sandwell.gov.uk/info/200202/performance_and_spending/1079/payments_over_500,23-Jan-2024,Individual School Budgets With Inclusion,ABIGAIL CRUMPTON,Individual School Budgets With Inclusion,1585.98,Grant Payments,2324P10_CR00631,130863
Sandwell Metropolitan Borough Council,http://www.sandwell.gov.uk/info/200202/performance_and_spending/1079/payments_over_500,23-Jan-2024,Individual School Budgets With Inclusion,AMY LEES T/A HONEYBEES HOME NURSERY,Individual School Budgets With Inclusion,1209.38,Grant Payments,2324P10_CR00632,165822
Sandwell Metropolitan Borough Council,http://www.sandwell.gov.uk/info/200202/performance_and_spending/1079/payments_over_500,23-Jan-2024,Individual School Budgets With Inclusion,CARA PRATT,Individual School Budgets With Inclusion,604.69,Grant Payments,2324P10_CR00633,140537
Sandwell Metropolitan Borough Council,http://www.sandwell.gov.uk/info/200202/performance_and_spending/1079/payments_over_500,23-Jan-2024,Individual School Budgets With Inclusion,CAROLINE HENDERSON,Individual School Budgets With Inclusion,604.69,Grant Payments,2324P10_CR00634,129980
Sandwell Metropolitan Borough Council,http://www.sandwell.gov.uk/info/200202/performance_and_spending/1079/payments_over_500,23-Jan-2024,Individual School Budgets With Inclusion,CATHY THOMPSON,Individual School Budgets With Inclusion,604.69,Grant Payments,2324P10_CR00635,125814
Sandwell Metropolitan Borough Council,http://www.sandwell.gov.uk/info/200202/performance_and_spending/1079/payments_over_500,23-Jan-2024,Individual School Budgets With Inclusion,CHANTELLE WILLIAMSON,Individual School Budgets With Inclusion,2721.11,Grant Payments,2324P10_CR00636,165512
Sandwell Metropolitan Borough Council,http://www.sandwell.gov.uk/info/200202/performance_and_spending/1079/payments_over_500,23-Jan-2024,Individual School Budgets With Inclusion,CLARE O'DRISCOLL,Individual School Budgets With Inclusion,915.95,Grant Payments,2324P10_CR00637,129659
Sandwell Metropolitan Borough Council,http://www.sandwell.gov.uk/info/200202/performance_and_spending/1079/payments_over_500,23-Jan-2024,Individual School Budgets With Inclusion,DANIELLE MARIE GOODALL,Individual School Budgets With Inclusion,604.69,Grant Payments,2324P10_CR00638,129704
Sandwell Metropolitan Borough Council,http://www.sandwell.gov.uk/info/200202/performance_and_spending/1079/payments_over_500,23-Jan-2024,Individual School Budgets With Inclusion,DONNA CLEARY,Individual School Budgets With Inclusion,604.69,Grant Payments,2324P10_CR00639,118531
Sandwell Metropolitan Borough Council,http://www.sandwell.gov.uk/info/200202/performance_and_spending/1079/payments_over_500,23-Jan-2024,Individual School Budgets With Inclusion,ELIZABETH TURNER,Individual School Budgets With Inclusion,604.69,Grant Payments,2324P10_CR00640,34523
Sandwell Metropolitan Borough Council,http://www.sandwell.gov.uk/info/200202/performance_and_spending/1079/payments_over_500,23-Jan-2024,Individual School Budgets With Inclusion,FIONA TOLLADY,Individual School Budgets With Inclusion,604.69,Grant Payments,2324P10_CR00641,92750
Sandwell Metropolitan Borough Council,http://www.sandwell.gov.uk/info/200202/performance_and_spending/1079/payments_over_500,23-Jan-2024,Individual School Budgets With Inclusion,GAIL FAY PREECE,Individual School Budgets With Inclusion,2418.77,Grant Payments,2324P10_CR00642,61415
Sandwell Metropolitan Borough Council,http://www.sandwell.gov.uk/info/200202/performance_and_spending/1079/payments_over_500,23-Jan-2024,Individual School Budgets With Inclusion,GEMMA ADAMS,Individual School Budgets With Inclusion,806.25,Grant Payments,2324P10_CR00643,129661
Sandwell Metropolitan Borough Council,http://www.sandwell.gov.uk/info/200202/performance_and_spending/1079/payments_over_500,23-Jan-2024,Individual School Budgets With Inclusion,GEMMA NOONE,Individual School Budgets With Inclusion,616.57,Grant Payments,2324P10_CR00644,153866
Sandwell Metropolitan Borough Council,http://www.sandwell.gov.uk/info/200202/performance_and_spending/1079/payments_over_500,23-Jan-2024,Individual School Budgets With Inclusion,HAYLEY GODDARD,Individual School Budgets With Inclusion,951.59,Grant Payments,2324P10_CR00645,139835
Sandwell Metropolitan Borough Council,http://www.sandwell.gov.uk/info/200202/performance_and_spending/1079/payments_over_500,23-Jan-2024,Individual School Budgets With Inclusion,HAYLEY TURNER,Individual School Budgets With Inclusion,604.69,Grant Payments,2324P10_CR00646,162824
Sandwell Metropolitan Borough Council,http://www.sandwell.gov.uk/info/200202/performance_and_spending/1079/payments_over_500,23-Jan-2024,Individual School Budgets With Inclusion,JACQUELINE HEHIR,Individual School Budgets With Inclusion,1831.89,Grant Payments,2324P10_CR00647,75203
Sandwell Metropolitan Borough Council,http://www.sandwell.gov.uk/info/200202/performance_and_spending/1079/payments_over_500,23-Jan-2024,Individual School Budgets With Inclusion,JENNIFER LOUISE LEATHERLAND,Individual School Budgets With Inclusion,1256.90,Grant Payments,2324P10_CR00648,131850
Sandwell Metropolitan Borough Council,http://www.sandwell.gov.uk/info/200202/performance_and_spending/1079/payments_over_500,23-Jan-2024,Individual School Budgets With Inclusion,JOANNE HUGHES,Individual School Budgets With Inclusion,634.39,Grant Payments,2324P10_CR00649,120199
Sandwell Metropolitan Borough Council,http://www.sandwell.gov.uk/info/200202/performance_and_spending/1079/payments_over_500,23-Jan-2024,Individual School Budgets With Inclusion,JULIE BAINES,Individual School Budgets With Inclusion,604.69,Grant Payments,2324P10_CR00650,129408
Sandwell Metropolitan Borough Council,http://www.sandwell.gov.uk/info/200202/performance_and_spending/1079/payments_over_500,23-Jan-2024,Individual School Budgets With Inclusion,KAI DRUMS,Individual School Budgets With Inclusion,8243.53,Grant Payments,2324P10_CR00651,120729
Sandwell Metropolitan Borough Council,http://www.sandwell.gov.uk/info/200202/performance_and_spending/1079/payments_over_500,23-Jan-2024,Individual School Budgets With Inclusion,LEEANNE ADAMS,Individual School Budgets With Inclusion,2466.29,Grant Payments,2324P10_CR00652,134517
Sandwell Metropolitan Borough Council,http://www.sandwell.gov.uk/info/200202/performance_and_spending/1079/payments_over_500,23-Jan-2024,Individual School Budgets With Inclusion,LEKA HOWE,Individual School Budgets With Inclusion,1541.43,Grant Payments,2324P10_CR00653,119503
Sandwell Metropolitan Borough Council,http://www.sandwell.gov.uk/info/200202/performance_and_spending/1079/payments_over_500,23-Jan-2024,Individual School Budgets With Inclusion,LISA KAMIL,Individual School Budgets With Inclusion,579.49,Grant Payments,2324P10_CR00654,166809
Sandwell Metropolitan Borough Council,http://www.sandwell.gov.uk/info/200202/performance_and_spending/1079/payments_over_500,23-Jan-2024,Individual School Budgets With Inclusion,MICHAELA MOSELEY,Individual School Budgets With Inclusion,1268.78,Grant Payments,2324P10_CR00655,121672
Sandwell Metropolitan Borough Council,http://www.sandwell.gov.uk/info/200202/performance_and_spending/1079/payments_over_500,23-Jan-2024,Individual School Budgets With Inclusion,MONIQUE BROWN.,Individual School Budgets With Inclusion,634.39,Grant Payments,2324P10_CR00656,127112
Sandwell Metropolitan Borough Council,http://www.sandwell.gov.uk/info/200202/performance_and_spending/1079/payments_over_500,23-Jan-2024,Individual School Budgets With Inclusion,NICOLA DURBER,Individual School Budgets With Inclusion,806.25,Grant Payments,2324P10_CR00657,124216
Sandwell Metropolitan Borough Council,http://www.sandwell.gov.uk/info/200202/performance_and_spending/1079/payments_over_500,23-Jan-2024,Individual School Budgets With Inclusion,PAMELA VIRDEE,Individual School Budgets With Inclusion,564.38,Grant Payments,2324P10_CR00658,133209
Sandwell Metropolitan Borough Council,http://www.sandwell.gov.uk/info/200202/performance_and_spending/1079/payments_over_500,23-Jan-2024,Individual School Budgets With Inclusion,REKA ONWUMELU,Individual School Budgets With Inclusion,1108.60,Grant Payments,2324P10_CR00659,123887
Sandwell Metropolitan Borough Council,http://www.sandwell.gov.uk/info/200202/performance_and_spending/1079/payments_over_500,23-Jan-2024,Individual School Budgets With Inclusion,ROWINA WINDSOR,Individual School Budgets With Inclusion,2137.21,Grant Payments,2324P10_CR00660,138305
Sandwell Metropolitan Borough Council,http://www.sandwell.gov.uk/info/200202/performance_and_spending/1079/payments_over_500,23-Jan-2024,Individual School Budgets With Inclusion,RUPINDER KAUR.,Individual School Budgets With Inclusion,1209.38,Grant Payments,2324P10_CR00661,143707
Sandwell Metropolitan Borough Council,http://www.sandwell.gov.uk/info/200202/performance_and_spending/1079/payments_over_500,23-Jan-2024,Individual School Budgets With Inclusion,SARAH WATERS,Individual School Budgets With Inclusion,2342.97,Grant Payments,2324P10_CR00662,134518
Sandwell Metropolitan Borough Council,http://www.sandwell.gov.uk/info/200202/performance_and_spending/1079/payments_over_500,23-Jan-2024,Individual School Budgets With Inclusion,SATVINDER KAUR,Individual School Budgets With Inclusion,3628.15,Grant Payments,2324P10_CR00663,131042
Sandwell Metropolitan Borough Council,http://www.sandwell.gov.uk/info/200202/performance_and_spending/1079/payments_over_500,23-Jan-2024,Individual School Budgets With Inclusion,SHARONJIT SUKHNAIN,Individual School Budgets With Inclusion,604.69,Grant Payments,2324P10_CR00664,166147
Sandwell Metropolitan Borough Council,http://www.sandwell.gov.uk/info/200202/performance_and_spending/1079/payments_over_500,23-Jan-2024,Individual School Budgets With Inclusion,STACEY PARTRIDGE (STEP UP CHILDCARE),Individual School Budgets With Inclusion,604.69,Grant Payments,2324P10_CR00665,151395
Sandwell Metropolitan Borough Council,http://www.sandwell.gov.uk/info/200202/performance_and_spending/1079/payments_over_500,23-Jan-2024,Individual School Budgets With Inclusion,SUE LEATHERLAND,Individual School Budgets With Inclusion,604.69,Grant Payments,2324P10_CR00666,130855
Sandwell Metropolitan Borough Council,http://www.sandwell.gov.uk/info/200202/performance_and_spending/1079/payments_over_500,23-Jan-2024,Individual School Budgets With Inclusion,THERESA DEAKIN,Individual School Budgets With Inclusion,604.69,Grant Payments,2324P10_CR00667,39468
Sandwell Metropolitan Borough Council,http://www.sandwell.gov.uk/info/200202/performance_and_spending/1079/payments_over_500,23-Jan-2024,Individual School Budgets With Inclusion,TRACEY RALLEY,Individual School Budgets With Inclusion,604.69,Grant Payments,2324P10_CR00668,139205
Sandwell Metropolitan Borough Council,http://www.sandwell.gov.uk/info/200202/performance_and_spending/1079/payments_over_500,23-Jan-2024,Individual School Budgets With Inclusion,WENDY MAXWELL,Individual School Budgets With Inclusion,5495.69,Grant Payments,2324P10_CR00669,37344
Sandwell Metropolitan Borough Council,http://www.sandwell.gov.uk/info/200202/performance_and_spending/1079/payments_over_500,01-Jan-2024,Individual School Budgets With Inclusion,KEDLESTON (OS EDUCATION) LTD,Individual School Budgets With Inclusion,-7028.54,Other Establishments,2324P10_CR00670,63209
Sandwell Metropolitan Borough Council,http://www.sandwell.gov.uk/info/200202/performance_and_spending/1079/payments_over_500,01-Jan-2024,Individual School Budgets With Inclusion,ACORN CARE AND EDUCATION LIMITED,Individual School Budgets With Inclusion,7301.09,Other Establishments,2324P10_CR00671,115235
Sandwell Metropolitan Borough Council,http://www.sandwell.gov.uk/info/200202/performance_and_spending/1079/payments_over_500,01-Jan-2024,Individual School Budgets With Inclusion,ACORN CARE AND EDUCATION LIMITED,Individual School Budgets With Inclusion,14132.52,Other Establishments,2324P10_CR00672,115235
Sandwell Metropolitan Borough Council,http://www.sandwell.gov.uk/info/200202/performance_and_spending/1079/payments_over_500,01-Jan-2024,Individual School Budgets With Inclusion,ACORN CARE AND EDUCATION LIMITED,Individual School Budgets With Inclusion,15554.33,Other Establishments,2324P10_CR00673,115235
Sandwell Metropolitan Borough Council,http://www.sandwell.gov.uk/info/200202/performance_and_spending/1079/payments_over_500,01-Jan-2024,Individual School Budgets With Inclusion,ACORN CARE AND EDUCATION LIMITED,Individual School Budgets With Inclusion,15554.33,Other Establishments,2324P10_CR00674,115235
Sandwell Metropolitan Borough Council,http://www.sandwell.gov.uk/info/200202/performance_and_spending/1079/payments_over_500,01-Jan-2024,Individual School Budgets With Inclusion,ACORN CARE AND EDUCATION LIMITED,Individual School Budgets With Inclusion,16006.67,Other Establishments,2324P10_CR00675,115235
Sandwell Metropolitan Borough Council,http://www.sandwell.gov.uk/info/200202/performance_and_spending/1079/payments_over_500,01-Jan-2024,Individual School Budgets With Inclusion,ACORN CARE AND EDUCATION LIMITED,Individual School Budgets With Inclusion,17302.00,Other Establishments,2324P10_CR00676,115235
Sandwell Metropolitan Borough Council,http://www.sandwell.gov.uk/info/200202/performance_and_spending/1079/payments_over_500,01-Jan-2024,Individual School Budgets With Inclusion,ACORN CARE AND EDUCATION LIMITED,Individual School Budgets With Inclusion,19226.67,Other Establishments,2324P10_CR00677,115235
Sandwell Metropolitan Borough Council,http://www.sandwell.gov.uk/info/200202/performance_and_spending/1079/payments_over_500,01-Jan-2024,Individual School Budgets With Inclusion,ACORN CARE AND EDUCATION LIMITED,Individual School Budgets With Inclusion,21688.33,Other Establishments,2324P10_CR00678,115235
Sandwell Metropolitan Borough Council,http://www.sandwell.gov.uk/info/200202/performance_and_spending/1079/payments_over_500,01-Jan-2024,Individual School Budgets With Inclusion,ACORN CARE AND EDUCATION LIMITED,Individual School Budgets With Inclusion,21688.33,Other Establishments,2324P10_CR00679,115235
Sandwell Metropolitan Borough Council,http://www.sandwell.gov.uk/info/200202/performance_and_spending/1079/payments_over_500,01-Jan-2024,Individual School Budgets With Inclusion,ACORN CARE AND EDUCATION LIMITED,Individual School Budgets With Inclusion,22710.67,Other Establishments,2324P10_CR00680,115235
Sandwell Metropolitan Borough Council,http://www.sandwell.gov.uk/info/200202/performance_and_spending/1079/payments_over_500,01-Jan-2024,Individual School Budgets With Inclusion,ACORN CARE AND EDUCATION LIMITED,Individual School Budgets With Inclusion,24705.00,Other Establishments,2324P10_CR00681,115235
Sandwell Metropolitan Borough Council,http://www.sandwell.gov.uk/info/200202/performance_and_spending/1079/payments_over_500,01-Jan-2024,Individual School Budgets With Inclusion,ACORN CARE AND EDUCATION LIMITED,Individual School Budgets With Inclusion,24705.00,Other Establishments,2324P10_CR00682,115235
Sandwell Metropolitan Borough Council,http://www.sandwell.gov.uk/info/200202/performance_and_spending/1079/payments_over_500,01-Jan-2024,Individual School Budgets With Inclusion,ACORN CARE AND EDUCATION LIMITED,Individual School Budgets With Inclusion,24913.33,Other Establishments,2324P10_CR00683,115235
Sandwell Metropolitan Borough Council,http://www.sandwell.gov.uk/info/200202/performance_and_spending/1079/payments_over_500,01-Jan-2024,Individual School Budgets With Inclusion,ACORN CARE AND EDUCATION LIMITED,Individual School Budgets With Inclusion,24913.33,Other Establishments,2324P10_CR00684,115235
Sandwell Metropolitan Borough Council,http://www.sandwell.gov.uk/info/200202/performance_and_spending/1079/payments_over_500,01-Jan-2024,Individual School Budgets With Inclusion,ACORN CARE AND EDUCATION LIMITED,Individual School Budgets With Inclusion,28152.33,Other Establishments,2324P10_CR00685,115235
Sandwell Metropolitan Borough Council,http://www.sandwell.gov.uk/info/200202/performance_and_spending/1079/payments_over_500,01-Jan-2024,Individual School Budgets With Inclusion,ACORN CARE AND EDUCATION LIMITED,Individual School Budgets With Inclusion,28152.33,Other Establishments,2324P10_CR00686,115235
Sandwell Metropolitan Borough Council,http://www.sandwell.gov.uk/info/200202/performance_and_spending/1079/payments_over_500,01-Jan-2024,Individual School Budgets With Inclusion,ACORN CARE AND EDUCATION LIMITED,Individual School Budgets With Inclusion,28152.33,Other Establishments,2324P10_CR00687,115235
Sandwell Metropolitan Borough Council,http://www.sandwell.gov.uk/info/200202/performance_and_spending/1079/payments_over_500,01-Jan-2024,Individual School Budgets With Inclusion,ACORN CARE AND EDUCATION LIMITED,Individual School Budgets With Inclusion,28497.81,Other Establishments,2324P10_CR00688,115235
Sandwell Metropolitan Borough Council,http://www.sandwell.gov.uk/info/200202/performance_and_spending/1079/payments_over_500,01-Jan-2024,Individual School Budgets With Inclusion,ACORN CARE AND EDUCATION LIMITED,Individual School Budgets With Inclusion,28497.81,Other Establishments,2324P10_CR00689,115235
Sandwell Metropolitan Borough Council,http://www.sandwell.gov.uk/info/200202/performance_and_spending/1079/payments_over_500,01-Jan-2024,Individual School Budgets With Inclusion,ACORN CARE AND EDUCATION LIMITED,Individual School Budgets With Inclusion,28497.81,Other Establishments,2324P10_CR00690,115235
Sandwell Metropolitan Borough Council,http://www.sandwell.gov.uk/info/200202/performance_and_spending/1079/payments_over_500,01-Jan-2024,Individual School Budgets With Inclusion,ACORN CARE AND EDUCATION LIMITED,Individual School Budgets With Inclusion,28497.81,Other Establishments,2324P10_CR00691,115235
Sandwell Metropolitan Borough Council,http://www.sandwell.gov.uk/info/200202/performance_and_spending/1079/payments_over_500,01-Jan-2024,Individual School Budgets With Inclusion,ACORN CARE AND EDUCATION LIMITED,Individual School Budgets With Inclusion,28497.81,Other Establishments,2324P10_CR00692,115235
Sandwell Metropolitan Borough Council,http://www.sandwell.gov.uk/info/200202/performance_and_spending/1079/payments_over_500,01-Jan-2024,Individual School Budgets With Inclusion,ACORN CARE AND EDUCATION LIMITED,Individual School Budgets With Inclusion,28971.67,Other Establishments,2324P10_CR00693,115235
Sandwell Metropolitan Borough Council,http://www.sandwell.gov.uk/info/200202/performance_and_spending/1079/payments_over_500,01-Jan-2024,Individual School Budgets With Inclusion,ACORN CARE AND EDUCATION LIMITED,Individual School Budgets With Inclusion,28971.67,Other Establishments,2324P10_CR00694,115235
Sandwell Metropolitan Borough Council,http://www.sandwell.gov.uk/info/200202/performance_and_spending/1079/payments_over_500,01-Jan-2024,Individual School Budgets With Inclusion,ACORN CARE AND EDUCATION LIMITED,Individual School Budgets With Inclusion,30207.68,Other Establishments,2324P10_CR00695,115235
Sandwell Metropolitan Borough Council,http://www.sandwell.gov.uk/info/200202/performance_and_spending/1079/payments_over_500,01-Jan-2024,Individual School Budgets With Inclusion,ACORN CARE AND EDUCATION LIMITED,Individual School Budgets With Inclusion,30207.68,Other Establishments,2324P10_CR00696,115235
Sandwell Metropolitan Borough Council,http://www.sandwell.gov.uk/info/200202/performance_and_spending/1079/payments_over_500,01-Jan-2024,Individual School Budgets With Inclusion,ACORN CARE AND EDUCATION LIMITED,Individual School Budgets With Inclusion,30207.68,Other Establishments,2324P10_CR00697,115235
Sandwell Metropolitan Borough Council,http://www.sandwell.gov.uk/info/200202/performance_and_spending/1079/payments_over_500,01-Jan-2024,Individual School Budgets With Inclusion,ACORN CARE AND EDUCATION LIMITED,Individual School Budgets With Inclusion,30207.68,Other Establishments,2324P10_CR00698,115235
Sandwell Metropolitan Borough Council,http://www.sandwell.gov.uk/info/200202/performance_and_spending/1079/payments_over_500,01-Jan-2024,Individual School Budgets With Inclusion,ACORN CARE AND EDUCATION LIMITED,Individual School Budgets With Inclusion,30207.68,Other Establishments,2324P10_CR00699,115235
Sandwell Metropolitan Borough Council,http://www.sandwell.gov.uk/info/200202/performance_and_spending/1079/payments_over_500,01-Jan-2024,Individual School Budgets With Inclusion,ACORN CARE AND EDUCATION LIMITED,Individual School Budgets With Inclusion,30457.33,Other Establishments,2324P10_CR00700,115235
Sandwell Metropolitan Borough Council,http://www.sandwell.gov.uk/info/200202/performance_and_spending/1079/payments_over_500,01-Jan-2024,Individual School Budgets With Inclusion,ACORN CARE AND EDUCATION LIMITED,Individual School Budgets With Inclusion,30457.33,Other Establishments,2324P10_CR00701,115235
Sandwell Metropolitan Borough Council,http://www.sandwell.gov.uk/info/200202/performance_and_spending/1079/payments_over_500,01-Jan-2024,Individual School Budgets With Inclusion,ACORN CARE AND EDUCATION LIMITED,Individual School Budgets With Inclusion,30457.33,Other Establishments,2324P10_CR00702,115235
Sandwell Metropolitan Borough Council,http://www.sandwell.gov.uk/info/200202/performance_and_spending/1079/payments_over_500,01-Jan-2024,Individual School Budgets With Inclusion,ACORN CARE AND EDUCATION LIMITED,Individual School Budgets With Inclusion,30457.33,Other Establishments,2324P10_CR00703,115235
Sandwell Metropolitan Borough Council,http://www.sandwell.gov.uk/info/200202/performance_and_spending/1079/payments_over_500,01-Jan-2024,Individual School Budgets With Inclusion,ACORN CARE AND EDUCATION LIMITED,Individual School Budgets With Inclusion,30457.33,Other Establishments,2324P10_CR00704,115235
Sandwell Metropolitan Borough Council,http://www.sandwell.gov.uk/info/200202/performance_and_spending/1079/payments_over_500,01-Jan-2024,Individual School Budgets With Inclusion,ACORN CARE AND EDUCATION LIMITED,Individual School Budgets With Inclusion,30457.34,Other Establishments,2324P10_CR00705,115235
Sandwell Metropolitan Borough Council,http://www.sandwell.gov.uk/info/200202/performance_and_spending/1079/payments_over_500,01-Jan-2024,Individual School Budgets With Inclusion,ACORN CARE AND EDUCATION LIMITED,Individual School Budgets With Inclusion,33921.33,Other Establishments,2324P10_CR00706,115235
Sandwell Metropolitan Borough Council,http://www.sandwell.gov.uk/info/200202/performance_and_spending/1079/payments_over_500,01-Jan-2024,Individual School Budgets With Inclusion,ACORN CARE AND EDUCATION LIMITED,Individual School Budgets With Inclusion,38019.13,Other Establishments,2324P10_CR00707,115235
Sandwell Metropolitan Borough Council,http://www.sandwell.gov.uk/info/200202/performance_and_spending/1079/payments_over_500,01-Jan-2024,Individual School Budgets With Inclusion,ASCEND EDUCATION PROVISION LTD,Individual School Budgets With Inclusion,8640.00,Other Establishments,2324P10_CR00708,136631
Sandwell Metropolitan Borough Council,http://www.sandwell.gov.uk/info/200202/performance_and_spending/1079/payments_over_500,01-Jan-2024,Individual School Budgets With Inclusion,ASCEND EDUCATION PROVISION LTD,Individual School Budgets With Inclusion,8640.00,Other Establishments,2324P10_CR00709,136631
Sandwell Metropolitan Borough Council,http://www.sandwell.gov.uk/info/200202/performance_and_spending/1079/payments_over_500,01-Jan-2024,Individual School Budgets With Inclusion,ASPIRE4U CIC,Individual School Budgets With Inclusion,9000.00,Externally Purchased Professional Services ,2324P10_CR00710,130013
Sandwell Metropolitan Borough Council,http://www.sandwell.gov.uk/info/200202/performance_and_spending/1079/payments_over_500,01-Jan-2024,Individual School Budgets With Inclusion,ASPIRE4U CIC,Individual School Budgets With Inclusion,9000.00,Externally Purchased Professional Services ,2324P10_CR00711,130013
Sandwell Metropolitan Borough Council,http://www.sandwell.gov.uk/info/200202/performance_and_spending/1079/payments_over_500,01-Jan-2024,Individual School Budgets With Inclusion,BUFFET EXPRESS,Individual School Budgets With Inclusion,1194.00,Catering Provisions,2324P10_CR00712,01730518
Sandwell Metropolitan Borough Council,http://www.sandwell.gov.uk/info/200202/performance_and_spending/1079/payments_over_500,01-Jan-2024,Individual School Budgets With Inclusion,CARE FIRST MANAGEMENT,Individual School Budgets With Inclusion,1933.75,Other Establishments,2324P10_CR00713,136901
Sandwell Metropolitan Borough Council,http://www.sandwell.gov.uk/info/200202/performance_and_spending/1079/payments_over_500,01-Jan-2024,Individual School Budgets With Inclusion,COLMORE EDUCATION RECRUITMENT,Individual School Budgets With Inclusion,560.00,Agency Staff,2324P10_CR00714,148720
Sandwell Metropolitan Borough Council,http://www.sandwell.gov.uk/info/200202/performance_and_spending/1079/payments_over_500,01-Jan-2024,Individual School Budgets With Inclusion,COLMORE EDUCATION RECRUITMENT,Individual School Budgets With Inclusion,560.00,Agency Staff,2324P10_CR00715,148720
Sandwell Metropolitan Borough Council,http://www.sandwell.gov.uk/info/200202/performance_and_spending/1079/payments_over_500,01-Jan-2024,Individual School Budgets With Inclusion,COLMORE EDUCATION RECRUITMENT,Individual School Budgets With Inclusion,1875.00,Agency Staff,2324P10_CR00716,148720
Sandwell Metropolitan Borough Council,http://www.sandwell.gov.uk/info/200202/performance_and_spending/1079/payments_over_500,01-Jan-2024,Individual School Budgets With Inclusion,COLMORE EDUCATION RECRUITMENT,Individual School Budgets With Inclusion,1875.00,Agency Staff,2324P10_CR00717,148720
Sandwell Metropolitan Borough Council,http://www.sandwell.gov.uk/info/200202/performance_and_spending/1079/payments_over_500,01-Jan-2024,Individual School Budgets With Inclusion,COLMORE EDUCATION RECRUITMENT,Individual School Budgets With Inclusion,3580.00,Agency Staff,2324P10_CR00718,148720
Sandwell Metropolitan Borough Council,http://www.sandwell.gov.uk/info/200202/performance_and_spending/1079/payments_over_500,01-Jan-2024,Individual School Budgets With Inclusion,COLMORE EDUCATION RECRUITMENT,Individual School Budgets With Inclusion,4677.80,Agency Staff,2324P10_CR00719,148720
Sandwell Metropolitan Borough Council,http://www.sandwell.gov.uk/info/200202/performance_and_spending/1079/payments_over_500,01-Jan-2024,Individual School Budgets With Inclusion,COMMUNITY SKILLS AND KNOWLEDGE NETWORK CIC,Individual School Budgets With Inclusion,5002.00,Externally Purchased Professional Services ,2324P10_CR00720,133735
Sandwell Metropolitan Borough Council,http://www.sandwell.gov.uk/info/200202/performance_and_spending/1079/payments_over_500,01-Jan-2024,Individual School Budgets With Inclusion,CONNEX EDUCATION PARTNERSHIP LTD,Individual School Budgets With Inclusion,665.00,Agency Staff,2324P10_CR00721,164513
Sandwell Metropolitan Borough Council,http://www.sandwell.gov.uk/info/200202/performance_and_spending/1079/payments_over_500,01-Jan-2024,Individual School Budgets With Inclusion,CONNEX EDUCATION PARTNERSHIP LTD,Individual School Budgets With Inclusion,2953.05,Agency Staff,2324P10_CR00722,164513
Sandwell Metropolitan Borough Council,http://www.sandwell.gov.uk/info/200202/performance_and_spending/1079/payments_over_500,01-Jan-2024,Individual School Budgets With Inclusion,CONNEX EDUCATION PARTNERSHIP LTD,Individual School Budgets With Inclusion,2953.05,Agency Staff,2324P10_CR00723,164513
Sandwell Metropolitan Borough Council,http://www.sandwell.gov.uk/info/200202/performance_and_spending/1079/payments_over_500,01-Jan-2024,Individual School Budgets With Inclusion,COOMBSWOOD EDUCATION LTD,Individual School Budgets With Inclusion,11900.20,Other Establishments,2324P10_CR00724,166990
Sandwell Metropolitan Borough Council,http://www.sandwell.gov.uk/info/200202/performance_and_spending/1079/payments_over_500,01-Jan-2024,Individual School Budgets With Inclusion,COOMBSWOOD EDUCATION LTD,Individual School Budgets With Inclusion,11900.20,Other Establishments,2324P10_CR00725,166990
Sandwell Metropolitan Borough Council,http://www.sandwell.gov.uk/info/200202/performance_and_spending/1079/payments_over_500,01-Jan-2024,Individual School Budgets With Inclusion,COOMBSWOOD EDUCATION LTD,Individual School Budgets With Inclusion,16466.84,Other Establishments,2324P10_CR00726,166990
Sandwell Metropolitan Borough Council,http://www.sandwell.gov.uk/info/200202/performance_and_spending/1079/payments_over_500,01-Jan-2024,Individual School Budgets With Inclusion,COOMBSWOOD EDUCATION LTD,Individual School Budgets With Inclusion,16466.84,Other Establishments,2324P10_CR00727,166990
Sandwell Metropolitan Borough Council,http://www.sandwell.gov.uk/info/200202/performance_and_spending/1079/payments_over_500,01-Jan-2024,Individual School Budgets With Inclusion,COOMBSWOOD EDUCATION LTD,Individual School Budgets With Inclusion,16466.84,Other Establishments,2324P10_CR00728,166990
